Workbook

Sheet Dashboard
E2: Keuze Nieuw of Retrofit | I2: Categorie | K2: Categorie | M2: Categorie | BE2: ="Kosten per "&IF(Per_uur=1,"uur","km") -> Kosten per uur | BG2: Ref | BH2: Alt1 | BI2: Alt2 | BK2: Rank
E3: =Profielgroep2 -> Alt1 | G3: Cat2_ | I3: Cat1_ | K3: =VLOOKUP(K85,$E3:$G4,3,0) -> Cat2_ | M3: =VLOOKUP(M85,$E3:$G4,3,0) -> Cat2_ | BE3: Brandstofkosten | BG3: =ROUND(Referentie!G34,2) -> 2.5 | BH3: =IF(Switch_Alt1=0,NA(),ROUND('Alternatief 1'!G34,2)) -> 1 | BI3: =IF(Switch_Alt2=0,NA(),ROUND('Alternatief 2'!G34,2)) -> 1.2 | BK3: =COUNTIF($BG$3:$BG$11,">"&BG3)+COUNTIF(BG$3:BG3,BG3) -> 3
E4: =Profielgroep3 -> Alt2 | G4: Cat3_ | BE4: Onderhoudskosten | BG4: =ROUND(Referentie!G35,2) -> 0 | BH4: =IF(Switch_Alt1=0,NA(),ROUND('Alternatief 1'!G35,2)) -> 0 | BI4: =IF(Switch_Alt2=0,NA(),ROUND('Alternatief 2'!G35,2)) -> 0 | BK4: =COUNTIF($BG$3:$BG$11,">"&BG4)+COUNTIF(BG$3:BG4,BG4) -> 5
K5: Bepaal PullDown | M5: Bepaal PullDown | BE5: Verzekeringen | BG5: =ROUND(Referentie!G36,2) -> 0 | BH5: =IF(Switch_Alt1=0,NA(),ROUND('Alternatief 1'!G36,2)) -> 0 | BI5: =IF(Switch_Alt2=0,NA(),ROUND('Alternatief 2'!G36,2)) -> 0 | BK5: =COUNTIF($BG$3:$BG$11,">"&BG5)+COUNTIF(BG$3:BG5,BG5) -> 6
E6: Overzicht voertuigprofielen | K6: PullDown Alternatief 1 | M6: PullDown Alternatief 2 | BE6: Voertuigbelastingen | BG6: =ROUND(Referentie!G37,2) -> 0 | BH6: =IF(Switch_Alt1=0,NA(),ROUND('Alternatief 1'!G37,2)) -> 0 | BI6: =IF(Switch_Alt2=0,NA(),ROUND('Alternatief 2'!G37,2)) -> 0 | BK6: =COUNTIF($BG$3:$BG$11,">"&BG6)+COUNTIF(BG$3:BG6,BG6) -> 7
E7: Soort+Naam | G7: Nr. | K7: =Alternatief1_Categorie&"PullDown"&HLOOKUP(K85,PullDown_Selectie,14,0) -> Cat2_PullDown2 | M7: =Alternatief2_Categorie&"PullDown"&HLOOKUP(M85,PullDown_Selectie,14,0) -> Cat2_PullDown2 | BE7: Overige kosten | BG7: =ROUND(Referentie!G38,2) -> 0 | BH7: =IF(Switch_Alt1=0,NA(),ROUND('Alternatief 1'!G38,2)) -> 0 | BI7: =IF(Switch_Alt2=0,NA(),ROUND('Alternatief 2'!G38,2)) -> 0 | BK7: =COUNTIF($BG$3:$BG$11,">"&BG7)+COUNTIF(BG$3:BG7,BG7) -> 8
E8: ="Cat1_"&Voertuig_Profielen!H42 -> Cat1_EUR6 | G8: 1 | BE8: Ontheffingen | BG8: =ROUND(Referentie!G39,2) -> 0 | BH8: =IF(Switch_Alt1=0,NA(),ROUND('Alternatief 1'!G39,2)) -> 0 | BI8: =IF(Switch_Alt2=0,NA(),ROUND('Alternatief 2'!G39,2)) -> 0 | BK8: =COUNTIF($BG$3:$BG$11,">"&BG8)+COUNTIF(BG$3:BG8,BG8) -> 9
E9: ="Cat1_"&Voertuig_Profielen!I42 -> Cat1_ | G9: =G8+1 -> 2 | I9: Ophalen Referentie | K9: Ophalen Alternatief1 | M9: Ophalen Alternatief 2 | BE9: Personeelskosten | BG9: =ROUND(Referentie!G40,2) -> 25 | BH9: =IF(Switch_Alt1=0,NA(),ROUND('Alternatief 1'!G40,2)) -> 25 | BI9: =IF(Switch_Alt2=0,NA(),ROUND('Alternatief 2'!G40,2)) -> 25 | BK9: =COUNTIF($BG$3:$BG$11,">"&BG9)+COUNTIF(BG$3:BG9,BG9) -> 1
E10: ="Cat1_"&Voertuig_Profielen!J42 -> Cat1_ | G10: =G9+1 -> 3 | I10: Naam | K10: Soort+Naam: | M10: Soort+Naam: | BE10: Rente | BG10: =ROUND(Referentie!G41,2) -> 0.35 | BH10: =IF(Switch_Alt1=0,NA(),ROUND('Alternatief 1'!G41,2)) -> 0.68 | BI10: =IF(Switch_Alt2=0,NA(),ROUND('Alternatief 2'!G41,2)) -> 0.68 | BK10: =COUNTIF($BG$3:$BG$11,">"&BG10)+COUNTIF(BG$3:BG10,BG10) -> 4
E11: ="Cat1_"&Voertuig_Profielen!K42 -> Cat1_ | G11: 4 | I11: ="Cat1_"&I87 -> Cat1_EUR6 | K11: =Alternatief1_Categorie&K87 -> Cat2_Elek1 | M11: =Alternatief2_Categorie&M87 -> Cat2_Elek1 | BE11: Afschrijving | BG11: =ROUND(Referentie!G42,2) -> 3.13 | BH11: =IF(Switch_Alt1=0,NA(),ROUND('Alternatief 1'!G42,2)) -> 5 | BI11: =IF(Switch_Alt2=0,NA(),ROUND('Alternatief 2'!G42,2)) -> 5 | BK11: =COUNTIF($BG$3:$BG$11,">"&BG11)+COUNTIF(BG$3:BG11,BG11) -> 2
E12: ="Cat1_"&Voertuig_Profielen!L42 -> Cat1_ | G12: 5 | I12: =IF(Referentie_Naam="Nieuw Profiel","Ref_New",IFERROR("Naar_Ref_"&VLOOKUP(I11,Voertuigdefinitie_Tabel2,3,FALSE),"Ref_New")) -> Naar_Ref_1 | K12: =IF(Alternatief1_Naam="Nieuw Profiel","Alt1_New",IFERROR("Naar_Alt1_"&VLOOKUP(K11,Voertuigdefinitie_Tabel,3,FALSE),"Alt1_New")) -> Naar_Alt1_1 | M12: =IF(Alternatief2_Naam="Nieuw Profiel","Alt2_New",IFERROR("Naar_Alt2_"&VLOOKUP(M11,Voertuigdefinitie_Tabel,3,FALSE),"Alt2_New")) -> Naar_Alt2_1 | BE12: =IFERROR(INDEX(BE$3:BE$11,MATCH(ROWS(BE$12:BE12),$BK$3:$BK$11,0)),"") -> Personeelskosten | BG12: =INDEX(BG$3:BG$11,MATCH(ROWS(BG$12:BG12),$BK$3:$BK$11,0)) -> 25 | BH12: =VLOOKUP($BE12,$BE$3:$BI$11,4,FALSE) -> 25 | BI12: =VLOOKUP($BE12,$BE$3:$BI$11,5,FALSE) -> 25
E13: ="Cat1_"&Voertuig_Profielen!M42 -> Cat1_ | G13: 6 | BE13: =IFERROR(INDEX(BE$3:BE$11,MATCH(ROWS(BE$12:BE13),$BK$3:$BK$11,0)),"") -> Afschrijving | BG13: =INDEX(BG$3:BG$11,MATCH(ROWS(BG$12:BG13),$BK$3:$BK$11,0)) -> 3.13 | BH13: 5 | BI13: 5
E14: ="Cat1_"&Voertuig_Profielen!N42 -> Cat1_ | G14: 7 | I14: Bewaren Referentie | K14: Bewaren Alternatief 1 | M14: Bewaren Alternatief 2 | BE14: =IFERROR(INDEX(BE$3:BE$11,MATCH(ROWS(BE$12:BE14),$BK$3:$BK$11,0)),"") -> Brandstofkosten | BG14: =INDEX(BG$3:BG$11,MATCH(ROWS(BG$12:BG14),$BK$3:$BK$11,0)) -> 2.5 | BH14: 1 | BI14: 1.2
E15: ="Cat1_"&Voertuig_Profielen!O42 -> Cat1_ | G15: 8 | I15: Soort+Naam: | K15: Soort+Naam: | M15: Soort+Naam: | BE15: =IFERROR(INDEX(BE$3:BE$11,MATCH(ROWS(BE$12:BE15),$BK$3:$BK$11,0)),"") -> Rente | BG15: =INDEX(BG$3:BG$11,MATCH(ROWS(BG$12:BG15),$BK$3:$BK$11,0)) -> 0.35 | BH15: 0.68 | BI15: 0.68
E16: ="Cat1_"&Voertuig_Profielen!P42 -> Cat1_ | G16: 9 | I16: =IF(AND(I87<>"Nieuw Profiel",I104<>"",COUNTIF(Cat1_Duiding,I104)=0),Referentie_Categorie,IF(I87<>"Nieuw Profiel",Referentie_Categorie&IF(I104="",I87,I104),IF(COUNTIF(Voertuig_Name2,Referentie_Categorie&I104)=0,Referentie_Categorie,Referentie_Categorie&I104))) -> Cat1_EUR6 | K16: =IF(AND(K87<>"Nieuw Profiel",K104<>"",COUNTIF(Cat2_Duiding,K104)=0,COUNTIF(Cat3_Duiding,K104)=0),Alternatief1_Categorie,IF(K87<>"Nieuw Profiel",Alternatief1_Categorie&IF(K104="",K87,K104),IF(COUNTIF(Voertuig_Name,Alternatief1_Categorie&K104)=0,Alternatief1_Categorie,Alternatief1_Categorie&K104))) -> Cat2_Elek1 | M16: =IF(AND(M87<>"Nieuw Profiel",M104<>"",COUNTIF(Cat2_Duiding,M104)=0,COUNTIF(Cat3_Duiding,M104)=0),Alternatief2_Categorie,IF(M87<>"Nieuw Profiel",Alternatief2_Categorie&IF(M104="",M87,M104),IF(COUNTIF(Voertuig_Name,Alternatief2_Categorie&M104)=0,Alternatief2_Categorie,Alternatief2_Categorie&M104))) -> Cat2_Elek1 | BE16: =IFERROR(INDEX(BE$3:BE$11,MATCH(ROWS(BE$12:BE16),$BK$3:$BK$11,0)),"") -> Onderhoudskosten | BG16: =INDEX(BG$3:BG$11,MATCH(ROWS(BG$12:BG16),$BK$3:$BK$11,0)) -> 0 | BH16: 0 | BI16: 0
E17: ="Cat1_"&Voertuig_Profielen!Q42 -> Cat1_ | G17: 10 | I17: Macronaam: | K17: Macronaam: | M17: Macronaam: | BE17: =IFERROR(INDEX(BE$3:BE$11,MATCH(ROWS(BE$12:BE17),$BK$3:$BK$11,0)),"") -> Verzekeringen | BG17: =INDEX(BG$3:BG$11,MATCH(ROWS(BG$12:BG17),$BK$3:$BK$11,0)) -> 0 | BH17: 0 | BI17: 0
E18: ="Cat2_"&Voertuig_Profielen!H66 -> Cat2_Elek1 | G18: 1 | I18: ="Van_Ref_"&VLOOKUP(IF(COUNTIF(Voertuig_Name2,I16)=0,"Referentievoertuig",I16),Voertuigdefinitie_Tabel2,3,FALSE) -> Van_Ref_1 | K18: ="Van_Alt1_"&VLOOKUP(IF(COUNTIF(Voertuig_Name,K16)=0,Alternatief1_Categorie,K16),Voertuigdefinitie_Tabel,3,FALSE) -> Van_Alt1_1 | M18: ="Van_Alt2_"&VLOOKUP(IF(COUNTIF(Voertuig_Name,M16)=0,Alternatief2_Categorie,M16),Voertuigdefinitie_Tabel,3,FALSE) -> Van_Alt2_1 | BE18: =IFERROR(INDEX(BE$3:BE$11,MATCH(ROWS(BE$12:BE18),$BK$3:$BK$11,0)),"") -> Voertuigbelastingen | BG18: =INDEX(BG$3:BG$11,MATCH(ROWS(BG$12:BG18),$BK$3:$BK$11,0)) -> 0 | BH18: 0 | BI18: 0
E19: ="Cat2_"&Voertuig_Profielen!I66 -> Cat2_ | G19: =G18+1 -> 2 | BE19: =IFERROR(INDEX(BE$3:BE$11,MATCH(ROWS(BE$12:BE19),$BK$3:$BK$11,0)),"") -> Overige kosten | BG19: =INDEX(BG$3:BG$11,MATCH(ROWS(BG$12:BG19),$BK$3:$BK$11,0)) -> 0 | BH19: 0 | BI19: 0
E20: ="Cat2_"&Voertuig_Profielen!J66 -> Cat2_ | G20: 3 | I20: Referentie Dummy | K20: Alternatief 1 Dummy | M20: Alternatief 2 Dummy | BE20: =IFERROR(INDEX(BE$3:BE$11,MATCH(ROWS(BE$12:BE20),$BK$3:$BK$11,0)),"") -> Ontheffingen | BG20: =INDEX(BG$3:BG$11,MATCH(ROWS(BG$12:BG20),$BK$3:$BK$11,0)) -> 0 | BH20: 0 | BI20: 0
E21: ="Cat2_"&Voertuig_Profielen!K66 -> Cat2_ | G21: 4 | I21: Kopiëren Ref nr Profielen | K21: Kopiëren Alt 1 nr Profielen | M21: Kopiëren Alt 2 nr Profielen
E22: ="Cat2_"&Voertuig_Profielen!L66 -> Cat2_ | G22: 5 | I22: =IF(I104="",I87,I104) -> EUR6 | K22: =IF(K104="",K87,K104) -> Elek1 | M22: =IF(M104="",M87,M104) -> Elek1 | BE22: Vermindering uitstoot # | BH22: Alt1 | BI22: Alt2
E23: ="Cat2_"&Voertuig_Profielen!M66 -> Cat2_ | G23: 6 | BE23: ="CO2 ("&U63&", "&CO2_weight&")" -> CO2 (WtW, ton) | BH23: =IF(Switch_Alt1=0,NA(),-ROUND('Alternatief 1'!J112,0)) -> 16 | BI23: =IF(Switch_Alt2=0,NA(),-ROUND('Alternatief 2'!J112,0)) -> 16
E24: ="Cat2_"&Voertuig_Profielen!N66 -> Cat2_ | G24: 7 | I24: =I89 -> DSL1 | K24: =K89 -> Elek | M24: =M89 -> Elek | BE24: ="NOx ("&U64&", "&NOx_weight&")" -> NOx (TtW, kg) | BH24: =IF(Switch_Alt1=0,NA(),-ROUND('Alternatief 1'!J115,0)) -> 10 | BI24: =IF(Switch_Alt2=0,NA(),-ROUND('Alternatief 2'!J115,0)) -> 10
E25: ="Cat2_"&Voertuig_Profielen!O66 -> Cat2_ | G25: 8 | I25: =I90 -> 50000 | K25: =K90 -> 100000 | M25: =M90 -> 100000 | BE25: ="PM ("&U65&", "&PM_weight&")" -> PM (TtW, dag) | BH25: =IF(Switch_Alt1=0,NA(),-ROUND('Alternatief 1'!J118,0)) -> 23 | BI25: =IF(Switch_Alt2=0,NA(),-ROUND('Alternatief 2'!J118,0)) -> 23
E26: ="Cat2_"&Voertuig_Profielen!P66 -> Cat2_ | G26: 9 | I26: =I91 -> 8 | K26: =K91 -> 10 | M26: =M91 -> 10 | BE26: ="geluid (×10^"&noise_weight&" dBh)" -> geluid (×10^4 dBh) | BH26: =IF(Switch_Alt1=0,NA(),-ROUND('Alternatief 1'!J121,0)) -> 9 | BI26: =IF(Switch_Alt2=0,NA(),-ROUND('Alternatief 2'!J121,0)) -> 9
E27: ="Cat2_"&Voertuig_Profielen!Q66 -> Cat2_ | G27: 10 | I27: =I92 -> 0 | K27: =K92 -> 8 | M27: =M92 -> 8
E28: ="Cat3_"&Voertuig_Profielen!H90 -> Cat3_ | G28: 11 | I28: =I93 -> 25 | K28: =K93 -> 100 | M28: =M93 -> 100 | R28: Switch uur/km | BE28: Vermindering uitstoot EUR | BH28: Alt1 | BI28: Alt2
E29: ="Cat3_"&Voertuig_Profielen!I90 -> Cat3_ | G29: 12 | I29: 0 | K29: 0 | M29: 0 | R29: uur/km | S29: 1 | BE29: ="CO2 ("&U63&")" -> CO2 (WtW) | BH29: =IF(Switch_Alt1=0,NA(),-ROUND('Alternatief 1'!J113,0)) -> 420 | BI29: =IF(Switch_Alt2=0,NA(),-ROUND('Alternatief 2'!J113,0)) -> 420
E30: ="Cat3_"&Voertuig_Profielen!J90 -> Cat3_ | G30: 13 | I30: 0 | K30: 0 | M30: 0 | R30: per uur | S30: =IF(S29=1,1,0) -> 1 | BE30: ="NOx ("&U64&")" -> NOx (TtW) | BH30: =IF(Switch_Alt1=0,NA(),-ROUND('Alternatief 1'!J116,0)) -> 113 | BI30: =IF(Switch_Alt2=0,NA(),-ROUND('Alternatief 2'!J116,0)) -> 113
E31: ="Cat3_"&Voertuig_Profielen!K90 -> Cat3_ | G31: 14 | I31: 0 | K31: 0 | M31: 0 | R31: per km | S31: =IF(S29=2,1,0) -> 0 | BE31: ="PM ("&U65&")" -> PM (TtW) | BH31: =IF(Switch_Alt1=0,NA(),-ROUND('Alternatief 1'!J119,0)) -> 132 | BI31: =IF(Switch_Alt2=0,NA(),-ROUND('Alternatief 2'!J119,0)) -> 132
E32: ="Cat3_"&Voertuig_Profielen!L90 -> Cat3_ | G32: 15 | I32: 0 | K32: 0 | M32: 0 | R32: =IF(Per_uur=1,"EUR per uur", "EUR per kilometer") -> EUR per uur | BE32: geluid | BH32: =IF(Switch_Alt1=0,NA(),-ROUND('Alternatief 1'!J122,0)) -> 724 | BI32: =IF(Switch_Alt2=0,NA(),-ROUND('Alternatief 2'!J122,0)) -> 758
E33: ="Cat3_"&Voertuig_Profielen!M90 -> Cat3_ | G33: 16 | I33: 0 | K33: 0 | M33: 0 | R33: =IF(Per_uur=1,"(EUR/uur):", "(EUR/km):") -> (EUR/uur):
E34: ="Cat3_"&Voertuig_Profielen!N90 -> Cat3_ | G34: 17 | I34: 3.23 | K34: 0 | M34: 0 | BE34: Contante waarden | BH34: Alt1 | BI34: Alt2
E35: ="Cat3_"&Voertuig_Profielen!O90 -> Cat3_ | G35: 18 | I35: 2.061 | K35: 0 | M35: 0 | R35: Switch alternatieven | BE35: kosten | BH35: =IF(Switch_Alt1=0,NA(),-ROUND('Alternatief 1'!G129,0)) -> 0 | BI35: =IF(Switch_Alt2=0,NA(),-ROUND('Alternatief 2'!G129,0)) -> 0
E36: ="Cat3_"&Voertuig_Profielen!P90 -> Cat3_ | G36: 19 | I36: 0.357 | K36: 0.078 | M36: 0.078 | R36: Alt1 | S36: 1 | BE36: opbrengsten | BH36: =IF(Switch_Alt1=0,NA(),ROUND('Alternatief 1'!G128,0)) -> 11263 | BI36: =IF(Switch_Alt2=0,NA(),ROUND('Alternatief 2'!G128,0)) -> 11539
E37: ="Cat3_"&Voertuig_Profielen!Q90 -> Cat3_ | G37: 20 | I37: 78 | K37: 70 | M37: 70 | R37: Alt2 | S37: 1
BE38: Kn per maatregel | BH38: Alt1 | BI38: Alt2
E39: Overzicht brandstofprofielen | BE39: MIA | BH39: =IF(Switch_Alt1=0,NA(),ROUND('Alternatief 1'!G80,0)) -> 0 | BI39: =IF(Switch_Alt2=0,NA(),ROUND('Alternatief 2'!G80,0)) -> 0
E40: Soort+Naam | G40: Nr. | R40: Switch gtm/ld | BE40: VAMIL | BH40: =IF(Switch_Alt1=0,NA(),ROUND('Alternatief 1'!G81,0)) -> 0 | BI40: =IF(Switch_Alt2=0,NA(),ROUND('Alternatief 2'!G81,0)) -> 0
E41: =Brandstof_Profielen!G29 -> DSL1 | G41: 1 | R41: switch | S41: 1 | BE41: =Referentie!B84 -> Subsidies | BH41: =IF(Switch_Alt1=0,NA(),ROUND('Alternatief 1'!G84,0)) -> 0 | BI41: =IF(Switch_Alt2=0,NA(),ROUND('Alternatief 2'!G84,0)) -> 0
E42: =Brandstof_Profielen!H29 -> Elek | G42: =G41+1 -> 2 | I42: Checks tbv macro - alvorens profiel op te slaan | R42: gebruikstermijn | S42: =IF(S41=1,1,0) -> 1 | BE42: =Referentie!B85 -> Δ Voertuigbelastingen | BH42: =IF(Switch_Alt1=0,NA(),ROUND('Alternatief 1'!G85,0)) -> 0 | BI42: =IF(Switch_Alt2=0,NA(),ROUND('Alternatief 2'!G85,0)) -> 0
E43: =Brandstof_Profielen!I29 -> 0 | G43: =G42+1 -> 3 | I43: Fout in naam | K43: Fout in naam | M43: Fout in naam | R43: levensduur | S43: =IF(S41=2,1,0) -> 0 | BE43: =Referentie!B86 -> Δ Overige kosten | BH43: =IF(Switch_Alt1=0,NA(),ROUND('Alternatief 1'!G86,0)) -> 0 | BI43: =IF(Switch_Alt2=0,NA(),ROUND('Alternatief 2'!G86,0)) -> 0
E44: =Brandstof_Profielen!J29 -> 0 | G44: 4 | I44: =IF(OR(AND(Referentie_Naam="",I104=""),AND(Referentie_Naam="Nieuw Profiel",I104="")),"ja","nee") -> nee | K44: =IF(OR(AND(Alternatief1_Naam="",K104=""),AND(Alternatief1_Naam="Nieuw Profiel",K104="")),"ja","nee") -> nee | M44: =IF(OR(AND(Alternatief2_Naam="",M104=""),AND(Alternatief2_Naam="Nieuw Profiel",M104="")),"ja","nee") -> nee | BE44: Δ Ontheffing venster | BH44: =IF(Switch_Alt1=0,NA(),ROUND('Alternatief 1'!G87,0)) -> 0 | BI44: =IF(Switch_Alt2=0,NA(),ROUND('Alternatief 2'!G87,0)) -> 0
E45: =Brandstof_Profielen!K29 -> 0 | G45: 5 | I45: Overschrijven naam | K45: Overschrijven naam | M45: Overschrijven naam | BE45: =Referentie!B88 -> Δ Brandstofprijs | BH45: =IF(Switch_Alt1=0,NA(),ROUND('Alternatief 1'!G88,0)) -> 0 | BI45: =IF(Switch_Alt2=0,NA(),ROUND('Alternatief 2'!G88,0)) -> 0
E46: =Brandstof_Profielen!L29 -> 0 | G46: 6 | I46: =IF(COUNTIF(Voertuig_Name2,I3&ProfielnaamR)>0,"ja","nee") -> ja | K46: =IF(COUNTIF(Voertuig_Name,K3&Profielnaam1)>0,"ja","nee") -> ja | M46: =IF(COUNTIF(Voertuig_Name,M3&Profielnaam2)>0,"ja","nee") -> ja | BE46: =Referentie!B89 -> Rentesubsidies | BH46: =IF(Switch_Alt1=0,NA(),ROUND('Alternatief 1'!G89,0)) -> 0 | BI46: =IF(Switch_Alt2=0,NA(),ROUND('Alternatief 2'!G89,0)) -> 0
E47: =Brandstof_Profielen!M29 -> 0 | G47: 7 | I47: Vrije profielruimte | K47: Vrije profielruimte | M47: Vrije profielruimte
E48: =Brandstof_Profielen!N29 -> 0 | G48: 8 | I48: =IF(I105=0,"nee","ja") -> ja | K48: =IF(K105=0,"nee","ja") -> ja | M48: =IF(M105=0,"nee","ja") -> ja | BE48: Omrekening gewichten en monteriseringsgetallen
E49: =Brandstof_Profielen!O29 -> 0 | G49: 9 | BE49: gewichten | BF49: g | BG49: kg | BH49: geluid | BI49: kg | BJ49: ton
E50: =Brandstof_Profielen!P29 -> 0 | G50: 10 | I50: Macronamen voor ophalen en bewaren brandstofprofiel | BE50: mg | BF50: =BF51*10 -> 1000 | BG50: 1000000 | BH50: 1 | BI50: =BI51/10 -> 1e-06 | BJ50: 1e-09
I51: =VLOOKUP(Referentie,Brandstofdefinitie_Tabel,3,FALSE) -> 1 | K51: =VLOOKUP(Alternatief1,Brandstofdefinitie_Tabel,3,FALSE) -> 2 | M51: =VLOOKUP(Alternatief2,Brandstofdefinitie_Tabel,3,FALSE) -> 2 | BE51: cg | BF51: 100 | BG51: 100000 | BH51: 2 | BI51: 1e-05 | BJ51: 1e-08
E52: Overzicht namen | I52: ="Naar_Ref_Br"&I51 -> Naar_Ref_Br1 | K52: ="Naar_Alt1_Br"&K51 -> Naar_Alt1_Br2 | M52: ="Naar_Alt2_Br"&M51 -> Naar_Alt2_Br2 | Q52: Fouten en waarschuwingen | S52: Dashboard | T52: Voertuig | U52: Brandstof | BE52: dg | BF52: =BF53*10 -> 10 | BG52: 10000 | BH52: 3 | BI52: 0.0001 | BJ52: 1e-07
E53: Referentie | G53: =CONCATENATE("Referentie"&CHAR(10)&TEXT(U127,"##")&" km/jr "&TEXT(U128,"##")&" uren/jr") -> Referentie 20000 km/jr 2000 uren/jr | I53: ="Van_Ref_Br"&I51 -> Van_Ref_Br1 | K53: ="Van_Alt1_Br"&K51 -> Van_Alt1_Br2 | M53: ="Van_Alt2_Br"&M51 -> Van_Alt2_Br2 | Q53: Fouten | S53: =COUNTIF(H90:H123,"→")+COUNTIF(J90:J123,"→")+COUNTIF(L90:L123,"→") -> 0 | T53: =IF(SUM(Voertuig_Profielen!S18:S20)+SUM(Voertuig_Profielen!S28:S30)>0,1,0) -> 0 | U53: =IF(SUM(Brandstof_Profielen!R17)>0,1,0) -> 0 | BE53: g | BF53: 1 | BG53: 1000 | BH53: 4 | BI53: 0.001 | BJ53: 1e-06
E54: Alternatief 1 | G54: =CONCATENATE("Alternatief 1"&CHAR(10)&TEXT(W127,"##")&" km/jr "&TEXT(W128,"##")&" uren/jr") -> Alternatief 1 20000 km/jr 2000 uren/jr | Q54: Indirecte tijd | S54: =IF(Indirecte_minuten<0,1,) -> 0 | BE54: dag | BF54: =BF53/10 -> 0.1 | BG54: 100 | BH54: 5 | BI54: 0.01 | BJ54: 1e-05
E55: Alternatief 2 | G55: =CONCATENATE("Alternatief 2"&CHAR(10)&TEXT(Z127,"##")&" km/jr "&TEXT(Z128,"##")&" uren/jr") -> Alternatief 2 24000 km/jr 2000 uren/jr | I55: Reéle financieringsrente | Q55: Ongeldige brandstofprofielen | S55: =COUNTIF(H89:H89,"→")+COUNTIF(J89:J89,"→")+COUNTIF(L89:L89,"→") -> 0 | BE55: hg | BF55: 0.01 | BG55: =BG56*10 -> 10 | BH55: 6 | BI55: 0.1 | BJ55: 0.0001
I56: Regulier | K56: Regulier | M56: Regulier | Q56: Categorie namen | S56: =COUNTIF(H85,"→")+COUNTIF(J85,"→")+COUNTIF(L85,"→") -> 0 | BE56: kg | BF56: 0.001 | BG56: 1 | BH56: 7 | BI56: 1 | BJ56: =BJ57/1000 -> 0.001
E57: Aantal voertuigkm | I57: =((1+Rente_nominaal/1)/(1+Inflatie/1)-1) -> 0.02463054187 | K57: =((1+Rente_nominaal/1)/(1+Inflatie/1)-1) -> 0.02463054187 | M57: =((1+Rente_nominaal/1)/(1+Inflatie/1)-1) -> 0.02463054187 | Q57: Lege velden | S57: =COUNTBLANK(G75:G79)+COUNTBLANK(I89:I102)+COUNTBLANK(AS115:AS123)+Switch_Alt1*COUNTBLANK(K89:K102)+Switch_Alt2*COUNTBLANK(M89:M102)+COUNTBLANK(BrandstofprijsR)+Switch_Alt1*COUNTBLANK(Brandstofprijs1)+Switch_Alt2*COUNTBLANK(Brandstofprijs2) -> 0 | T57: =IF(SUM(Voertuig_Profielen!S23:S25)>0,1,0) -> 0 | U57: =IF(SUM(Brandstof_Profielen!R18)>0,1,0) -> 0 | BE57: ton | BF57: =BF56/1000 -> 1e-06 | BG57: =BG56/1000 -> 0.001 | BH57: 8 | BI57: =BI56*1000 -> 1000 | BJ57: 1
E58: Referentie | G58: =G75 -> 20000 | I58: Zacht | K58: Zacht | M58: Zacht | Q58: Lege velden referentie/algemeen | S58: =COUNTBLANK(I89:I102)+COUNTBLANK(BrandstofprijsR)+COUNTBLANK(AS115:AS123) -> 0 | BE58: CO2 | BF58: =INDEX(weights_CO2,MATCH(CO2_weight,weights,0)) -> 0.001 | BH58: 9 | BI58: =INDEX(weights_CO2_EUR,MATCH(CO2_weight,weights,0)) -> 1
E59: Alternatief 1 | G59: =K119/(Indirecte_minuten/60+G76*(1-K118)/Snelheid_Venster+(1-G76+G76*K118)/Snelheid_Overig) -> 20000 | I59: =((1+I128/1)/(1+Inflatie/1)-1) -> -0.01477832512 | K59: =((1+K128/1)/(1+Inflatie/1)-1) -> -0.01477832512 | M59: =((1+M128/1)/(1+Inflatie/1)-1) -> -0.01477832512 | Q59: Lege velden alternatieven | S59: =S57-S58 -> 0 | BE59: NOX | BF59: =INDEX(weights_NOx_PM,MATCH(NOx_weight,weights,0)) -> 0.001 | BH59: 10 | BI59: =INDEX(weights_NOx_PM_EUR,MATCH(NOx_weight,weights,0)) -> 1
E60: Alternatief 2 | G60: =M119/(Indirecte_minuten/60+G76*(1-M118)/Snelheid_Venster+(1-G76+G76*M118)/Snelheid_Overig) -> 24000 | Q60: Inflatie | S60: =COUNTIF(H128,"→")+COUNTIF(J128,"→")+COUNTIF(L128,"→")+COUNTIF(AR119:AR120,"→") -> 0 | T60: =COUNTIF(I128,"→")+COUNTIF(K128,"→")+COUNTIF(M128,"→")+COUNTIF(AS119:AS120,"→") -> 0 | U60: =COUNTIF(J128,"→")+COUNTIF(L128,"→")+COUNTIF(N128,"→")+COUNTIF(AT119:AT121,"→") -> 0 | BE60: PM | BF60: =INDEX(weights_NOx_PM,MATCH(PM_weight,weights,0)) -> 0.1 | BI60: =INDEX(weights_NOx_PM_EUR,MATCH(PM_weight,weights,0)) -> 0.01
I61: Eenheden | BE61: Geluid | BF61: =noise_weight -> 4 | BI61: n.v.t.
I62: =HLOOKUP(Referentie,Brandstofprofielen,4,FALSE) -> liter | K62: =HLOOKUP(Alternatief1,Brandstofprofielen,4,FALSE) -> kWh | M62: =HLOOKUP(Alternatief2,Brandstofprofielen,4,FALSE) -> kWh | Q62: Type Emissie
Q63: Well-to-Wheel (WtW) | S63: WtW | T63: CO2 | U63: =VLOOKUP(Voertuig_Profielen!V46,Emissielijst,3,FALSE) -> WtW
G64: Check of profielnamen reeds voorkomen in de database t.b.v. opslaan | Q64: Tank-to-Wheel (TtW) | S64: TtW | T64: NOx | U64: =VLOOKUP(Voertuig_Profielen!V47,Emissielijst,3,FALSE) -> TtW
I65: =IF(I104="",Referentie_Naam,I104) -> EUR6 | K65: =IF(K104="",Alternatief1_Naam,K104) -> Elek1 | M65: =IF(M104="",Alternatief2_Naam,M104) -> Elek1 | Q65: Tailpipe | S65: Tp | T65: PM | U65: =VLOOKUP(Voertuig_Profielen!V48,Emissielijst,3,FALSE) -> TtW
G66: Voertuig --> | I66: =COUNTIF(Cat1_Duiding,I65) -> 1 | K66: =IF(COUNTIF(Cat2_Duiding,K65)+COUNTIF(Cat3_Duiding,K65)>0,1,0) -> 1 | M66: =IF(COUNTIF(Cat2_Duiding,M65)+COUNTIF(Cat3_Duiding,M65)>0,1,0) -> 1 | Q66: Selected:
G67: Brandstof --> | I67: =COUNTIF(Brandstof_Duiding,Referentie) -> 1 | K67: =COUNTIF(Brandstof_Duiding,Alternatief1) -> 1 | M67: =COUNTIF(Brandstof_Duiding,Alternatief2) -> 1 | Q67: =Voertuig_Profielen!V46 -> Well-to-Wheel (WtW)
I68: EUR6 | K68: Elek1 | M68: Elek1 | Q68: ="Emissiereductie ten opzichte van referentie" -> Emissiereductie ten opzichte van referentie
B71: INPUT: DEFINITIE VOERTUIGEN | P71: OUTPUT: GRAFIEKEN
C74: VOERTUIGINZET | G74: Referentie
C75: Inzet voertuig (km/jaar): | G75: 20000
C76: Inzet in APV-gebied (%): | G76: 1
C77: Inzet in APV-gebied (km): | G77: =Inzet_voertuig_Ref*G76 -> 20000
C78: Ø wv buiten APV-tijden (%): | G78: 0
C79: voertuiguren per jaar (uren): | G79: 2000
C81: =IF(S53>0,"FOUTEN GEDETECTEERD! Check geel gemarkeerde cellen.",IF(S54>0,"INDIRECTE TIJD IS NEGATIEF, PAS GEMARKEERDE VELDEN AAN",IF(S55>0,"SELECTEER EEN BESTAAND BRANDSTOFPROFIEL",IF(U53>0,"FOUTEN GEDETECTEERD. Check werkblad 'Brandstsof_Profielen'",IF(T53>0,"FOUTEN GEDETECTEERD. Check werkblad 'Voertuig_Profielen'.",IF(S56>0,"SELECTEER EEN BESTAANDE CATEGORIE OF HERSTEL FOUT IN VOERTUIG_PROFIELEN",IF(S58>0,"VOORZIE ORANJE GEKLEURDE CEL(LEN) VAN EEN WAARDE!",IF(S59>0,"VOORZIE ORANJE GEKLEURDE CEL(LEN) VAN EEN WAARDE OF DEACTIVEER ALTERNATIEF!",IF(T57>0,"ONVOLLEDIGE PROFIELEN GEDETECTEERD. Check werkblad 'Voertuig_Profielen'.",IF(U57>0,"ONVOLLEDIGE PROFIELEN GEDETECTEERD. Check werkblad 'Brandstof_Profielen'.",IF(S60>0,"WAARSCHUWING: rente is lager dan inflatie resulterend in negatieve reëele rente, zie oranje markeringen","Status: ok"))))))))))) -> Status: ok
C83: VOERTUIGSPECIFICATIE | I83: Referentie | K83: Alternatief 1 | M83: Alternatief 2
C85: KIES VOERTUIGPROFIEL → | G85: Categorie: | I85: =Profielgroep1 -> Referentie | J85: =IF(Switch_Alt1=0,"",IF(K85="","",IF(AND(COUNTIF(Profielgroep2,K85)=0,COUNTIF(Profielgroep3,K85)=0),"→",""))) ->  | K85: Alt1 | L85: =IF(Switch_Alt2=0,"",IF(M85="","",IF(AND(COUNTIF(Profielgroep2,M85)=0,COUNTIF(Profielgroep3,M85)=0),"→",""))) ->  | M85: Alt1
C87: ↓ PAS PROFIEL AAN ↓ | G87: Profielnaam: | I87: EUR6 | K87: Elek1 | M87: Elek1
C89: Brandstofprofiel: | H89: =IF(checkR_Brandstof=0,"→","") ->  | I89: DSL1 | J89: =IF(Switch_Alt1=0,"",IF(check1_Brandstof=0,"→","")) ->  | K89: Elek | L89: =IF(Switch_Alt2=0,"",IF(check2_Brandstof=0,"→","")) ->  | M89: Elek
C90: Aanschafprijs voertuig (EUR): | I90: 50000 | K90: 100000 | M90: 100000
C91: Gebruikstermijn (hele jaren): | I91: 8 | K91: 10 | M91: 10
C92: Restwaarde (EUR): | I92: 0 | K92: 8 | M92: 8
C93: Gemiddeld verbruik (per 100 km): | I93: 25 | K93: 100 | M93: 100 | Z93: CO2: | AA93: ton | AC93: NOx: | AE93: kg | AG93: PM: | AI93: dag | AK93: dBh×10^: | AO93: 4
C94: Onderhoud (EUR/jaar): | I94: 0 | K94: 0 | M94: 0
C95: Verzekeringen (EUR/jaar): | I95: 0 | K95: 0 | M95: 0
C96: Voertuigbelasting (EUR/jaar): | H96: =IF(-I120>I96,"→","") ->  | I96: 0 | J96: =IF(OR(Switch_Alt1=0,K96=""),"",IF(-K120>K96,"→","")) ->  | K96: 0 | L96: =IF(OR(Switch_Alt2=0,M96=""),"",IF(-M120>M96,"→","")) ->  | M96: 0
C97: Overige kosten (EUR/jaar): | H97: =IF(-I121>I97,"→","") ->  | I97: 0 | J97: =IF(OR(Switch_Alt1=0,K97=""),"",IF(-K121>K97,"→","")) ->  | K97: 0 | L97: =IF(OR(Switch_Alt2=0,M97=""),"",IF(-M121>M97,"→","")) ->  | M97: 0
C98: Kosten ontheffingen: | H98: =IF(-I122>I98,"→","") ->  | I98: 0 | J98: =IF(OR(Switch_Alt1=0,K98=""),"",IF(-K122>K98,"→","")) ->  | K98: 0 | L98: =IF(OR(Switch_Alt2=0,M98=""),"",IF(-M122>M98,"→","")) ->  | M98: 0
C99: =U63&" emissie CO2 (kg/eenheid brandstof):" -> WtW emissie CO2 (kg/eenheid brandstof): | I99: 3.23 | K99: 0 | M99: 0
C100: =U64&" emissie NOx (g/eenheid brandstof):" -> TtW emissie NOx (g/eenheid brandstof): | I100: 2.061 | K100: 0 | M100: 0
C101: =U65&" emissie PM (g/eenheid brandstof):" -> TtW emissie PM (g/eenheid brandstof): | I101: 0.357 | K101: 0.078 | M101: 0.078
C102: Gemiddelde emissie geluid (dBA): | I102: 78 | K102: 70 | M102: 70
C104: (Nieuwe) voertuigprofielnaam:
C105: Aantal vrije voertuigprofielen in categorie: | I105: =COUNTIF(Voertuig_Name2,I3) -> 9 | K105: =COUNTIF(Voertuig_Name,K3) -> 9 | M105: =COUNTIF(Voertuig_Name,M3) -> 9
C106: UPDATE / BEWAAR VOERTUIGPROFIEL →
C107: BRANDSTOFSPECIFICATIE | I107: Referentie | K107: Alternatief 1 | M107: Alternatief 2
C108: Brandstofsoort | I108: =IFERROR(HLOOKUP(Referentie,Brandstofprofielen,3,FALSE),"n.v.t.") -> Diesel | K108: =IFERROR(HLOOKUP(Alternatief1,Brandstofprofielen,3,FALSE),"n.v.t.") -> Elektr | M108: =IFERROR(HLOOKUP(Alternatief2,Brandstofprofielen,3,FALSE),"n.v.t.") -> Elektr
C109: Brandstofprijs (EUR per eenheid): | H109: =IF(-I123>I109,"→","") ->  | I109: 1 | J109: =IF(OR(Switch_Alt1=0,K109=""),"",IF(-K123>K109,"→","")) ->  | K109: 0.1 | L109: =IF(OR(Switch_Alt2=0,M109=""),"",IF(-M123>M109,"→","")) ->  | M109: 0.1
C110: UPDATE / BEWAAR BRANDSTOFPRIJS →
C112: MAATREGELEN BEZIT | I112: Referentie | K112: Alternatief 1 | M112: Alternatief 2
C113: MIA (%): | I113: 0 | K113: 0 | M113: 0 | P113: OUTPUT IN KERNCIJFERS EN RATIO'S | AH113: INPUT: ALGEMENE PARAMETERS
C114: Vamil (%): | I114: 0 | K114: 0 | M114: 0 | U114: Referentie | W114: Alternatief 1 | Z114: Alternatief 2
C115: Investeringssubsidie (% aanschafprijs): | I115: 0 | K115: 0 | M115: 0 | Q115: =BE12&" "&Eenheid -> Personeelskosten (EUR/uur): | U115: =BG12 -> 25 | W115: =IF(Switch_Alt1=0,"n.v.t.",BH12) -> 25 | Z115: =IF(Switch_Alt2=0,"n.v.t.",BI12) -> 25 | AI115: Gem. aantal personen/voertuig: | AS115: 1
Q116: Afschrijving (EUR/uur): | U116: 3.13 | W116: 5 | Z116: 5 | AI116: Indirecte tijd (minuten/km): | AR116: =IF(S54>0,"→","") ->  | AS116: =60*(G79-Referentie!J26)/G75 -> 2
C117: MAATREGELEN GEBRUIK | I117: Referentie | K117: Alternatief 1 | M117: Alternatief 2 | Q117: Brandstofkosten (EUR/uur): | U117: 2.5 | W117: 1 | Z117: 1.2 | AI117: Arbeidskosten (EUR/uur): | AS117: 25
C118: Inzet | D118: Inzet APV-gebied buiten APV-tijden (%): | I118: =G78 -> 0 | K118: 0 | M118: 1 | Q118: Rente (EUR/uur): | U118: 0.35 | W118: 0.68 | Z118: 0.68 | AI118: Effectieve VpB (%): | AS118: 0.25
D119: Aantal voertuiguren per jaar (uren): | I119: =G79 -> 2000 | J119: =IF(Switch_Alt1=0,"",IF(K119=0,"→","")) ->  | K119: 2000 | L119: =IF(Switch_Alt2=0,"",IF(M119=0,"→","")) ->  | M119: 2000 | Q119: Onderhoudskosten (EUR/uur): | U119: 0 | W119: 0 | Z119: 0 | AI119: Nominale marktrente (%): | AR119: =IF(Rente_nominaal<Inflatie,"→","") ->  | AS119: 0.04
C120: Δ Voertuigbelasting (EUR/jaar) | H120: =IF(-I120>I96,"→","") ->  | I120: 0 | J120: =IF(OR(Switch_Alt1=0,K96=""),"",IF(-K120>K96,"→","")) ->  | K120: 0 | L120: =IF(OR(Switch_Alt2=0,M96=""),"",IF(-M120>M96,"→","")) ->  | M120: 0 | Q120: Verzekeringen (EUR/uur): | U120: 0 | W120: 0 | Z120: 0 | AI120: Inflatie (%): | AR120: =IF(COUNTIF(H128,"→")+COUNTIF(J128,"→")+COUNTIF(L128,"→")+COUNTIF(AR119,"→")>0,"→","") ->  | AS120: 0.015
C121: Δ Overige kosten (EUR/jaar): | H121: =IF(-I121>I97,"→","") ->  | I121: 0 | J121: =IF(OR(Switch_Alt1=0,K97=""),"",IF(-K121>K97,"→","")) ->  | K121: 0 | L121: =IF(OR(Switch_Alt2=0,M97=""),"",IF(-M121>M97,"→","")) ->  | M121: 0 | Q121: Voertuigbelastingen (EUR/uur): | U121: 0 | W121: 0 | Z121: 0 | AI121: Maatsch. kosten CO2 (EUR/ton): | AS121: 26
C122: Δ Kosten ontheffingen (EUR/jaar): | H122: =IF(-I122>I98,"→","") ->  | I122: 0 | J122: =IF(OR(Switch_Alt1=0,K98=""),"",IF(-K122>K98,"→","")) ->  | K122: 0 | L122: =IF(OR(Switch_Alt2=0,M98=""),"",IF(-M122>M98,"→","")) ->  | M122: 0 | Q122: Overige kosten (EUR/uur): | U122: 0 | W122: 0 | Z122: 0 | AI122: Maatsch. kosten NOx (EUR/kg): | AS122: 11
C123: Δ Brandstofprijs (EUR per eenheid): | H123: =IF(-I123>I109,"→","") ->  | I123: 0 | J123: =IF(OR(Switch_Alt1=0,K109=""),"",IF(-K123>K109,"→","")) ->  | K123: 0 | L123: =IF(OR(Switch_Alt2=0,M123=""),"",IF(-M123>M109,"→","")) ->  | M123: 0 | Q123: Ontheffingen (EUR/uur): | U123: 0 | W123: 0 | Z123: 0 | AI123: Maatsch. kosten PM (EUR/kg): | AS123: 585
C124: Exploitatiesubsidie (EUR): | I124: 0 | K124: 0 | M124: 0 | Q124: ="Totale kritische distributiekosten "&Eenheid -> Totale kritische distributiekosten (EUR/uur): | U124: =SUM(U115:U123) -> 30.98 | W124: =IF(Switch_Alt1=0,"n.v.t.",SUM(W115:W123)) -> 31.68 | Z124: =IF(Switch_Alt2=0,"n.v.t.",SUM(Z115:Z123)) -> 31.88 | AI124: Maatsch. kn geluid (eurocent/km): | AS124: =4.3 -> 4.3
Q125: Reëel emissierendem. nieuwe maatregelen (%): | U125: n.v.t. | W125: =IF(Switch_Alt1=0,"n.v.t.",IFERROR('Alternatief 1'!H130/-'Alternatief 1'!H129,"n.v.t.")) -> n.v.t. | Z125: =IF(Switch_Alt2=0,"n.v.t.",IFERROR('Alternatief 2'!H130/-'Alternatief 2'!H129,"n.v.t.")) -> n.v.t. | AI125: Snelheid tijdens APV-tijden (km/u): | AS125: 15
C126: MAATREGELEN FINANCIERING | I126: Referentie | K126: Alternatief 1 | M126: Alternatief 2 | Q126: IRR emissierendem. nieuwe maatregelen (%): | U126: n.v.t. | W126: =IF(Switch_Alt1=0,"n.v.t.",'Alternatief 1'!E130) -> n.v.t. | Z126: =IF(Switch_Alt2=0,"n.v.t.",'Alternatief 2'!E130) -> n.v.t. | AI126: Snelheid overig (km/u): | AS126: 20
C127: Zachte leningen (% financieringsbehoefte): | I127: 0 | K127: 0 | M127: 0 | Q127: Inzet voertuig | S127: afstand (km): | U127: =Inzet_voertuig_Ref -> 20000 | W127: =IF(Switch_Alt1=0,"n.v.t.",Inzet_voertuig_Alt1) -> 20000 | Z127: =IF(Switch_Alt2=0,"n.v.t.",Inzet_voertuig_Alt2) -> 24000 | AI127: Reële maatsch. discontovoet (%): | AS127: 0.04
C128: Rente op zachte leningen (%): | H128: =IF(AND(I127>0,I128<Inflatie),"→","") ->  | I128: 0 | J128: =IF(Switch_Alt1=0,"",IF(AND(K127>0,K128<Inflatie),"→","")) ->  | K128: 0 | L128: =IF(Switch_Alt2=0,"",IF(AND(M127>0,M128<Inflatie),"→","")) ->  | M128: 0 | S128: tijd (uren): | U128: =Referentie!H30 -> 2000 | W128: =IF(Switch_Alt1=0,"n.v.t.",'Alternatief 1'!H30) -> 2000 | Z128: =IF(Switch_Alt2=0,"n.v.t.",'Alternatief 2'!H30) -> 2000

Sheet Voertuig_Profielen
H2: =Profielgroep1 -> Referentie | J2: =Profielgroep2 -> Alt1 | L2: =Profielgroep3 -> Alt2 | O2: Dubbeltelling categorienamen
H3: Nummers | I3: Duiding | J3: Nummers | K3: Duiding | L3: Nummers | M3: Duiding | O3: =Profielgroep1 -> Referentie | P3: =COUNTIF($O$3:$O$5,O3) -> 1
I4: Nieuw Profiel | K4: Nieuw Profiel | M4: Nieuw Profiel | O4: =Profielgroep2 -> Alt1 | P4: =COUNTIF($O$3:$O$5,O4) -> 1
H5: =IFERROR(SMALL(Cat1_Nummers,1),"") -> 1 | I5: =IF(H5="","",INDEX(Cat1_Duiding,1,MATCH(H5,Cat1_Nummers,FALSE))) -> EUR6 | J5: =IFERROR(SMALL(Cat2_Nummers,1),"") -> 1 | K5: =IF(J5="","",INDEX(Cat2_Duiding,1,MATCH(J5,Cat2_Nummers,FALSE))) -> Elek1 | L5: =IFERROR(SMALL(Cat3_Nummers,1),"") ->  | M5: =IF(L5="","",INDEX(Cat3_Duiding,1,MATCH(L5,Cat3_Nummers,FALSE))) ->  | O5: =Profielgroep3 -> Alt2 | P5: =COUNTIF($O$3:$O$5,O5) -> 1
H6: =IFERROR(SMALL(Cat1_Nummers,2),"") ->  | J6: =IFERROR(SMALL(Cat2_Nummers,2),"") ->  | L6: =IFERROR(SMALL(Cat3_Nummers,2),"") ->  | O6: Fout | P6: =COUNTIF(P3:P5,">1") -> 0
H7: =IFERROR(SMALL(Cat1_Nummers,3),"") ->  | J7: =IFERROR(SMALL(Cat2_Nummers,3),"") ->  | L7: =IFERROR(SMALL(Cat3_Nummers,3),"") -> 
H8: =IFERROR(SMALL(Cat1_Nummers,4),"") ->  | J8: =IFERROR(SMALL(Cat2_Nummers,4),"") ->  | L8: =IFERROR(SMALL(Cat3_Nummers,4),"") -> 
H9: =IFERROR(SMALL(Cat1_Nummers,5),"") ->  | J9: =IFERROR(SMALL(Cat2_Nummers,5),"") ->  | L9: =IFERROR(SMALL(Cat3_Nummers,5),"") -> 
H10: =IFERROR(SMALL(Cat1_Nummers,6),"") ->  | J10: =IFERROR(SMALL(Cat2_Nummers,6),"") ->  | L10: =IFERROR(SMALL(Cat3_Nummers,6),"") -> 
H11: =IFERROR(SMALL(Cat1_Nummers,7),"") ->  | J11: =IFERROR(SMALL(Cat2_Nummers,7),"") ->  | L11: =IFERROR(SMALL(Cat3_Nummers,7),"") -> 
H12: =IFERROR(SMALL(Cat1_Nummers,8),"") ->  | J12: =IFERROR(SMALL(Cat2_Nummers,8),"") ->  | L12: =IFERROR(SMALL(Cat3_Nummers,8),"") -> 
H13: =IFERROR(SMALL(Cat1_Nummers,9),"") ->  | J13: =IFERROR(SMALL(Cat2_Nummers,9),"") ->  | L13: =IFERROR(SMALL(Cat3_Nummers,9),"") -> 
H14: =IFERROR(SMALL(Cat1_Nummers,10),"") ->  | J14: =IFERROR(SMALL(Cat2_Nummers,10),"") ->  | L14: =IFERROR(SMALL(Cat3_Nummers,10),"") -> 
H15: =10-COUNTBLANK((H5:H14))+1 -> 2 | J15: =10-COUNTBLANK((J5:J14))+1 -> 2 | L15: =10-COUNTBLANK((L5:L14))+1 -> 1
D17: Dubbeltelling profielnamen | S17: Fout
D18: Referentie | H18: =COUNTIF(Cat1_Duiding,H42) -> 1 | I18: 0 | J18: 0 | K18: 0 | L18: 0 | M18: 0 | N18: 0 | O18: 0 | P18: 0 | Q18: 0 | S18: =COUNTIF(H18:Q18,">1") -> 0
D19: Alt1 | H19: =COUNTIF(Cat2_Duiding,H66) -> 1 | I19: 0 | J19: 0 | K19: 0 | L19: 0 | M19: 0 | N19: 0 | O19: 0 | P19: 0 | Q19: 0 | S19: =COUNTIF(H19:Q19,">1") -> 0
D20: Alt2 | H20: =COUNTIF(Cat3_Duiding,H90) -> 0 | I20: 0 | J20: 0 | K20: 0 | L20: 0 | M20: 0 | N20: 0 | O20: 0 | P20: 0 | Q20: 0 | S20: =COUNTIF(H20:Q20,">1") -> 0
D22: Incomplete profielen | S22: Fout
D23: Referentie | F23: =COUNTBLANK(Profielgroep1) -> 0 | H23: =IF(AND(COUNTBLANK(H42)=0,COUNTBLANK(H44:H57)>0),1,0) -> 0 | I23: 0 | J23: 0 | K23: 0 | L23: 0 | M23: 0 | N23: 0 | O23: 0 | P23: 0 | Q23: 0 | R23: =COUNTBLANK(Cat1_1) -> 0 | S23: =SUM(H23:Q23) -> 0
D24: Alt1 | F24: =COUNTBLANK(Profielgroep2)*(10-COUNTBLANK(Cat2_Duiding)) -> 0 | H24: =IF(AND(COUNTBLANK(H66)=0,COUNTBLANK(H68:H81)>0),1,0) -> 0 | I24: 0 | J24: 0 | K24: 0 | L24: 0 | M24: 0 | N24: 0 | O24: 0 | P24: 0 | Q24: 0 | S24: =SUM(H24:Q24) -> 0
D25: Alt2 | F25: =COUNTBLANK(Profielgroep3)*(10-COUNTBLANK(Cat3_Duiding)) -> 0 | H25: =IF(AND(COUNTBLANK(H90)=0,COUNTBLANK(H92:H105)>0),1,0) -> 0 | I25: 0 | J25: 0 | K25: 0 | L25: 0 | M25: 0 | N25: 0 | O25: 0 | P25: 0 | Q25: 0 | S25: =SUM(H25:Q25) -> 0
D27: Check brandstofnaam | S27: Fout
D28: Referentie | H28: =IF(AND(H44<>"",COUNTIF(Brandstof_Duiding,Voertuig_Profielen!H44)=0),1,0) -> 0 | I28: =IF(AND(I44<>"",COUNTIF(Brandstof_Duiding,Voertuig_Profielen!I44)=0),1,0) -> 0 | J28: =IF(AND(J44<>"",COUNTIF(Brandstof_Duiding,Voertuig_Profielen!J44)=0),1,0) -> 0 | K28: =IF(AND(K44<>"",COUNTIF(Brandstof_Duiding,Voertuig_Profielen!K44)=0),1,0) -> 0 | L28: =IF(AND(L44<>"",COUNTIF(Brandstof_Duiding,Voertuig_Profielen!L44)=0),1,0) -> 0 | M28: =IF(AND(M44<>"",COUNTIF(Brandstof_Duiding,Voertuig_Profielen!M44)=0),1,0) -> 0 | N28: =IF(AND(N44<>"",COUNTIF(Brandstof_Duiding,Voertuig_Profielen!N44)=0),1,0) -> 0 | O28: =IF(AND(O44<>"",COUNTIF(Brandstof_Duiding,Voertuig_Profielen!O44)=0),1,0) -> 0 | P28: =IF(AND(P44<>"",COUNTIF(Brandstof_Duiding,Voertuig_Profielen!P44)=0),1,0) -> 0 | Q28: =IF(AND(Q44<>"",COUNTIF(Brandstof_Duiding,Voertuig_Profielen!Q44)=0),1,0) -> 0 | R28: =IF(AND(COUNTIF(Brandstof_Duiding,Voertuig_Profielen!R44)=0),1,0) -> 1 | S28: =SUM(H28:Q28) -> 0
D29: Alt1 | H29: =IF(AND(H68<>"",COUNTIF(Brandstof_Duiding,Voertuig_Profielen!H68)=0),1,0) -> 0 | I29: =IF(AND(I68<>"",COUNTIF(Brandstof_Duiding,Voertuig_Profielen!I68)=0),1,0) -> 0 | J29: =IF(AND(J68<>"",COUNTIF(Brandstof_Duiding,Voertuig_Profielen!J68)=0),1,0) -> 0 | K29: =IF(AND(K68<>"",COUNTIF(Brandstof_Duiding,Voertuig_Profielen!K68)=0),1,0) -> 0 | L29: =IF(AND(L68<>"",COUNTIF(Brandstof_Duiding,Voertuig_Profielen!L68)=0),1,0) -> 0 | M29: =IF(AND(M68<>"",COUNTIF(Brandstof_Duiding,Voertuig_Profielen!M68)=0),1,0) -> 0 | N29: =IF(AND(N68<>"",COUNTIF(Brandstof_Duiding,Voertuig_Profielen!N68)=0),1,0) -> 0 | O29: =IF(AND(O68<>"",COUNTIF(Brandstof_Duiding,Voertuig_Profielen!O68)=0),1,0) -> 0 | P29: =IF(AND(P68<>"",COUNTIF(Brandstof_Duiding,Voertuig_Profielen!P68)=0),1,0) -> 0 | Q29: =IF(AND(Q68<>"",COUNTIF(Brandstof_Duiding,Voertuig_Profielen!Q68)=0),1,0) -> 0 | S29: =SUM(H29:Q29) -> 0
D30: Alt2 | H30: =IF(AND(H92<>"",COUNTIF(Brandstof_Duiding,Voertuig_Profielen!H92)=0),1,0) -> 0 | I30: =IF(AND(I92<>"",COUNTIF(Brandstof_Duiding,Voertuig_Profielen!I92)=0),1,0) -> 0 | J30: =IF(AND(J92<>"",COUNTIF(Brandstof_Duiding,Voertuig_Profielen!J92)=0),1,0) -> 0 | K30: =IF(AND(K92<>"",COUNTIF(Brandstof_Duiding,Voertuig_Profielen!K92)=0),1,0) -> 0 | L30: =IF(AND(L92<>"",COUNTIF(Brandstof_Duiding,Voertuig_Profielen!L92)=0),1,0) -> 0 | M30: =IF(AND(M92<>"",COUNTIF(Brandstof_Duiding,Voertuig_Profielen!M92)=0),1,0) -> 0 | N30: =IF(AND(N92<>"",COUNTIF(Brandstof_Duiding,Voertuig_Profielen!N92)=0),1,0) -> 0 | O30: =IF(AND(O92<>"",COUNTIF(Brandstof_Duiding,Voertuig_Profielen!O92)=0),1,0) -> 0 | P30: =IF(AND(P92<>"",COUNTIF(Brandstof_Duiding,Voertuig_Profielen!P92)=0),1,0) -> 0 | Q30: =IF(AND(Q92<>"",COUNTIF(Brandstof_Duiding,Voertuig_Profielen!Q92)=0),1,0) -> 0 | S30: =SUM(H30:Q30) -> 0
D38: Referentie | H38: Referentievoertuigen
C40: VERWIJDER PROFIEL→ → → | H40: =IF(OR(H23=1,H18>1),"↓ ↓","") -> 
H41: =IF(H42<>"",1,"") -> 1 | I41: =IF(I42<>"",2,"") ->  | J41: =IF(J42<>"",3,"") ->  | K41: =IF(K42<>"",4,"") ->  | L41: =IF(L42<>"",5,"") ->  | M41: =IF(M42<>"",6,"") ->  | N41: =IF(N42<>"",7,"") ->  | O41: =IF(O42<>"",8,"") ->  | P41: =IF(P42<>"",9,"") ->  | Q41: =IF(Q42<>"",10,"") -> 
C42: Voertuig profielnaam: | H42: EUR6
C44: =Dashboard!C89 -> Brandstofprofiel: | H44: DSL1 | U44: Type Emissie:
C45: =Dashboard!C90 -> Aanschafprijs voertuig (EUR): | H45: 50000
C46: =Dashboard!C91 -> Gebruikstermijn (hele jaren): | H46: 8 | U46: CO2: | V46: Well-to-Wheel (WtW)
C47: =Dashboard!C92 -> Restwaarde (EUR): | H47: 0 | U47: NOx: | V47: Tank-to-Wheel (TtW)
C48: =Dashboard!C93 -> Gemiddeld verbruik (per 100 km): | H48: 25 | U48: PM: | V48: Tank-to-Wheel (TtW)
C49: =Dashboard!C94 -> Onderhoud (EUR/jaar): | H49: 0
C50: =Dashboard!C95 -> Verzekeringen (EUR/jaar): | H50: 0
C51: =Dashboard!C96 -> Voertuigbelasting (EUR/jaar): | H51: 0
C52: =Dashboard!C97 -> Overige kosten (EUR/jaar): | H52: 0
C53: =Dashboard!C98 -> Kosten ontheffingen: | H53: 0
C54: =Dashboard!C99 -> WtW emissie CO2 (kg/eenheid brandstof): | H54: 3.23
C55: =Dashboard!C100 -> TtW emissie NOx (g/eenheid brandstof): | H55: 2.061
C56: =Dashboard!C101 -> TtW emissie PM (g/eenheid brandstof): | H56: 0.357
C57: =Dashboard!C102 -> Gemiddelde emissie geluid (dBA): | H57: 78
H58: 3
H59: 3
F61: ❶
D62: Alt1 | H62: Alternatieve voertuigen 1
C64: VERWIJDER PROFIEL→ → → | H64: =IF(OR(H24=1,H19>1),"↓ ↓","") -> 
H65: =IF(H66<>"",1,"") -> 1 | I65: =IF(I66<>"",2,"") ->  | J65: =IF(J66<>"",3,"") ->  | K65: =IF(K66<>"",4,"") ->  | L65: =IF(L66<>"",5,"") ->  | M65: =IF(M66<>"",6,"") ->  | N65: =IF(N66<>"",7,"") ->  | O65: =IF(O66<>"",8,"") ->  | P65: =IF(P66<>"",9,"") ->  | Q65: =IF(Q66<>"",10,"") -> 
C66: Voertuig profielnaam: | H66: Elek1
C68: =C44 -> Brandstofprofiel: | H68: Elek
C69: Aanschafprijs voertuig (EUR): | H69: 100000 | T69: =IF(COUNTIF(G60,"←")+COUNTIF(G88,"←")>0,"ERRORS DETECTED! Check marked fields","") -> 
C70: Gebruikstermijn (hele jaren): | H70: 10
C71: Restwaarde (EUR): | H71: 8
C72: Gemiddeld verbruik (per 100 km): | H72: 100
C73: Onderhoud (EUR/jaar): | H73: 0
C74: Verzekeringen (EUR/jaar): | H74: 0
C75: Voertuigbelasting (EUR/jaar): | H75: 0 | T75: =IF(P6>0,"DE CATEGORIENAMEN ZIJN NIET UNIEK! WIJZIG EEN OF MEER NAMEN",IF(SUM(F23:F25)>0,"VOORZIE DE GEMARKEERDE CATEGORIEËN VAN EEN NAAM",IF(SUM(S18:S20)>0,"NIET-UNIEKE PROFIELNAMEN! Check de gemarkeerde profielen en pas een of meer namen aan.",IF(SUM(S23:S25)>0,"ER ZIJN INCOMPLETE PROFIELEN! Zorg dat alle velden van de met oranje pijlen gemarkeerde profielen ingevuld zijn!",IF(SUM(S28:S30)<>0,"NIET BESTAANDE BRANDSTOFPROFIELEN! Voorzie de gemarkeerde velden van een bestaand brandstofprofiel.","Status: OK"))))) -> Status: OK
C76: Overige kosten (EUR/jaar): | H76: 0
C77: Kosten ontheffingen: | H77: 0
C78: WtW emissie CO2 (kg/eenheid brandstof): | H78: 0
C79: TtW emissie NOx (g/eenheid brandstof): | H79: 0
C80: TtW emissie PM (g/eenheid brandstof): | H80: 0.078
C81: Gemiddelde emissie geluid (dBA): | H81: 70
I82: 2
I83: 2
F85: ❷
D86: Alt2 | H86: Alternatieve voertuigen 2
C88: VERWIJDER PROFIEL→ → → | H88: =IF(OR(H25=1,H20>1),"↓ ↓","") -> 
H89: =IF(H90<>"",1,"") ->  | I89: =IF(I90<>"",2,"") ->  | J89: =IF(J90<>"",3,"") ->  | K89: =IF(K90<>"",4,"") ->  | L89: =IF(L90<>"",5,"") ->  | M89: =IF(M90<>"",6,"") ->  | N89: =IF(N90<>"",7,"") ->  | O89: =IF(O90<>"",8,"") ->  | P89: =IF(P90<>"",9,"") ->  | Q89: =IF(Q90<>"",10,"") -> 
C90: Voertuig profielnaam:
C92: =C44 -> Brandstofprofiel:
C93: Aanschafprijs voertuig (EUR):
C94: Gebruikstermijn (hele jaren):
C95: Restwaarde (EUR):
C96: Gemiddeld verbruik (per 100 km):
C97: Onderhoud (EUR/jaar):
C98: Verzekeringen (EUR/jaar):
C99: Voertuigbelasting (EUR/jaar):
C100: Overige kosten (EUR/jaar):
C101: Kosten ontheffingen:
C102: WtW emissie CO2 (kg/eenheid brandstof):
C103: TtW emissie NOx (g/eenheid brandstof):
C104: TtW emissie PM (g/eenheid brandstof):
C105: Gemiddelde emissie geluid (dBA):
K107: u
K108: u
K109: u
K110: 0

Sheet Brandstof_Profielen
G2: Verbruikseenheid | I2: Brandstofsoorten
G3: kilogram | I3: Nummers | J3: Duiding
G4: liter | I4: =IFERROR(SMALL(Brandstof_Nummers,1),"") -> 1 | J4: =IF(I4="","",INDEX(Brandstof_Duiding,1,MATCH(I4,Brandstof_Nummers,FALSE))) -> DSL1
G5: kWh | I5: =IFERROR(SMALL(Brandstof_Nummers,2),"") -> 2 | J5: Elek
I6: =IFERROR(SMALL(Brandstof_Nummers,3),"") -> 
I7: =IFERROR(SMALL(Brandstof_Nummers,4),"") -> 
I8: =IFERROR(SMALL(Brandstof_Nummers,5),"") -> 
I9: =IFERROR(SMALL(Brandstof_Nummers,6),"") -> 
I10: =IFERROR(SMALL(Brandstof_Nummers,7),"") -> 
I11: =IFERROR(SMALL(Brandstof_Nummers,8),"") -> 
I12: =IFERROR(SMALL(Brandstof_Nummers,9),"") -> 
I13: =IFERROR(SMALL(Brandstof_Nummers,10),"") -> 
I14: =10-COUNTBLANK((I4:I13)) -> 2
D16: Fouten | R16: FOUT
D17: Dubbeltelling | G17: =COUNTIF(Brandstof_Duiding,G29) -> 1 | H17: 1 | I17: 0 | J17: 0 | K17: 0 | L17: 0 | M17: 0 | N17: 0 | O17: 0 | P17: 0 | R17: =COUNTIF(G17:P17,">1") -> 0
D18: Incompleet | G18: =IF(AND(COUNTBLANK(G29)=0,COUNTBLANK(G31:G33)>0),1,0) -> 0 | H18: =IF(AND(COUNTBLANK(H29)=0,COUNTBLANK(H31:H33)>0),1,0) -> 0 | I18: 0 | J18: 0 | K18: 0 | L18: 0 | M18: 0 | N18: 0 | O18: 0 | P18: 0 | R18: =SUM(G18:P18) -> 0
D25: Brandstofprofielen
D27: VERWIJDER PROFIEL→ → → | G27: =IF(OR(G18=1,G17>1),"â â","") ->  | H27: =IF(OR(H18=1,H17>1),"â â","") -> 
G28: =IF(G31<>"",1,"") -> 1 | H28: =IF(H31<>"",2,"") -> 2 | I28: =IF(I31<>"",3,"") ->  | J28: =IF(J31<>"",4,"") ->  | K28: =IF(K31<>"",5,"") ->  | L28: =IF(L31<>"",6,"") ->  | M28: =IF(M31<>"",7,"") ->  | N28: =IF(N31<>"",8,"") ->  | O28: =IF(O31<>"",9,"") ->  | P28: =IF(P31<>"",10,"") -> 
D29: Brandstof profielnaam: | G29: DSL1 | H29: Elek
D31: Brandstofsoort: | G31: Diesel | H31: Elektr | S31: =IF(R17>0,"NIET-UNIEKE PROFIELNAMEN! Check de met gele pijlen gemarkeerde profielen en pas een of meer namen aan.",IF(R18>0,"ER ZIJN INCOMPLETE PROFIELEN! Zorg dat alle velden van de met oranje pijlen gemarkeerde profielen ingevuld zijn!","Status: OK")) -> Status: OK
D32: Verbruikseenheid: | G32: liter | H32: kWh
D33: Brandstofprijs (EUR/eenheid): | G33: 1 | H33: 0.1

Sheet Referentie
I2: =I19 -> 0 | J2: =J19 -> 1 | K2: 2 | L2: 3 | M2: 4 | N2: 5 | O2: 6 | P2: 7 | Q2: 8 | R2: 9 | S2: 10 | T2: =T19 -> 11 | U2: =U19 -> 12 | V2: =V19 -> 13 | W2: =W19 -> 14 | X2: =X19 -> 15
B4: Jaar meetellen regulier | I4: 1 | J4: =IF(J2<=Dashboard!$I91,1,0) -> 1 | K4: =IF(K2<=Dashboard!$I91,1,0) -> 1 | L4: =IF(L2<=Dashboard!$I91,1,0) -> 1 | M4: =IF(M2<=Dashboard!$I91,1,0) -> 1 | N4: =IF(N2<=Dashboard!$I91,1,0) -> 1 | O4: =IF(O2<=Dashboard!$I91,1,0) -> 1 | P4: =IF(P2<=Dashboard!$I91,1,0) -> 1 | Q4: =IF(Q2<=Dashboard!$I91,1,0) -> 1 | R4: =IF(R2<=Dashboard!$I91,1,0) -> 0 | S4: =IF(S2<=Dashboard!$I91,1,0) -> 0 | T4: =IF(T2<=Dashboard!$I91,1,0) -> 0 | U4: =IF(U2<=Dashboard!$I91,1,0) -> 0 | V4: =IF(V2<=Dashboard!$I91,1,0) -> 0 | W4: =IF(W2<=Dashboard!$I91,1,0) -> 0 | X4: =IF(X2<=Dashboard!$I91,1,0) -> 0
B5: Jaar metellen financieringen | I5: =IF(I6=1,0,I4) -> 1 | J5: 1 | K5: 1 | L5: 1 | M5: 1 | N5: 1 | O5: 1 | P5: 1 | Q5: 0 | R5: 0 | S5: 0 | T5: 0 | U5: 0 | V5: 0 | W5: 0 | X5: 0
B6: Laatste jaar | I6: =IF(AND(I4=1,J4=0),1,0) -> 0 | J6: 0 | K6: 0 | L6: 0 | M6: 0 | N6: 0 | O6: 0 | P6: 0 | Q6: 1 | R6: 0 | S6: 0 | T6: 0 | U6: 0 | V6: 0 | W6: 0 | X6: 0
B7: Inzet voertuig | J7: =J4 -> 1 | K7: =K4 -> 1 | L7: 1 | M7: 1 | N7: 1 | O7: 1 | P7: 1 | Q7: 1 | R7: 0 | S7: 0 | T7: 0 | U7: 0 | V7: 0 | W7: 0 | X7: 0
B9: Bedrijfseconomische afschrijving | I9: 0 | J9: =IFERROR(1/Dashboard!$I91*J4,0) -> 0.125 | K9: =IFERROR(1/Dashboard!$I91*K4,0) -> 0.125 | L9: =IFERROR(1/Dashboard!$I91*L4,0) -> 0.125 | M9: =IFERROR(1/Dashboard!$I91*M4,0) -> 0.125 | N9: =IFERROR(1/Dashboard!$I91*N4,0) -> 0.125 | O9: =IFERROR(1/Dashboard!$I91*O4,0) -> 0.125 | P9: =IFERROR(1/Dashboard!$I91*P4,0) -> 0.125 | Q9: =IFERROR(1/Dashboard!$I91*Q4,0) -> 0.125 | R9: =IFERROR(1/Dashboard!$I91*R4,0) -> 0 | S9: =IFERROR(1/Dashboard!$I91*S4,0) -> 0 | T9: =IFERROR(1/Dashboard!$I91*T4,0) -> 0 | U9: =IFERROR(1/Dashboard!$I91*U4,0) -> 0 | V9: =IFERROR(1/Dashboard!$I91*V4,0) -> 0 | W9: =IFERROR(1/Dashboard!$I91*W4,0) -> 0 | X9: =IFERROR(1/Dashboard!$I91*X4,0) -> 0
B10: Fiscale afschrijving | I10: =MAX(Dashboard!I114,Referentie!I9) -> 0 | J10: =IFERROR((1-I10)/SUM(J4:W4)*J4,0) -> 0.125 | K10: =J10*K4 -> 0.125 | L10: 0.125 | M10: 0.125 | N10: 0.125 | O10: 0.125 | P10: 0.125 | Q10: 0.125 | R10: 0 | S10: 0 | T10: 0 | U10: 0 | V10: 0 | W10: 0 | X10: 0
B12: Aantal referentievoertuigen voor vergelijking | I12: n.v.t.
J15: SPECIFICATIE REFERENTIE
B17: =IF(Referentie_Naam="","",Referentie_Naam) -> EUR6 | I17: =IF(SUM(Dashboard!S53:S62)>0,"Dit overzicht is mogelijk niet correct als gevolg van incomplete of foutieve invoer, check de foutmeldingen op werkblad 'Dashboard'","") -> 
B19: Kerndata | H19: Totaal | I19: 0 | J19: 1 | K19: =J19+1 -> 2 | L19: 3 | M19: 4 | N19: 5 | O19: 6 | P19: 7 | Q19: 8 | R19: 9 | S19: 10 | T19: 11 | U19: 12 | V19: 13 | W19: 14 | X19: 15
B21: Aantal kilometers | H21: =SUM(I21:X21) -> 160000 | I21: 0 | J21: =Inzet_voertuig_Ref*J4 -> 20000 | K21: 20000 | L21: 20000 | M21: 20000 | N21: 20000 | O21: 20000 | P21: 20000 | Q21: 20000 | R21: 0 | S21: 0 | T21: 0 | U21: 0 | V21: 0 | W21: 0 | X21: 0
B22: - waarvan binnen APV-tijden | H22: 160000 | I22: =I21*Dashboard!$G76*(1-Dashboard!$I118) -> 0 | J22: =J21*Dashboard!$G76*(1-Dashboard!$I118) -> 20000 | K22: =K21*Dashboard!$G76*(1-Dashboard!$I118) -> 20000 | L22: =L21*Dashboard!$G76*(1-Dashboard!$I118) -> 20000 | M22: =M21*Dashboard!$G76*(1-Dashboard!$I118) -> 20000 | N22: =N21*Dashboard!$G76*(1-Dashboard!$I118) -> 20000 | O22: =O21*Dashboard!$G76*(1-Dashboard!$I118) -> 20000 | P22: =P21*Dashboard!$G76*(1-Dashboard!$I118) -> 20000 | Q22: =Q21*Dashboard!$G76*(1-Dashboard!$I118) -> 20000 | R22: =R21*Dashboard!$G76*(1-Dashboard!$I118) -> 0 | S22: =S21*Dashboard!$G76*(1-Dashboard!$I118) -> 0 | T22: =T21*Dashboard!$G76*(1-Dashboard!$I118) -> 0 | U22: =U21*Dashboard!$G76*(1-Dashboard!$I118) -> 0 | V22: =V21*Dashboard!$G76*(1-Dashboard!$I118) -> 0 | W22: =W21*Dashboard!$G76*(1-Dashboard!$I118) -> 0 | X22: =X21*Dashboard!$G76*(1-Dashboard!$I118) -> 0
B23: - waarvan buiten APV-tijden | H23: 0 | I23: =I21*Dashboard!$G76*Dashboard!$I118 -> 0 | J23: =J21*Dashboard!$G76*Dashboard!$I118 -> 0 | K23: =K21*Dashboard!$G76*Dashboard!$I118 -> 0 | L23: =L21*Dashboard!$G76*Dashboard!$I118 -> 0 | M23: =M21*Dashboard!$G76*Dashboard!$I118 -> 0 | N23: =N21*Dashboard!$G76*Dashboard!$I118 -> 0 | O23: =O21*Dashboard!$G76*Dashboard!$I118 -> 0 | P23: =P21*Dashboard!$G76*Dashboard!$I118 -> 0 | Q23: =Q21*Dashboard!$G76*Dashboard!$I118 -> 0 | R23: =R21*Dashboard!$G76*Dashboard!$I118 -> 0 | S23: =S21*Dashboard!$G76*Dashboard!$I118 -> 0 | T23: =T21*Dashboard!$G76*Dashboard!$I118 -> 0 | U23: =U21*Dashboard!$G76*Dashboard!$I118 -> 0 | V23: =V21*Dashboard!$G76*Dashboard!$I118 -> 0 | W23: =W21*Dashboard!$G76*Dashboard!$I118 -> 0 | X23: =X21*Dashboard!$G76*Dashboard!$I118 -> 0
B24: - waarvan buiten APV-gebieden | H24: 0 | I24: =I21*(1-Dashboard!$G76) -> 0 | J24: =J21*(1-Dashboard!$G76) -> 0 | K24: =K21*(1-Dashboard!$G76) -> 0 | L24: =L21*(1-Dashboard!$G76) -> 0 | M24: =M21*(1-Dashboard!$G76) -> 0 | N24: =N21*(1-Dashboard!$G76) -> 0 | O24: =O21*(1-Dashboard!$G76) -> 0 | P24: =P21*(1-Dashboard!$G76) -> 0 | Q24: =Q21*(1-Dashboard!$G76) -> 0 | R24: =R21*(1-Dashboard!$G76) -> 0 | S24: =S21*(1-Dashboard!$G76) -> 0 | T24: =T21*(1-Dashboard!$G76) -> 0 | U24: =U21*(1-Dashboard!$G76) -> 0 | V24: =V21*(1-Dashboard!$G76) -> 0 | W24: =W21*(1-Dashboard!$G76) -> 0 | X24: =X21*(1-Dashboard!$G76) -> 0
B25: ="Brandstofverbruik ("&HLOOKUP(Referentie,Brandstofprofielen,4, FALSE)&")" -> Brandstofverbruik (liter) | H25: 40000 | I25: 0 | J25: =J21/100*Dashboard!$I93 -> 5000 | K25: =K21/100*Dashboard!$I93 -> 5000 | L25: =L21/100*Dashboard!$I93 -> 5000 | M25: =M21/100*Dashboard!$I93 -> 5000 | N25: =N21/100*Dashboard!$I93 -> 5000 | O25: =O21/100*Dashboard!$I93 -> 5000 | P25: =P21/100*Dashboard!$I93 -> 5000 | Q25: =Q21/100*Dashboard!$I93 -> 5000 | R25: =R21/100*Dashboard!$I93 -> 0 | S25: =S21/100*Dashboard!$I93 -> 0 | T25: =T21/100*Dashboard!$I93 -> 0 | U25: =U21/100*Dashboard!$I93 -> 0 | V25: =V21/100*Dashboard!$I93 -> 0 | W25: =W21/100*Dashboard!$I93 -> 0 | X25: =X21/100*Dashboard!$I93 -> 0
B26: Aantal directe uren chauffeur | H26: 10666.66667 | I26: =I22/Snelheid_Venster+SUM(I23:I24)/Snelheid_Overig -> 0 | J26: 1333.333333 | K26: 1333.333333 | L26: 1333.333333 | M26: 1333.333333 | N26: 1333.333333 | O26: 1333.333333 | P26: 1333.333333 | Q26: 1333.333333 | R26: 0 | S26: 0 | T26: 0 | U26: 0 | V26: 0 | W26: 0 | X26: 0
B27: Aantal indirecte uren chauffeur | H27: 5333.333333 | I27: 0 | J27: =Indirecte_minuten/60*J21 -> 666.6666667 | K27: 666.6666667 | L27: 666.6666667 | M27: 666.6666667 | N27: 666.6666667 | O27: 666.6666667 | P27: 666.6666667 | Q27: 666.6666667 | R27: 0 | S27: 0 | T27: 0 | U27: 0 | V27: 0 | W27: 0 | X27: 0
B28: Aantal uren bijrijder(s) | H28: 0 | I28: 0 | J28: =(Bezetting-1)*SUM(J26:J27) -> 0 | K28: 0 | L28: 0 | M28: 0 | N28: 0 | O28: 0 | P28: 0 | Q28: 0 | R28: 0 | S28: 0 | T28: 0 | U28: 0 | V28: 0 | W28: 0 | X28: 0
B29: ="Brandstofprijs per "&Dashboard!I62&" (EUR)" -> Brandstofprijs per liter (EUR) | H29: =BrandstofprijsR+Dashboard!I123 -> 1
B30: Aantal uren per jaar | H30: =J26+J27 -> 2000
B32: Overzicht kosten | E32: EUR | G32: =IF(Per_uur=1,"Per uur","Per km") -> Per uur | H32: Totaal | I32: =I19 -> 0 | J32: 1 | K32: 2 | L32: 3 | M32: 4 | N32: 5 | O32: 6 | P32: 7 | Q32: 8 | R32: 9 | S32: 10 | T32: 11 | U32: 12 | V32: 13 | W32: 14 | X32: 15
B34: Brandstofkosten | G34: =H34/(Dashboard!I$91*Inzet_voertuig_Ref*Per_km+Dashboard!I$91*Contractuele_uren_Ref*Per_uur) -> 2.5 | H34: =SUM(I34:X34) -> 40000 | I34: 0 | J34: =J25*$H29 -> 5000 | K34: 5000 | L34: 5000 | M34: 5000 | N34: 5000 | O34: 5000 | P34: 5000 | Q34: 5000 | R34: 0 | S34: 0 | T34: 0 | U34: 0 | V34: 0 | W34: 0 | X34: 0
B35: Onderhoudskosten | G35: =H35/(Dashboard!I$91*Inzet_voertuig_Ref*Per_km+Dashboard!I$91*Contractuele_uren_Ref*Per_uur) -> 0 | H35: 0 | I35: 0 | J35: =Dashboard!$I94*J4 -> 0 | K35: =Dashboard!$I94*K4 -> 0 | L35: =Dashboard!$I94*L4 -> 0 | M35: =Dashboard!$I94*M4 -> 0 | N35: =Dashboard!$I94*N4 -> 0 | O35: =Dashboard!$I94*O4 -> 0 | P35: =Dashboard!$I94*P4 -> 0 | Q35: =Dashboard!$I94*Q4 -> 0 | R35: =Dashboard!$I94*R4 -> 0 | S35: =Dashboard!$I94*S4 -> 0 | T35: =Dashboard!$I94*T4 -> 0 | U35: =Dashboard!$I94*U4 -> 0 | V35: =Dashboard!$I94*V4 -> 0 | W35: =Dashboard!$I94*W4 -> 0 | X35: =Dashboard!$I94*X4 -> 0
B36: Verzekeringen | G36: =H36/(Dashboard!I$91*Inzet_voertuig_Ref*Per_km+Dashboard!I$91*Contractuele_uren_Ref*Per_uur) -> 0 | H36: 0 | I36: 0 | J36: =Dashboard!$I95*J4 -> 0 | K36: =Dashboard!$I95*K4 -> 0 | L36: =Dashboard!$I95*L4 -> 0 | M36: =Dashboard!$I95*M4 -> 0 | N36: =Dashboard!$I95*N4 -> 0 | O36: =Dashboard!$I95*O4 -> 0 | P36: =Dashboard!$I95*P4 -> 0 | Q36: =Dashboard!$I95*Q4 -> 0 | R36: =Dashboard!$I95*R4 -> 0 | S36: =Dashboard!$I95*S4 -> 0 | T36: =Dashboard!$I95*T4 -> 0 | U36: =Dashboard!$I95*U4 -> 0 | V36: =Dashboard!$I95*V4 -> 0 | W36: =Dashboard!$I95*W4 -> 0 | X36: =Dashboard!$I95*X4 -> 0
B37: Voertuigbelasting | G37: =H37/(Dashboard!I$91*Inzet_voertuig_Ref*Per_km+Dashboard!I$91*Contractuele_uren_Ref*Per_uur) -> 0 | H37: 0 | I37: 0 | J37: =(Dashboard!$I96+Dashboard!$I120)*J4 -> 0 | K37: =(Dashboard!$I96+Dashboard!$I120)*K4 -> 0 | L37: =(Dashboard!$I96+Dashboard!$I120)*L4 -> 0 | M37: =(Dashboard!$I96+Dashboard!$I120)*M4 -> 0 | N37: =(Dashboard!$I96+Dashboard!$I120)*N4 -> 0 | O37: =(Dashboard!$I96+Dashboard!$I120)*O4 -> 0 | P37: =(Dashboard!$I96+Dashboard!$I120)*P4 -> 0 | Q37: =(Dashboard!$I96+Dashboard!$I120)*Q4 -> 0 | R37: =(Dashboard!$I96+Dashboard!$I120)*R4 -> 0 | S37: =(Dashboard!$I96+Dashboard!$I120)*S4 -> 0 | T37: =(Dashboard!$I96+Dashboard!$I120)*T4 -> 0 | U37: =(Dashboard!$I96+Dashboard!$I120)*U4 -> 0 | V37: =(Dashboard!$I96+Dashboard!$I120)*V4 -> 0 | W37: =(Dashboard!$I96+Dashboard!$I120)*W4 -> 0 | X37: =(Dashboard!$I96+Dashboard!$I120)*X4 -> 0
B38: Overige kosten | G38: =H38/(Dashboard!I$91*Inzet_voertuig_Ref*Per_km+Dashboard!I$91*Contractuele_uren_Ref*Per_uur) -> 0 | H38: 0 | I38: 0 | J38: =(Dashboard!$I97+Dashboard!$I121)*J4 -> 0 | K38: =(Dashboard!$I97+Dashboard!$I121)*K4 -> 0 | L38: =(Dashboard!$I97+Dashboard!$I121)*L4 -> 0 | M38: =(Dashboard!$I97+Dashboard!$I121)*M4 -> 0 | N38: =(Dashboard!$I97+Dashboard!$I121)*N4 -> 0 | O38: =(Dashboard!$I97+Dashboard!$I121)*O4 -> 0 | P38: =(Dashboard!$I97+Dashboard!$I121)*P4 -> 0 | Q38: =(Dashboard!$I97+Dashboard!$I121)*Q4 -> 0 | R38: =(Dashboard!$I97+Dashboard!$I121)*R4 -> 0 | S38: =(Dashboard!$I97+Dashboard!$I121)*S4 -> 0 | T38: =(Dashboard!$I97+Dashboard!$I121)*T4 -> 0 | U38: =(Dashboard!$I97+Dashboard!$I121)*U4 -> 0 | V38: =(Dashboard!$I97+Dashboard!$I121)*V4 -> 0 | W38: =(Dashboard!$I97+Dashboard!$I121)*W4 -> 0 | X38: =(Dashboard!$I97+Dashboard!$I121)*X4 -> 0
B39: Kosten ontheffingen | G39: =H39/(Dashboard!I$91*Inzet_voertuig_Ref*Per_km+Dashboard!I$91*Contractuele_uren_Ref*Per_uur) -> 0 | H39: 0 | I39: 0 | J39: =(Dashboard!$I98+Dashboard!$I122)*J4 -> 0 | K39: =(Dashboard!$I98+Dashboard!$I122)*K4 -> 0 | L39: =(Dashboard!$I98+Dashboard!$I122)*L4 -> 0 | M39: =(Dashboard!$I98+Dashboard!$I122)*M4 -> 0 | N39: =(Dashboard!$I98+Dashboard!$I122)*N4 -> 0 | O39: =(Dashboard!$I98+Dashboard!$I122)*O4 -> 0 | P39: =(Dashboard!$I98+Dashboard!$I122)*P4 -> 0 | Q39: =(Dashboard!$I98+Dashboard!$I122)*Q4 -> 0 | R39: =(Dashboard!$I98+Dashboard!$I122)*R4 -> 0 | S39: =(Dashboard!$I98+Dashboard!$I122)*S4 -> 0 | T39: =(Dashboard!$I98+Dashboard!$I122)*T4 -> 0 | U39: =(Dashboard!$I98+Dashboard!$I122)*U4 -> 0 | V39: =(Dashboard!$I98+Dashboard!$I122)*V4 -> 0 | W39: =(Dashboard!$I98+Dashboard!$I122)*W4 -> 0 | X39: =(Dashboard!$I98+Dashboard!$I122)*X4 -> 0
B40: Personeelskosten | G40: =H40/(Dashboard!I$91*Inzet_voertuig_Ref*Per_km+Dashboard!I$91*Contractuele_uren_Ref*Per_uur) -> 25 | H40: 400000 | I40: 0 | J40: =SUM(J26:J28)*Uurtarief -> 50000 | K40: 50000 | L40: 50000 | M40: 50000 | N40: 50000 | O40: 50000 | P40: 50000 | Q40: 50000 | R40: 0 | S40: 0 | T40: 0 | U40: 0 | V40: 0 | W40: 0 | X40: 0
B41: Rente | G41: =H41/(Dashboard!I$91*Inzet_voertuig_Ref*Per_km+Dashboard!I$91*Contractuele_uren_Ref*Per_uur) -> 0.3463669951 | H41: 5541.871921 | I41: 0 | J41: =I75*Rente_reeel+I74*zachte_rente_reeelR -> 1231.527094 | K41: 1077.586207 | L41: 923.6453202 | M41: 769.7044335 | N41: 615.7635468 | O41: 461.8226601 | P41: 307.8817734 | Q41: 153.9408867 | R41: 0 | S41: 0 | T41: 0 | U41: 0 | V41: 0 | W41: 0 | X41: 0
B42: Bedrijfseconomische afschrijving | G42: =H42/(Dashboard!I$91*Inzet_voertuig_Ref*Per_km+Dashboard!I$91*Contractuele_uren_Ref*Per_uur) -> 3.125 | H42: 50000 | I42: 0 | J42: =IFERROR((-$H59-Dashboard!$I92)/Dashboard!$I91*J4,0) -> 6250 | K42: =IFERROR((-$H59-Dashboard!$I92)/Dashboard!$I91*K4,0) -> 6250 | L42: =IFERROR((-$H59-Dashboard!$I92)/Dashboard!$I91*L4,0) -> 6250 | M42: =IFERROR((-$H59-Dashboard!$I92)/Dashboard!$I91*M4,0) -> 6250 | N42: =IFERROR((-$H59-Dashboard!$I92)/Dashboard!$I91*N4,0) -> 6250 | O42: =IFERROR((-$H59-Dashboard!$I92)/Dashboard!$I91*O4,0) -> 6250 | P42: =IFERROR((-$H59-Dashboard!$I92)/Dashboard!$I91*P4,0) -> 6250 | Q42: =IFERROR((-$H59-Dashboard!$I92)/Dashboard!$I91*Q4,0) -> 6250 | R42: =IFERROR((-$H59-Dashboard!$I92)/Dashboard!$I91*R4,0) -> 0 | S42: =IFERROR((-$H59-Dashboard!$I92)/Dashboard!$I91*S4,0) -> 0 | T42: =IFERROR((-$H59-Dashboard!$I92)/Dashboard!$I91*T4,0) -> 0 | U42: =IFERROR((-$H59-Dashboard!$I92)/Dashboard!$I91*U4,0) -> 0 | V42: =IFERROR((-$H59-Dashboard!$I92)/Dashboard!$I91*V4,0) -> 0 | W42: =IFERROR((-$H59-Dashboard!$I92)/Dashboard!$I91*W4,0) -> 0 | X42: =IFERROR((-$H59-Dashboard!$I92)/Dashboard!$I91*X4,0) -> 0
B43: Totaal Kritische Distributie Kosten | G43: =SUM(G34:G42) -> 30.971367 | H43: 495541.8719 | I43: =SUM(I34:I42) -> 0 | J43: 62481.52709 | K43: 62327.58621 | L43: 62173.64532 | M43: 62019.70443 | N43: 61865.76355 | O43: 61711.82266 | P43: 61557.88177 | Q43: 61403.94089 | R43: 0 | S43: 0 | T43: 0 | U43: 0 | V43: 0 | W43: 0 | X43: 0
B45: Overzicht kasstromen | E45: EUR | H45: Totaal | I45: =I32 -> 0 | J45: 1 | K45: 2 | L45: 3 | M45: 4 | N45: 5 | O45: 6 | P45: 7 | Q45: 8 | R45: 9 | S45: 10 | T45: 11 | U45: 12 | V45: 13 | W45: 14 | X45: 15
B46: negatieve cijfers = cash out, positieve cijfers = cash in
B47: Operationele kasstroom | H47: =SUM(I47:X47) -> -445541.8719 | I47: =-I43+I42 -> 0 | J47: -56231.52709 | K47: -56077.58621 | L47: -55923.64532 | M47: -55769.70443 | N47: -55615.76355 | O47: =-O43+O42 -> -55461.82266 | P47: -55307.88177 | Q47: -55153.94089 | R47: 0 | S47: 0 | T47: 0 | U47: 0 | V47: 0 | W47: 0 | X47: 0
B48: (totaal kritische distributiekosten excl. afschrijving)
B50: Investering in voertuig | H50: =SUM(I50:X50) -> -50000 | I50: =-Dashboard!$I$90 -> -50000 | J50: 0 | K50: 0 | L50: 0 | M50: 0 | N50: 0 | O50: 0 | P50: 0 | Q50: 0 | R50: 0 | S50: 0 | T50: 0 | U50: 0 | V50: 0 | W50: 0 | X50: 0
B51: Investeringssubsidie | H51: =SUM(I51:X51) -> 0 | I51: =-Dashboard!$I115*I50 -> 0 | J51: 0 | K51: 0 | L51: 0 | M51: 0 | N51: 0 | O51: 0 | P51: 0 | Q51: 0 | R51: 0 | S51: 0 | T51: 0 | U51: 0 | V51: 0 | W51: 0 | X51: 0
B52: Investering na investeringssubsidie | H52: =SUM(I52:X52) -> -50000 | I52: =SUM(I50:I51) -> -50000 | J52: =SUM(J50:J51) -> 0 | K52: 0 | L52: 0 | M52: 0 | N52: 0 | O52: 0 | P52: 0 | Q52: 0 | R52: 0 | S52: 0 | T52: 0 | U52: 0 | V52: 0 | W52: 0 | X52: 0
B53: Exploitatiesubsidie | H53: =SUM(I53:X53) -> 0 | I53: =Dashboard!$I124 -> 0 | J53: 0 | K53: 0 | L53: 0 | M53: 0 | N53: 0 | O53: 0 | P53: 0 | Q53: 0 | R53: 0 | S53: 0 | T53: 0 | U53: 0 | V53: 0 | W53: 0 | X53: 0
B54: Investering na investering- en exploitatiesubsidie | H54: =SUM(I54:X54) -> -50000 | I54: =SUM(I52:I53) -> -50000 | J54: =SUM(J52:J53) -> 0 | K54: 0 | L54: 0 | M54: 0 | N54: 0 | O54: 0 | P54: 0 | Q54: 0 | R54: 0 | S54: 0 | T54: 0 | U54: 0 | V54: 0 | W54: 0 | X54: 0
B56: Kasstroomeffect MIA | H56: =SUM(I56:X56) -> 0 | I56: =-I52*Dashboard!$I113*VpB -> 0 | J56: =-J52*Dashboard!$I113*VpB -> 0 | K56: =-K52*Dashboard!$I113*VpB -> 0 | L56: =-L52*Dashboard!$I113*VpB -> 0 | M56: =-M52*Dashboard!$I113*VpB -> 0 | N56: =-N52*Dashboard!$I113*VpB -> 0 | O56: =-O52*Dashboard!$I113*VpB -> 0 | P56: =-P52*Dashboard!$I113*VpB -> 0 | Q56: =-Q52*Dashboard!$I113*VpB -> 0 | R56: =-R52*Dashboard!$I113*VpB -> 0 | S56: =-S52*Dashboard!$I113*VpB -> 0 | T56: =-T52*Dashboard!$I113*VpB -> 0 | U56: =-U52*Dashboard!$I113*VpB -> 0 | V56: =-V52*Dashboard!$I113*VpB -> 0 | W56: =-W52*Dashboard!$I113*VpB -> 0 | X56: =-X52*Dashboard!$I113*VpB -> 0
B57: Kasstroomeffect VAMIL | H57: =SUM(I57:X57) -> 0 | I57: =(I10-I9)*-$H52*VpB -> 0 | J57: 0 | K57: 0 | L57: 0 | M57: 0 | N57: 0 | O57: 0 | P57: 0 | Q57: 0 | R57: 0 | S57: 0 | T57: 0 | U57: 0 | V57: 0 | W57: 0 | X57: 0
B59: Netto investeringsgerelateerde kassstroom | H59: =SUM(I59:X59) -> -50000 | I59: =SUM(I54:I57) -> -50000 | J59: =SUM(J54:J57) -> 0 | K59: 0 | L59: 0 | M59: 0 | N59: 0 | O59: 0 | P59: 0 | Q59: 0 | R59: 0 | S59: 0 | T59: 0 | U59: 0 | V59: 0 | W59: 0 | X59: 0
B61: Opname zachte leningen | H61: =SUM(I61:X61) -> 0 | I61: =Dashboard!$I127*-I59 -> 0 | J61: =Dashboard!$I127*-J59 -> 0 | K61: =Dashboard!$I127*-K59 -> 0 | L61: =Dashboard!$I127*-L59 -> 0 | M61: =Dashboard!$I127*-M59 -> 0 | N61: =Dashboard!$I127*-N59 -> 0 | O61: =Dashboard!$I127*-O59 -> 0 | P61: =Dashboard!$I127*-P59 -> 0 | Q61: =Dashboard!$I127*-Q59 -> 0 | R61: =Dashboard!$I127*-R59 -> 0 | S61: =Dashboard!$I127*-S59 -> 0 | T61: =Dashboard!$I127*-T59 -> 0 | U61: =Dashboard!$I127*-U59 -> 0 | V61: =Dashboard!$I127*-V59 -> 0 | W61: =Dashboard!$I127*-W59 -> 0 | X61: =Dashboard!$I127*-X59 -> 0
B62: Opname reguliere leningen | H62: =SUM(I62:X62) -> 50000 | I62: =(1-Dashboard!$I127)*-I59 -> 50000 | J62: =(1-Dashboard!$I127)*-J59 -> 0 | K62: =(1-Dashboard!$I127)*-K59 -> 0 | L62: =(1-Dashboard!$I127)*-L59 -> 0 | M62: =(1-Dashboard!$I127)*-M59 -> 0 | N62: =(1-Dashboard!$I127)*-N59 -> 0 | O62: =(1-Dashboard!$I127)*-O59 -> 0 | P62: =(1-Dashboard!$I127)*-P59 -> 0 | Q62: =(1-Dashboard!$I127)*-Q59 -> 0 | R62: =(1-Dashboard!$I127)*-R59 -> 0 | S62: =(1-Dashboard!$I127)*-S59 -> 0 | T62: =(1-Dashboard!$I127)*-T59 -> 0 | U62: =(1-Dashboard!$I127)*-U59 -> 0 | V62: =(1-Dashboard!$I127)*-V59 -> 0 | W62: =(1-Dashboard!$I127)*-W59 -> 0 | X62: =(1-Dashboard!$I127)*-X59 -> 0
B63: Aflossing reguliere leningen | H63: =SUM(I63:X63) -> -50000 | I63: 0 | J63: =IFERROR((-I75+(1-Dashboard!$I127)*Dashboard!$I92)/SUM(J4:$X4)+(1-Dashboard!$I127)*-Dashboard!$I92*J6-J62*J6,0) -> -6250 | K63: =IFERROR((-J75+(1-Dashboard!$I127)*Dashboard!$I92)/SUM(K4:$X4)+(1-Dashboard!$I127)*-Dashboard!$I92*K6-K62*K6,0) -> -6250 | L63: =IFERROR((-K75+(1-Dashboard!$I127)*Dashboard!$I92)/SUM(L4:$X4)+(1-Dashboard!$I127)*-Dashboard!$I92*L6-L62*L6,0) -> -6250 | M63: =IFERROR((-L75+(1-Dashboard!$I127)*Dashboard!$I92)/SUM(M4:$X4)+(1-Dashboard!$I127)*-Dashboard!$I92*M6-M62*M6,0) -> -6250 | N63: =IFERROR((-M75+(1-Dashboard!$I127)*Dashboard!$I92)/SUM(N4:$X4)+(1-Dashboard!$I127)*-Dashboard!$I92*N6-N62*N6,0) -> -6250 | O63: =IFERROR((-N75+(1-Dashboard!$I127)*Dashboard!$I92)/SUM(O4:$X4)+(1-Dashboard!$I127)*-Dashboard!$I92*O6-O62*O6,0) -> -6250 | P63: =IFERROR((-O75+(1-Dashboard!$I127)*Dashboard!$I92)/SUM(P4:$X4)+(1-Dashboard!$I127)*-Dashboard!$I92*P6-P62*P6,0) -> -6250 | Q63: =IFERROR((-P75+(1-Dashboard!$I127)*Dashboard!$I92)/SUM(Q4:$X4)+(1-Dashboard!$I127)*-Dashboard!$I92*Q6-Q62*Q6,0) -> -6250 | R63: =IFERROR((-Q75+(1-Dashboard!$I127)*Dashboard!$I92)/SUM(R4:$X4)+(1-Dashboard!$I127)*-Dashboard!$I92*R6-R62*R6,0) -> 0 | S63: =IFERROR((-R75+(1-Dashboard!$I127)*Dashboard!$I92)/SUM(S4:$X4)+(1-Dashboard!$I127)*-Dashboard!$I92*S6-S62*S6,0) -> 0 | T63: =IFERROR((-S75+(1-Dashboard!$I127)*Dashboard!$I92)/SUM(T4:$X4)+(1-Dashboard!$I127)*-Dashboard!$I92*T6-T62*T6,0) -> 0 | U63: =IFERROR((-T75+(1-Dashboard!$I127)*Dashboard!$I92)/SUM(U4:$X4)+(1-Dashboard!$I127)*-Dashboard!$I92*U6-U62*U6,0) -> 0 | V63: =IFERROR((-U75+(1-Dashboard!$I127)*Dashboard!$I92)/SUM(V4:$X4)+(1-Dashboard!$I127)*-Dashboard!$I92*V6-V62*V6,0) -> 0 | W63: =IFERROR((-V75+(1-Dashboard!$I127)*Dashboard!$I92)/SUM(W4:$X4)+(1-Dashboard!$I127)*-Dashboard!$I92*W6-W62*W6,0) -> 0 | X63: =IFERROR((-W75+(1-Dashboard!$I127)*Dashboard!$I92)/SUM(X4:$X4)+(1-Dashboard!$I127)*-Dashboard!$I92*X6-X62*X6,0) -> 0
B64: Aflossing zachte leningen | H64: =SUM(I64:X64) -> 0 | I64: 0 | J64: =IFERROR((-I74+(Dashboard!$I127)*Dashboard!$I92)/SUM(J4:$X4)+(Dashboard!$I127)*-Dashboard!$I92*J6-J61*J6,0) -> 0 | K64: =IFERROR((-J74+(Dashboard!$I127)*Dashboard!$I92)/SUM(K4:$X4)+(Dashboard!$I127)*-Dashboard!$I92*K6-K61*K6,0) -> 0 | L64: =IFERROR((-K74+(Dashboard!$I127)*Dashboard!$I92)/SUM(L4:$X4)+(Dashboard!$I127)*-Dashboard!$I92*L6-L61*L6,0) -> 0 | M64: =IFERROR((-L74+(Dashboard!$I127)*Dashboard!$I92)/SUM(M4:$X4)+(Dashboard!$I127)*-Dashboard!$I92*M6-M61*M6,0) -> 0 | N64: =IFERROR((-M74+(Dashboard!$I127)*Dashboard!$I92)/SUM(N4:$X4)+(Dashboard!$I127)*-Dashboard!$I92*N6-N61*N6,0) -> 0 | O64: =IFERROR((-N74+(Dashboard!$I127)*Dashboard!$I92)/SUM(O4:$X4)+(Dashboard!$I127)*-Dashboard!$I92*O6-O61*O6,0) -> 0 | P64: =IFERROR((-O74+(Dashboard!$I127)*Dashboard!$I92)/SUM(P4:$X4)+(Dashboard!$I127)*-Dashboard!$I92*P6-P61*P6,0) -> 0 | Q64: =IFERROR((-P74+(Dashboard!$I127)*Dashboard!$I92)/SUM(Q4:$X4)+(Dashboard!$I127)*-Dashboard!$I92*Q6-Q61*Q6,0) -> 0 | R64: =IFERROR((-Q74+(Dashboard!$I127)*Dashboard!$I92)/SUM(R4:$X4)+(Dashboard!$I127)*-Dashboard!$I92*R6-R61*R6,0) -> 0 | S64: =IFERROR((-R74+(Dashboard!$I127)*Dashboard!$I92)/SUM(S4:$X4)+(Dashboard!$I127)*-Dashboard!$I92*S6-S61*S6,0) -> 0 | T64: =IFERROR((-S74+(Dashboard!$I127)*Dashboard!$I92)/SUM(T4:$X4)+(Dashboard!$I127)*-Dashboard!$I92*T6-T61*T6,0) -> 0 | U64: =IFERROR((-T74+(Dashboard!$I127)*Dashboard!$I92)/SUM(U4:$X4)+(Dashboard!$I127)*-Dashboard!$I92*U6-U61*U6,0) -> 0 | V64: =IFERROR((-U74+(Dashboard!$I127)*Dashboard!$I92)/SUM(V4:$X4)+(Dashboard!$I127)*-Dashboard!$I92*V6-V61*V6,0) -> 0 | W64: =IFERROR((-V74+(Dashboard!$I127)*Dashboard!$I92)/SUM(W4:$X4)+(Dashboard!$I127)*-Dashboard!$I92*W6-W61*W6,0) -> 0 | X64: =IFERROR((-W74+(Dashboard!$I127)*Dashboard!$I92)/SUM(X4:$X4)+(Dashboard!$I127)*-Dashboard!$I92*X6-X61*X6,0) -> 0
B66: Financieringskasstroom | H66: =SUM(I66:X66) -> 0 | I66: =SUM(I61:I64) -> 50000 | J66: -6250 | K66: -6250 | L66: -6250 | M66: -6250 | N66: -6250 | O66: =SUM(O61:O64) -> -6250 | P66: -6250 | Q66: -6250 | R66: 0 | S66: 0 | T66: 0 | U66: 0 | V66: 0 | W66: 0 | X66: 0
B68: Totaal Kritische Distributie Kasstroom | H68: =SUM(I68:X68) -> -495541.8719 | I68: =I47+I59+I66 -> 0 | J68: -62481.52709 | K68: -62327.58621 | L68: -62173.64532 | M68: -62019.70443 | N68: -61865.76355 | O68: -61711.82266 | P68: -61557.88177 | Q68: -61403.94089 | R68: 0 | S68: 0 | T68: 0 | U68: 0 | V68: 0 | W68: 0 | X68: 0
B70: Balanspositie voertuig | E70: EUR | I70: =I32 -> 0 | J70: 1 | K70: 2 | L70: 3 | M70: 4 | N70: 5 | O70: 6 | P70: 7 | Q70: 8 | R70: 9 | S70: 10 | T70: 11 | U70: 12 | V70: 13 | W70: 14 | X70: 15
B72: Hoofdvoertuig (boekwaarde) | I72: =(H72-I54-I56-I42)*J4 -> 50000 | J72: =(I72-J54-J56-J42)*K4 -> 43750 | K72: 37500 | L72: 31250 | M72: 25000 | N72: 18750 | O72: 12500 | P72: 6250 | Q72: 0 | R72: 0 | S72: 0 | T72: 0 | U72: 0 | V72: 0 | W72: 0 | X72: 0
B74: Zachte leningen | I74: =H74+I61+I64 -> 0 | J74: 0 | K74: 0 | L74: 0 | M74: 0 | N74: 0 | O74: =N74+O61+O64 -> 0 | P74: 0 | Q74: 0 | R74: 0 | S74: 0 | T74: 0 | U74: 0 | V74: 0 | W74: 0 | X74: 0
B75: Reguliere leningen | I75: =H75+I62+I63 -> 50000 | J75: 43750 | K75: 37500 | L75: 31250 | M75: 25000 | N75: 18750 | O75: =N75+O62+O63 -> 12500 | P75: 6250 | Q75: 0 | R75: 0 | S75: 0 | T75: 0 | U75: 0 | V75: 0 | W75: 0 | X75: 0
B76: Totaal leningen | I76: =SUM(I74:I75) -> 50000 | J76: 43750 | K76: 37500 | L76: 31250 | M76: 25000 | N76: 18750 | O76: =SUM(O74:O75) -> 12500 | P76: 6250 | Q76: 0 | R76: 0 | S76: 0 | T76: 0 | U76: 0 | V76: 0 | W76: 0 | X76: 0
B78: Kasstroom maatregelen | E78: EUR | G78: Contant | H78: Totaal | I78: =I32 -> 0 | J78: 1 | K78: 2 | L78: 3 | M78: 4 | N78: 5 | O78: 6 | P78: 7 | Q78: 8 | R78: 9 | S78: 10 | T78: 11 | U78: 12 | V78: 13 | W78: 14 | X78: 15
B80: MIA | G80: =NPV(Discontovoet,J80:X80)+I80 -> 0 | H80: =SUM(I80:X80) -> 0 | I80: =I56 -> 0 | J80: 0 | K80: 0 | L80: 0 | M80: 0 | N80: 0 | O80: =O56 -> 0 | P80: 0 | Q80: 0 | R80: 0 | S80: 0 | T80: 0 | U80: 0 | V80: 0 | W80: 0 | X80: 0
B81: VAMIL | G81: =NPV(Discontovoet,J81:X81)+I81 -> 0 | H81: =SUM(I81:X81) -> 0 | I81: 0 | J81: 0 | K81: 0 | L81: 0 | M81: 0 | N81: 0 | O81: =O57 -> 0 | P81: 0 | Q81: 0 | R81: 0 | S81: 0 | T81: 0 | U81: 0 | V81: 0 | W81: 0 | X81: 0
B82: Kasstroom bestaande maatregelen | G82: =NPV(Discontovoet,J82:X82)+I82 -> 0 | H82: =SUM(I82:X82) -> 0 | I82: =SUM(I80:I81) -> 0 | J82: =SUM(J80:J81) -> 0 | K82: 0 | L82: 0 | M82: 0 | N82: 0 | O82: 0 | P82: 0 | Q82: 0 | R82: 0 | S82: 0 | T82: 0 | U82: 0 | V82: 0 | W82: 0 | X82: 0
B84: Subsidies | G84: =NPV(Discontovoet,J84:X84)+I84 -> 0 | H84: =SUM(I84:X84) -> 0 | I84: =I51 -> 0 | J84: 0 | K84: 0 | L84: 0 | M84: 0 | N84: 0 | O84: 0 | P84: 0 | Q84: 0 | R84: 0 | S84: 0 | T84: 0 | U84: 0 | V84: 0 | W84: 0 | X84: 0
B85: Δ Voertuigbelastingen | G85: =NPV(Discontovoet,J85:X85)+I85 -> 0 | H85: 0 | I85: 0 | J85: =-Dashboard!$K120*J7 -> 0 | K85: =-Dashboard!$K120*K7 -> 0 | L85: =-Dashboard!$K120*L7 -> 0 | M85: =-Dashboard!$K120*M7 -> 0 | N85: =-Dashboard!$K120*N7 -> 0 | O85: =-Dashboard!$K120*O7 -> 0 | P85: =-Dashboard!$K120*P7 -> 0 | Q85: =-Dashboard!$K120*Q7 -> 0 | R85: =-Dashboard!$K120*R7 -> 0 | S85: =-Dashboard!$K120*S7 -> 0 | T85: =-Dashboard!$K120*T7 -> 0 | U85: =-Dashboard!$K120*U7 -> 0 | V85: =-Dashboard!$K120*V7 -> 0 | W85: =-Dashboard!$K120*W7 -> 0 | X85: =-Dashboard!$K120*X7 -> 0
B86: Δ Overige kosten | G86: 0 | H86: 0 | I86: 0 | J86: =-Dashboard!$K121*J7 -> 0 | K86: =-Dashboard!$K121*K7 -> 0 | L86: =-Dashboard!$K121*L7 -> 0 | M86: =-Dashboard!$K121*M7 -> 0 | N86: =-Dashboard!$K121*N7 -> 0 | O86: =-Dashboard!$K121*O7 -> 0 | P86: =-Dashboard!$K121*P7 -> 0 | Q86: =-Dashboard!$K121*Q7 -> 0 | R86: =-Dashboard!$K121*R7 -> 0 | S86: =-Dashboard!$K121*S7 -> 0 | T86: =-Dashboard!$K121*T7 -> 0 | U86: =-Dashboard!$K121*U7 -> 0 | V86: =-Dashboard!$K121*V7 -> 0 | W86: =-Dashboard!$K121*W7 -> 0 | X86: =-Dashboard!$K121*X7 -> 0
B87: Δ Kosten ontheffingen | G87: =NPV(Discontovoet,J87:X87)+I87 -> 0 | H87: 0 | I87: =-Dashboard!$K122*I7 -> 0 | J87: =-Dashboard!$K122*J7 -> 0 | K87: =-Dashboard!$K122*K7 -> 0 | L87: =-Dashboard!$K122*L7 -> 0 | M87: =-Dashboard!$K122*M7 -> 0 | N87: =-Dashboard!$K122*N7 -> 0 | O87: =-Dashboard!$K122*O7 -> 0 | P87: =-Dashboard!$K122*P7 -> 0 | Q87: =-Dashboard!$K122*Q7 -> 0 | R87: =-Dashboard!$K122*R7 -> 0 | S87: =-Dashboard!$K122*S7 -> 0 | T87: =-Dashboard!$K122*T7 -> 0 | U87: =-Dashboard!$K122*U7 -> 0 | V87: =-Dashboard!$K122*V7 -> 0 | W87: =-Dashboard!$K122*W7 -> 0 | X87: =-Dashboard!$K122*X7 -> 0
B88: Δ Brandstofprijs | G88: 0 | H88: 0 | I88: 0 | J88: =-Inzet_voertuig_Ref*J7/100*Dashboard!$K93*Dashboard!$K123 -> 0 | K88: =-Inzet_voertuig_Ref*K7/100*Dashboard!$K93*Dashboard!$K123 -> 0 | L88: =-Inzet_voertuig_Ref*L7/100*Dashboard!$K93*Dashboard!$K123 -> 0 | M88: =-Inzet_voertuig_Ref*M7/100*Dashboard!$K93*Dashboard!$K123 -> 0 | N88: =-Inzet_voertuig_Ref*N7/100*Dashboard!$K93*Dashboard!$K123 -> 0 | O88: =-Inzet_voertuig_Ref*O7/100*Dashboard!$K93*Dashboard!$K123 -> 0 | P88: =-Inzet_voertuig_Ref*P7/100*Dashboard!$K93*Dashboard!$K123 -> 0 | Q88: =-Inzet_voertuig_Ref*Q7/100*Dashboard!$K93*Dashboard!$K123 -> 0 | R88: =-Inzet_voertuig_Ref*R7/100*Dashboard!$K93*Dashboard!$K123 -> 0 | S88: =-Inzet_voertuig_Ref*S7/100*Dashboard!$K93*Dashboard!$K123 -> 0 | T88: =-Inzet_voertuig_Ref*T7/100*Dashboard!$K93*Dashboard!$K123 -> 0 | U88: =-Inzet_voertuig_Ref*U7/100*Dashboard!$K93*Dashboard!$K123 -> 0 | V88: =-Inzet_voertuig_Ref*V7/100*Dashboard!$K93*Dashboard!$K123 -> 0 | W88: =-Inzet_voertuig_Ref*W7/100*Dashboard!$K93*Dashboard!$K123 -> 0 | X88: =-Inzet_voertuig_Ref*X7/100*Dashboard!$K93*Dashboard!$K123 -> 0
B89: Rentesubsidies | G89: 0 | H89: 0 | I89: 0 | J89: =I74*(Rente_reeel-zachte_rente_reeel1) -> 0 | K89: 0 | L89: 0 | M89: 0 | N89: 0 | O89: 0 | P89: 0 | Q89: 0 | R89: 0 | S89: 0 | T89: 0 | U89: 0 | V89: 0 | W89: 0 | X89: 0
B90: Kasstroom nieuwe maatregelen | G90: 0 | H90: =SUM(H84:H89) -> 0 | I90: =SUM(I84:I89) -> 0 | J90: 0 | K90: 0 | L90: 0 | M90: 0 | N90: 0 | O90: 0 | P90: 0 | Q90: 0 | R90: 0 | S90: 0 | T90: 0 | U90: 0 | V90: 0 | W90: 0 | X90: 0
B92: Totaal kasstroom maatregelen | G92: =NPV(Discontovoet,J92:X92)+I92 -> 0 | H92: =SUM(I92:X92) -> 0 | I92: =I82+I90 -> 0 | J92: 0 | K92: 0 | L92: 0 | M92: 0 | N92: 0 | O92: 0 | P92: 0 | Q92: 0 | R92: 0 | S92: 0 | T92: 0 | U92: 0 | V92: 0 | W92: 0 | X92: 0
B94: Emissies | J94: =J32 -> 1 | K94: 2 | L94: 3 | M94: 4 | N94: 5 | O94: 6 | P94: 7 | Q94: 8 | R94: 9 | S94: 10 | T94: 11 | U94: 12 | V94: 13 | W94: 14 | X94: 15
B96: Nominaal
B98: =Dashboard!U63&" emissie CO2 ("&CO2_weight&"/jaar)" -> WtW emissie CO2 (ton/jaar) | J98: =IF(J94>Dashboard!$I91,I98*J7,(J21/100)*Dashboard!$I93*Dashboard!$I99)*CO2_factor -> 16.15 | K98: =IF(K94>Dashboard!$I91,J98*K7,(K21/100)*Dashboard!$I93*Dashboard!$I99)*CO2_factor -> 16.15 | L98: =IF(L94>Dashboard!$I91,K98*L7,(L21/100)*Dashboard!$I93*Dashboard!$I99)*CO2_factor -> 16.15 | M98: =IF(M94>Dashboard!$I91,L98*M7,(M21/100)*Dashboard!$I93*Dashboard!$I99)*CO2_factor -> 16.15 | N98: =IF(N94>Dashboard!$I91,M98*N7,(N21/100)*Dashboard!$I93*Dashboard!$I99)*CO2_factor -> 16.15 | O98: =IF(O94>Dashboard!$I91,N98*O7,(O21/100)*Dashboard!$I93*Dashboard!$I99)*CO2_factor -> 16.15 | P98: =IF(P94>Dashboard!$I91,O98*P7,(P21/100)*Dashboard!$I93*Dashboard!$I99)*CO2_factor -> 16.15 | Q98: =IF(Q94>Dashboard!$I91,P98*Q7,(Q21/100)*Dashboard!$I93*Dashboard!$I99)*CO2_factor -> 16.15 | R98: =IF(R94>Dashboard!$I91,Q98*R7,(R21/100)*Dashboard!$I93*Dashboard!$I99)*CO2_factor -> 0 | S98: =IF(S94>Dashboard!$I91,R98*S7,(S21/100)*Dashboard!$I93*Dashboard!$I99)*CO2_factor -> 0 | T98: =IF(T94>Dashboard!$I91,S98*T7,(T21/100)*Dashboard!$I93*Dashboard!$I99)*CO2_factor -> 0 | U98: =IF(U94>Dashboard!$I91,T98*U7,(U21/100)*Dashboard!$I93*Dashboard!$I99)*CO2_factor -> 0 | V98: =IF(V94>Dashboard!$I91,U98*V7,(V21/100)*Dashboard!$I93*Dashboard!$I99)*CO2_factor -> 0 | W98: =IF(W94>Dashboard!$I91,V98*W7,(W21/100)*Dashboard!$I93*Dashboard!$I99)*CO2_factor -> 0 | X98: =IF(X94>Dashboard!$I91,W98*X7,(X21/100)*Dashboard!$I93*Dashboard!$I99)*CO2_factor -> 0
B99: Kosten CO2 emissie (EUR/jaar) | J99: =J98*Kosten_CO2*CO2_factor_EUR -> 419.9 | K99: 419.9 | L99: 419.9 | M99: 419.9 | N99: 419.9 | O99: 419.9 | P99: 419.9 | Q99: 419.9 | R99: 0 | S99: 0 | T99: 0 | U99: 0 | V99: 0 | W99: 0 | X99: 0
B101: =Dashboard!U64&" emissie NOx ("&NOx_weight&"/jaar)" -> TtW emissie NOx (kg/jaar) | J101: =IF(J94>Dashboard!$I91,I101*J7,(J21/100)*Dashboard!$I93*Dashboard!$I100)*NOx_factor -> 10.305 | K101: =IF(K94>Dashboard!$I91,J101*K7,(K21/100)*Dashboard!$I93*Dashboard!$I100)*NOx_factor -> 10.305 | L101: =IF(L94>Dashboard!$I91,K101*L7,(L21/100)*Dashboard!$I93*Dashboard!$I100)*NOx_factor -> 10.305 | M101: =IF(M94>Dashboard!$I91,L101*M7,(M21/100)*Dashboard!$I93*Dashboard!$I100)*NOx_factor -> 10.305 | N101: =IF(N94>Dashboard!$I91,M101*N7,(N21/100)*Dashboard!$I93*Dashboard!$I100)*NOx_factor -> 10.305 | O101: =IF(O94>Dashboard!$I91,N101*O7,(O21/100)*Dashboard!$I93*Dashboard!$I100)*NOx_factor -> 10.305 | P101: =IF(P94>Dashboard!$I91,O101*P7,(P21/100)*Dashboard!$I93*Dashboard!$I100)*NOx_factor -> 10.305 | Q101: =IF(Q94>Dashboard!$I91,P101*Q7,(Q21/100)*Dashboard!$I93*Dashboard!$I100)*NOx_factor -> 10.305 | R101: =IF(R94>Dashboard!$I91,Q101*R7,(R21/100)*Dashboard!$I93*Dashboard!$I100)*NOx_factor -> 0 | S101: =IF(S94>Dashboard!$I91,R101*S7,(S21/100)*Dashboard!$I93*Dashboard!$I100)*NOx_factor -> 0 | T101: =IF(T94>Dashboard!$I91,S101*T7,(T21/100)*Dashboard!$I93*Dashboard!$I100)*NOx_factor -> 0 | U101: =IF(U94>Dashboard!$I91,T101*U7,(U21/100)*Dashboard!$I93*Dashboard!$I100)*NOx_factor -> 0 | V101: =IF(V94>Dashboard!$I91,U101*V7,(V21/100)*Dashboard!$I93*Dashboard!$I100)*NOx_factor -> 0 | W101: =IF(W94>Dashboard!$I91,V101*W7,(W21/100)*Dashboard!$I93*Dashboard!$I100)*NOx_factor -> 0 | X101: =IF(X94>Dashboard!$I91,W101*X7,(X21/100)*Dashboard!$I93*Dashboard!$I100)*NOx_factor -> 0
B102: Kosten NOx emissie (EUR/jaar) | J102: =J101*Kosten_NOx*NOx_factor_EUR -> 113.355 | K102: 113.355 | L102: 113.355 | M102: 113.355 | N102: 113.355 | O102: 113.355 | P102: 113.355 | Q102: 113.355 | R102: 0 | S102: 0 | T102: 0 | U102: 0 | V102: 0 | W102: 0 | X102: 0
B104: =Dashboard!U65&" emissie PM ("&PM_weight&"/jaar)" -> TtW emissie PM (dag/jaar) | J104: =IF(J94>Dashboard!$I91,I104*J7,(J21/100)*Dashboard!$I93*Dashboard!$I101)*PM_factor -> 178.5 | K104: =IF(K94>Dashboard!$I91,J104*K7,(K21/100)*Dashboard!$I93*Dashboard!$I101)*PM_factor -> 178.5 | L104: =IF(L94>Dashboard!$I91,K104*L7,(L21/100)*Dashboard!$I93*Dashboard!$I101)*PM_factor -> 178.5 | M104: =IF(M94>Dashboard!$I91,L104*M7,(M21/100)*Dashboard!$I93*Dashboard!$I101)*PM_factor -> 178.5 | N104: =IF(N94>Dashboard!$I91,M104*N7,(N21/100)*Dashboard!$I93*Dashboard!$I101)*PM_factor -> 178.5 | O104: =IF(O94>Dashboard!$I91,N104*O7,(O21/100)*Dashboard!$I93*Dashboard!$I101)*PM_factor -> 178.5 | P104: =IF(P94>Dashboard!$I91,O104*P7,(P21/100)*Dashboard!$I93*Dashboard!$I101)*PM_factor -> 178.5 | Q104: =IF(Q94>Dashboard!$I91,P104*Q7,(Q21/100)*Dashboard!$I93*Dashboard!$I101)*PM_factor -> 178.5 | R104: =IF(R94>Dashboard!$I91,Q104*R7,(R21/100)*Dashboard!$I93*Dashboard!$I101)*PM_factor -> 0 | S104: =IF(S94>Dashboard!$I91,R104*S7,(S21/100)*Dashboard!$I93*Dashboard!$I101)*PM_factor -> 0 | T104: =IF(T94>Dashboard!$I91,S104*T7,(T21/100)*Dashboard!$I93*Dashboard!$I101)*PM_factor -> 0 | U104: =IF(U94>Dashboard!$I91,T104*U7,(U21/100)*Dashboard!$I93*Dashboard!$I101)*PM_factor -> 0 | V104: =IF(V94>Dashboard!$I91,U104*V7,(V21/100)*Dashboard!$I93*Dashboard!$I101)*PM_factor -> 0 | W104: =IF(W94>Dashboard!$I91,V104*W7,(W21/100)*Dashboard!$I93*Dashboard!$I101)*PM_factor -> 0 | X104: =IF(X94>Dashboard!$I91,W104*X7,(X21/100)*Dashboard!$I93*Dashboard!$I101)*PM_factor -> 0
B105: Kosten PM emissie (EUR/jaar) | J105: =J104*Kosten_PM*PM_factor_EUR -> 1044.225 | K105: 1044.225 | L105: 1044.225 | M105: 1044.225 | N105: 1044.225 | O105: 1044.225 | P105: 1044.225 | Q105: 1044.225 | R105: 0 | S105: 0 | T105: 0 | U105: 0 | V105: 0 | W105: 0 | X105: 0
B107: ="emissie geluid (× 10^"&noise_weight&" dBh)" -> emissie geluid (× 10^4 dBh) | J107: =J7*J26*Dashboard!$I102/10^noise_weight -> 10.4 | K107: =K7*K26*Dashboard!$I102/10^noise_weight -> 10.4 | L107: =L7*L26*Dashboard!$I102/10^noise_weight -> 10.4 | M107: =M7*M26*Dashboard!$I102/10^noise_weight -> 10.4 | N107: =N7*N26*Dashboard!$I102/10^noise_weight -> 10.4 | O107: =O7*O26*Dashboard!$I102/10^noise_weight -> 10.4 | P107: =P7*P26*Dashboard!$I102/10^noise_weight -> 10.4 | Q107: =Q7*Q26*Dashboard!$I102/10^noise_weight -> 10.4 | R107: =R7*R26*Dashboard!$I102/10^noise_weight -> 0 | S107: =S7*S26*Dashboard!$I102/10^noise_weight -> 0 | T107: =T7*T26*Dashboard!$I102/10^noise_weight -> 0 | U107: =U7*U26*Dashboard!$I102/10^noise_weight -> 0 | V107: =V7*V26*Dashboard!$I102/10^noise_weight -> 0 | W107: =W7*W26*Dashboard!$I102/10^noise_weight -> 0 | X107: =X7*X26*Dashboard!$I102/10^noise_weight -> 0
B108: Kosten emissie geluid (EUR/jaar) | J108: =J21*Kosten_geluid/100 -> 860 | K108: 860 | L108: 860 | M108: 860 | N108: 860 | O108: 860 | P108: 860 | Q108: 860 | R108: 0 | S108: 0 | T108: 0 | U108: 0 | V108: 0 | W108: 0 | X108: 0

Sheet Alternatief 1
I2: =I19 -> 0 | J2: =J19 -> 1 | K2: 2 | L2: 3 | M2: 4 | N2: 5 | O2: 6 | P2: 7 | Q2: 8 | R2: 9 | S2: 10 | T2: 11 | U2: 12 | V2: 13 | W2: 14 | X2: 15
B4: Jaar meetellen regulier | H4: =SUM(I4:X4)-1 -> 10 | I4: 1 | J4: =IF(J2<=Dashboard!$K91,1,0) -> 1 | K4: =IF(K2<=Dashboard!$K91,1,0) -> 1 | L4: =IF(L2<=Dashboard!$K91,1,0) -> 1 | M4: =IF(M2<=Dashboard!$K91,1,0) -> 1 | N4: =IF(N2<=Dashboard!$K91,1,0) -> 1 | O4: =IF(O2<=Dashboard!$K91,1,0) -> 1 | P4: =IF(P2<=Dashboard!$K91,1,0) -> 1 | Q4: =IF(Q2<=Dashboard!$K91,1,0) -> 1 | R4: =IF(R2<=Dashboard!$K91,1,0) -> 1 | S4: =IF(S2<=Dashboard!$K91,1,0) -> 1 | T4: =IF(T2<=Dashboard!$K91,1,0) -> 0 | U4: =IF(U2<=Dashboard!$K91,1,0) -> 0 | V4: =IF(V2<=Dashboard!$K91,1,0) -> 0 | W4: =IF(W2<=Dashboard!$K91,1,0) -> 0 | X4: =IF(X2<=Dashboard!$K91,1,0) -> 0
B5: Jaar metellen financieringen | I5: =IF(I6=1,0,I4) -> 1 | J5: =IF(J6=1,0,J4) -> 1 | K5: 1 | L5: 1 | M5: 1 | N5: 1 | O5: 1 | P5: 1 | Q5: 1 | R5: 1 | S5: 0 | T5: 0 | U5: 0 | V5: 0 | W5: 0 | X5: 0
B6: Laatste jaar | I6: =IF(AND(I4=1,J4=0),1,0) -> 0 | J6: =IF(AND(J4=1,K4=0),1,0) -> 0 | K6: 0 | L6: 0 | M6: 0 | N6: 0 | O6: 0 | P6: 0 | Q6: 0 | R6: 0 | S6: 1 | T6: 0 | U6: 0 | V6: 0 | W6: 0 | X6: 0
B7: Inzet voertuig | J7: =J4 -> 1 | K7: =K4 -> 1 | L7: 1 | M7: 1 | N7: 1 | O7: 1 | P7: 1 | Q7: 1 | R7: 1 | S7: 1 | T7: 0 | U7: 0 | V7: 0 | W7: 0 | X7: 0
B9: Bedrijfseconomische afschrijving | I9: 0 | J9: =IFERROR(1/Dashboard!$K91*J4,0) -> 0.1 | K9: =IFERROR(1/Dashboard!$K91*K4,0) -> 0.1 | L9: =IFERROR(1/Dashboard!$K91*L4,0) -> 0.1 | M9: =IFERROR(1/Dashboard!$K91*M4,0) -> 0.1 | N9: =IFERROR(1/Dashboard!$K91*N4,0) -> 0.1 | O9: =IFERROR(1/Dashboard!$K91*O4,0) -> 0.1 | P9: =IFERROR(1/Dashboard!$K91*P4,0) -> 0.1 | Q9: =IFERROR(1/Dashboard!$K91*Q4,0) -> 0.1 | R9: =IFERROR(1/Dashboard!$K91*R4,0) -> 0.1 | S9: =IFERROR(1/Dashboard!$K91*S4,0) -> 0.1 | T9: =IFERROR(1/Dashboard!$K91*T4,0) -> 0 | U9: =IFERROR(1/Dashboard!$K91*U4,0) -> 0 | V9: =IFERROR(1/Dashboard!$K91*V4,0) -> 0 | W9: =IFERROR(1/Dashboard!$K91*W4,0) -> 0 | X9: =IFERROR(1/Dashboard!$K91*X4,0) -> 0
B10: Fiscale afschrijving | I10: =MAX(Dashboard!K114,Referentie!I9) -> 0 | J10: =IFERROR((1-I10)/SUM(J4:W4)*J4,0) -> 0.1 | K10: =J10*K4 -> 0.1 | L10: 0.1 | M10: 0.1 | N10: 0.1 | O10: 0.1 | P10: 0.1 | Q10: 0.1 | R10: 0.1 | S10: 0.1 | T10: 0 | U10: 0 | V10: 0 | W10: 0 | X10: 0
B12: Aantal referentievoertuigen voor vergelijking | I12: =ROUND(J21/Referentie!J21,2) -> 1
J15: SPECIFICATIE ALTERNATIEF 1
B17: =IF(Alternatief1_Naam="","",Alternatief1_Naam) -> Elek1 | I17: =IF(Switch_Alt1=0,"Dit profiel is in het werkblad 'Dashboard' gedeactiveerd waardoor de foutencontrole is uitgeschakeld en dit overzicht mogelijk niet correct is",IF(SUM(Dashboard!S53:S62)>0,"Dit overzicht is mogelijk niet correct als gevolg van incomplete of foutieve invoer, check de foutmeldingen op werkblad 'Dashboard'","")) -> 
B19: Kerndata | H19: Totaal | I19: 0 | J19: 1 | K19: =J19+1 -> 2 | L19: 3 | M19: 4 | N19: 5 | O19: 6 | P19: 7 | Q19: 8 | R19: 9 | S19: 10 | T19: 11 | U19: 12 | V19: 13 | W19: 14 | X19: 15
B21: Aantal kilometers | H21: =SUM(I21:X21) -> 200000 | I21: 0 | J21: =Inzet_voertuig_Alt1*J4 -> 20000 | K21: 20000 | L21: 20000 | M21: 20000 | N21: 20000 | O21: 20000 | P21: 20000 | Q21: 20000 | R21: 20000 | S21: 20000 | T21: 0 | U21: 0 | V21: 0 | W21: 0 | X21: 0
B22: - waarvan binnen APV-tijden | H22: 200000 | I22: =I21*Dashboard!$G76*(1-Dashboard!$K118) -> 0 | J22: =J21*Dashboard!$G76*(1-Dashboard!$K118) -> 20000 | K22: =K21*Dashboard!$G76*(1-Dashboard!$K118) -> 20000 | L22: =L21*Dashboard!$G76*(1-Dashboard!$K118) -> 20000 | M22: =M21*Dashboard!$G76*(1-Dashboard!$K118) -> 20000 | N22: =N21*Dashboard!$G76*(1-Dashboard!$K118) -> 20000 | O22: =O21*Dashboard!$G76*(1-Dashboard!$K118) -> 20000 | P22: =P21*Dashboard!$G76*(1-Dashboard!$K118) -> 20000 | Q22: =Q21*Dashboard!$G76*(1-Dashboard!$K118) -> 20000 | R22: =R21*Dashboard!$G76*(1-Dashboard!$K118) -> 20000 | S22: =S21*Dashboard!$G76*(1-Dashboard!$K118) -> 20000 | T22: =T21*Dashboard!$G76*(1-Dashboard!$K118) -> 0 | U22: =U21*Dashboard!$G76*(1-Dashboard!$K118) -> 0 | V22: =V21*Dashboard!$G76*(1-Dashboard!$K118) -> 0 | W22: =W21*Dashboard!$G76*(1-Dashboard!$K118) -> 0 | X22: =X21*Dashboard!$G76*(1-Dashboard!$K118) -> 0
B23: - waarvan buiten APV-tijden | H23: 0 | I23: =I21*Dashboard!$G76*Dashboard!$K118 -> 0 | J23: =J21*Dashboard!$G76*Dashboard!$K118 -> 0 | K23: =K21*Dashboard!$G76*Dashboard!$K118 -> 0 | L23: =L21*Dashboard!$G76*Dashboard!$K118 -> 0 | M23: =M21*Dashboard!$G76*Dashboard!$K118 -> 0 | N23: =N21*Dashboard!$G76*Dashboard!$K118 -> 0 | O23: =O21*Dashboard!$G76*Dashboard!$K118 -> 0 | P23: =P21*Dashboard!$G76*Dashboard!$K118 -> 0 | Q23: =Q21*Dashboard!$G76*Dashboard!$K118 -> 0 | R23: =R21*Dashboard!$G76*Dashboard!$K118 -> 0 | S23: =S21*Dashboard!$G76*Dashboard!$K118 -> 0 | T23: =T21*Dashboard!$G76*Dashboard!$K118 -> 0 | U23: =U21*Dashboard!$G76*Dashboard!$K118 -> 0 | V23: =V21*Dashboard!$G76*Dashboard!$K118 -> 0 | W23: =W21*Dashboard!$G76*Dashboard!$K118 -> 0 | X23: =X21*Dashboard!$G76*Dashboard!$K118 -> 0
B24: - waarvan buiten APV-gebieden | H24: 0 | I24: =I21*(1-Dashboard!$G76) -> 0 | J24: =J21*(1-Dashboard!$G76) -> 0 | K24: =K21*(1-Dashboard!$G76) -> 0 | L24: =L21*(1-Dashboard!$G76) -> 0 | M24: =M21*(1-Dashboard!$G76) -> 0 | N24: =N21*(1-Dashboard!$G76) -> 0 | O24: =O21*(1-Dashboard!$G76) -> 0 | P24: =P21*(1-Dashboard!$G76) -> 0 | Q24: =Q21*(1-Dashboard!$G76) -> 0 | R24: =R21*(1-Dashboard!$G76) -> 0 | S24: =S21*(1-Dashboard!$G76) -> 0 | T24: =T21*(1-Dashboard!$G76) -> 0 | U24: =U21*(1-Dashboard!$G76) -> 0 | V24: =V21*(1-Dashboard!$G76) -> 0 | W24: =W21*(1-Dashboard!$G76) -> 0 | X24: =X21*(1-Dashboard!$G76) -> 0
B25: ="Brandstofverbruik ("&HLOOKUP(Alternatief1,Brandstofprofielen,4, FALSE)&")" -> Brandstofverbruik (kWh) | H25: 200000 | I25: 0 | J25: =J21/100*Dashboard!$K93 -> 20000 | K25: =K21/100*Dashboard!$K93 -> 20000 | L25: =L21/100*Dashboard!$K93 -> 20000 | M25: =M21/100*Dashboard!$K93 -> 20000 | N25: =N21/100*Dashboard!$K93 -> 20000 | O25: =O21/100*Dashboard!$K93 -> 20000 | P25: =P21/100*Dashboard!$K93 -> 20000 | Q25: =Q21/100*Dashboard!$K93 -> 20000 | R25: =R21/100*Dashboard!$K93 -> 20000 | S25: =S21/100*Dashboard!$K93 -> 20000 | T25: =T21/100*Dashboard!$K93 -> 0 | U25: =U21/100*Dashboard!$K93 -> 0 | V25: =V21/100*Dashboard!$K93 -> 0 | W25: =W21/100*Dashboard!$K93 -> 0 | X25: =X21/100*Dashboard!$K93 -> 0
B26: Aantal directe uren chauffeur | H26: 13333.33333 | I26: 0 | J26: =J22/Snelheid_Venster+SUM(J23:J24)/Snelheid_Overig -> 1333.333333 | K26: 1333.333333 | L26: 1333.333333 | M26: 1333.333333 | N26: 1333.333333 | O26: 1333.333333 | P26: 1333.333333 | Q26: 1333.333333 | R26: 1333.333333 | S26: 1333.333333 | T26: 0 | U26: 0 | V26: 0 | W26: 0 | X26: 0
B27: Aantal indirecte uren chauffeur | H27: 6666.666667 | I27: 0 | J27: =Indirecte_minuten/60*J21 -> 666.6666667 | K27: 666.6666667 | L27: 666.6666667 | M27: 666.6666667 | N27: 666.6666667 | O27: 666.6666667 | P27: 666.6666667 | Q27: 666.6666667 | R27: 666.6666667 | S27: 666.6666667 | T27: 0 | U27: 0 | V27: 0 | W27: 0 | X27: 0
B28: Aantal uren bijrijder(s) | H28: 0 | I28: 0 | J28: =(Bezetting-1)*SUM(J26:J27) -> 0 | K28: 0 | L28: 0 | M28: 0 | N28: 0 | O28: 0 | P28: 0 | Q28: 0 | R28: 0 | S28: 0 | T28: 0 | U28: 0 | V28: 0 | W28: 0 | X28: 0
B29: ="Brandstofprijs per "&Dashboard!I62&" (EUR)" -> Brandstofprijs per liter (EUR) | H29: =Brandstofprijs1+Dashboard!K123 -> 0.1
B30: Aantal uren per jaar | H30: =J26+J27 -> 2000
B32: Overzicht kosten | E32: EUR | G32: =IF(Per_uur=1,"Per uur","Per km") -> Per uur | H32: Totaal | I32: =I19 -> 0 | J32: 1 | K32: 2 | L32: 3 | M32: 4 | N32: 5 | O32: 6 | P32: 7 | Q32: 8 | R32: 9 | S32: 10 | T32: 11 | U32: 12 | V32: 13 | W32: 14 | X32: 15
B34: Brandstofkosten | G34: =H34/(Dashboard!K$91*Inzet_voertuig_Alt1*Per_km+Dashboard!K$91*Contractuele_uren_Alt1*Per_uur) -> 1 | H34: =SUM(I34:X34) -> 20000 | I34: 0 | J34: =J25*$H29 -> 2000 | K34: 2000 | L34: 2000 | M34: 2000 | N34: 2000 | O34: 2000 | P34: 2000 | Q34: 2000 | R34: 2000 | S34: 2000 | T34: 0 | U34: 0 | V34: 0 | W34: 0 | X34: 0
B35: Onderhoudskosten | G35: =H35/(Dashboard!K$91*Inzet_voertuig_Alt1*Per_km+Dashboard!K$91*Contractuele_uren_Alt1*Per_uur) -> 0 | H35: 0 | I35: 0 | J35: =Dashboard!$K94*J4 -> 0 | K35: =Dashboard!$K94*K4 -> 0 | L35: =Dashboard!$K94*L4 -> 0 | M35: =Dashboard!$K94*M4 -> 0 | N35: =Dashboard!$K94*N4 -> 0 | O35: =Dashboard!$K94*O4 -> 0 | P35: =Dashboard!$K94*P4 -> 0 | Q35: =Dashboard!$K94*Q4 -> 0 | R35: =Dashboard!$K94*R4 -> 0 | S35: =Dashboard!$K94*S4 -> 0 | T35: =Dashboard!$K94*T4 -> 0 | U35: =Dashboard!$K94*U4 -> 0 | V35: =Dashboard!$K94*V4 -> 0 | W35: =Dashboard!$K94*W4 -> 0 | X35: =Dashboard!$K94*X4 -> 0
B36: Verzekeringen | G36: =H36/(Dashboard!K$91*Inzet_voertuig_Alt1*Per_km+Dashboard!K$91*Contractuele_uren_Alt1*Per_uur) -> 0 | H36: 0 | I36: 0 | J36: =Dashboard!$K95*J4 -> 0 | K36: =Dashboard!$K95*K4 -> 0 | L36: =Dashboard!$K95*L4 -> 0 | M36: =Dashboard!$K95*M4 -> 0 | N36: =Dashboard!$K95*N4 -> 0 | O36: =Dashboard!$K95*O4 -> 0 | P36: =Dashboard!$K95*P4 -> 0 | Q36: =Dashboard!$K95*Q4 -> 0 | R36: =Dashboard!$K95*R4 -> 0 | S36: =Dashboard!$K95*S4 -> 0 | T36: =Dashboard!$K95*T4 -> 0 | U36: =Dashboard!$K95*U4 -> 0 | V36: =Dashboard!$K95*V4 -> 0 | W36: =Dashboard!$K95*W4 -> 0 | X36: =Dashboard!$K95*X4 -> 0
B37: Voertuigbelasting | G37: =H37/(Dashboard!K$91*Inzet_voertuig_Alt1*Per_km+Dashboard!K$91*Contractuele_uren_Alt1*Per_uur) -> 0 | H37: 0 | I37: 0 | J37: =(Dashboard!$K96+Dashboard!$K120)*J4 -> 0 | K37: =(Dashboard!$K96+Dashboard!$K120)*K4 -> 0 | L37: =(Dashboard!$K96+Dashboard!$K120)*L4 -> 0 | M37: =(Dashboard!$K96+Dashboard!$K120)*M4 -> 0 | N37: =(Dashboard!$K96+Dashboard!$K120)*N4 -> 0 | O37: =(Dashboard!$K96+Dashboard!$K120)*O4 -> 0 | P37: =(Dashboard!$K96+Dashboard!$K120)*P4 -> 0 | Q37: =(Dashboard!$K96+Dashboard!$K120)*Q4 -> 0 | R37: =(Dashboard!$K96+Dashboard!$K120)*R4 -> 0 | S37: =(Dashboard!$K96+Dashboard!$K120)*S4 -> 0 | T37: =(Dashboard!$K96+Dashboard!$K120)*T4 -> 0 | U37: =(Dashboard!$K96+Dashboard!$K120)*U4 -> 0 | V37: =(Dashboard!$K96+Dashboard!$K120)*V4 -> 0 | W37: =(Dashboard!$K96+Dashboard!$K120)*W4 -> 0 | X37: =(Dashboard!$K96+Dashboard!$K120)*X4 -> 0
B38: Overige kosten | G38: =H38/(Dashboard!K$91*Inzet_voertuig_Alt1*Per_km+Dashboard!K$91*Contractuele_uren_Alt1*Per_uur) -> 0 | H38: 0 | I38: 0 | J38: =(Dashboard!$K97+Dashboard!$K121)*J4 -> 0 | K38: =(Dashboard!$K97+Dashboard!$K121)*K4 -> 0 | L38: =(Dashboard!$K97+Dashboard!$K121)*L4 -> 0 | M38: =(Dashboard!$K97+Dashboard!$K121)*M4 -> 0 | N38: =(Dashboard!$K97+Dashboard!$K121)*N4 -> 0 | O38: =(Dashboard!$K97+Dashboard!$K121)*O4 -> 0 | P38: =(Dashboard!$K97+Dashboard!$K121)*P4 -> 0 | Q38: =(Dashboard!$K97+Dashboard!$K121)*Q4 -> 0 | R38: =(Dashboard!$K97+Dashboard!$K121)*R4 -> 0 | S38: =(Dashboard!$K97+Dashboard!$K121)*S4 -> 0 | T38: =(Dashboard!$K97+Dashboard!$K121)*T4 -> 0 | U38: =(Dashboard!$K97+Dashboard!$K121)*U4 -> 0 | V38: =(Dashboard!$K97+Dashboard!$K121)*V4 -> 0 | W38: =(Dashboard!$K97+Dashboard!$K121)*W4 -> 0 | X38: =(Dashboard!$K97+Dashboard!$K121)*X4 -> 0
B39: Kosten ontheffingen | G39: =H39/(Dashboard!K$91*Inzet_voertuig_Alt1*Per_km+Dashboard!K$91*Contractuele_uren_Alt1*Per_uur) -> 0 | H39: 0 | I39: 0 | J39: =(Dashboard!$K98+Dashboard!$K122)*J4 -> 0 | K39: =(Dashboard!$K98+Dashboard!$K122)*K4 -> 0 | L39: =(Dashboard!$K98+Dashboard!$K122)*L4 -> 0 | M39: =(Dashboard!$K98+Dashboard!$K122)*M4 -> 0 | N39: =(Dashboard!$K98+Dashboard!$K122)*N4 -> 0 | O39: =(Dashboard!$K98+Dashboard!$K122)*O4 -> 0 | P39: =(Dashboard!$K98+Dashboard!$K122)*P4 -> 0 | Q39: =(Dashboard!$K98+Dashboard!$K122)*Q4 -> 0 | R39: =(Dashboard!$K98+Dashboard!$K122)*R4 -> 0 | S39: =(Dashboard!$K98+Dashboard!$K122)*S4 -> 0 | T39: =(Dashboard!$K98+Dashboard!$K122)*T4 -> 0 | U39: =(Dashboard!$K98+Dashboard!$K122)*U4 -> 0 | V39: =(Dashboard!$K98+Dashboard!$K122)*V4 -> 0 | W39: =(Dashboard!$K98+Dashboard!$K122)*W4 -> 0 | X39: =(Dashboard!$K98+Dashboard!$K122)*X4 -> 0
B40: Personeelskosten | G40: =H40/(Dashboard!K$91*Inzet_voertuig_Alt1*Per_km+Dashboard!K$91*Contractuele_uren_Alt1*Per_uur) -> 25 | H40: 500000 | I40: 0 | J40: =SUM(J26:J28)*Uurtarief -> 50000 | K40: 50000 | L40: 50000 | M40: 50000 | N40: 50000 | O40: 50000 | P40: 50000 | Q40: 50000 | R40: 50000 | S40: 50000 | T40: 0 | U40: 0 | V40: 0 | W40: 0 | X40: 0
B41: Rente | G41: =H41/(Dashboard!K$91*Inzet_voertuig_Alt1*Per_km+Dashboard!K$91*Contractuele_uren_Alt1*Per_uur) -> 0.6773399015 | H41: 13546.79803 | I41: 0 | J41: =I75*Rente_reeel+I74*zachte_rente_reeel1 -> 2463.054187 | K41: 2216.748768 | L41: 1970.44335 | M41: 1724.137931 | N41: 1477.832512 | O41: 1231.527094 | P41: 985.2216749 | Q41: 738.9162562 | R41: 492.6108374 | S41: 246.3054187 | T41: 0 | U41: 0 | V41: 0 | W41: 0 | X41: 0
B42: Bedrijfseconomische afschrijving | G42: =H42/(Dashboard!K$91*Inzet_voertuig_Alt1*Per_km+Dashboard!K$91*Contractuele_uren_Alt1*Per_uur) -> 4.9996 | H42: 99992 | I42: 0 | J42: =IFERROR((-$H59-Dashboard!$K92)/Dashboard!$K91*J4,0) -> 9999.2 | K42: =IFERROR((-$H59-Dashboard!$K92)/Dashboard!$K91*K4,0) -> 9999.2 | L42: =IFERROR((-$H59-Dashboard!$K92)/Dashboard!$K91*L4,0) -> 9999.2 | M42: =IFERROR((-$H59-Dashboard!$K92)/Dashboard!$K91*M4,0) -> 9999.2 | N42: =IFERROR((-$H59-Dashboard!$K92)/Dashboard!$K91*N4,0) -> 9999.2 | O42: =IFERROR((-$H59-Dashboard!$K92)/Dashboard!$K91*O4,0) -> 9999.2 | P42: =IFERROR((-$H59-Dashboard!$K92)/Dashboard!$K91*P4,0) -> 9999.2 | Q42: =IFERROR((-$H59-Dashboard!$K92)/Dashboard!$K91*Q4,0) -> 9999.2 | R42: =IFERROR((-$H59-Dashboard!$K92)/Dashboard!$K91*R4,0) -> 9999.2 | S42: =IFERROR((-$H59-Dashboard!$K92)/Dashboard!$K91*S4,0) -> 9999.2 | T42: =IFERROR((-$H59-Dashboard!$K92)/Dashboard!$K91*T4,0) -> 0 | U42: =IFERROR((-$H59-Dashboard!$K92)/Dashboard!$K91*U4,0) -> 0 | V42: =IFERROR((-$H59-Dashboard!$K92)/Dashboard!$K91*V4,0) -> 0 | W42: =IFERROR((-$H59-Dashboard!$K92)/Dashboard!$K91*W4,0) -> 0 | X42: =IFERROR((-$H59-Dashboard!$K92)/Dashboard!$K91*X4,0) -> 0
B43: Totaal Kritische Distributie Kosten | G43: =SUM(G34:G42) -> 31.6769399 | H43: 633538.798 | I43: =SUM(I34:I42) -> 0 | J43: 64462.25419 | K43: 64215.94877 | L43: 63969.64335 | M43: 63723.33793 | N43: 63477.03251 | O43: 63230.72709 | P43: 62984.42167 | Q43: 62738.11626 | R43: 62491.81084 | S43: 62245.50542 | T43: 0 | U43: 0 | V43: 0 | W43: 0 | X43: 0
B45: Overzicht kasstromen | E45: EUR | H45: Totaal | I45: =I32 -> 0 | J45: 1 | K45: 2 | L45: 3 | M45: 4 | N45: 5 | O45: 6 | P45: 7 | Q45: 8 | R45: 9 | S45: 10 | T45: 11 | U45: 12 | V45: 13 | W45: 14 | X45: 15
B46: negatieve cijfers = cash out, positieve cijfers = cash in
B47: Operationele kasstroom | H47: =SUM(I47:X47) -> -533546.798 | I47: =-I43+I42 -> 0 | J47: -54463.05419 | K47: -54216.74877 | L47: -53970.44335 | M47: -53724.13793 | N47: -53477.83251 | O47: =-O43+O42 -> -53231.52709 | P47: -52985.22167 | Q47: -52738.91626 | R47: -52492.61084 | S47: -52246.30542 | T47: 0 | U47: 0 | V47: 0 | W47: 0 | X47: 0
B48: (totaal kritische distributiekosten excl. afschrijving)
B50: Investering in voertuig | H50: =SUM(I50:X50) -> -100000 | I50: =-Dashboard!$K$90 -> -100000 | J50: 0 | K50: 0 | L50: 0 | M50: 0 | N50: 0 | O50: 0 | P50: 0 | Q50: 0 | R50: 0 | S50: 0 | T50: 0 | U50: 0 | V50: 0 | W50: 0 | X50: 0
B51: Investeringssubsidie | H51: =SUM(I51:X51) -> 0 | I51: =-Dashboard!$K115*I50 -> 0 | J51: 0 | K51: 0 | L51: 0 | M51: 0 | N51: 0 | O51: 0 | P51: 0 | Q51: 0 | R51: 0 | S51: 0 | T51: 0 | U51: 0 | V51: 0 | W51: 0 | X51: 0
B52: Investering na investeringssubsidie | H52: =SUM(I52:X52) -> -100000 | I52: =SUM(I50:I51) -> -100000 | J52: =SUM(J50:J51) -> 0 | K52: 0 | L52: 0 | M52: 0 | N52: 0 | O52: 0 | P52: 0 | Q52: 0 | R52: 0 | S52: 0 | T52: 0 | U52: 0 | V52: 0 | W52: 0 | X52: 0
B53: Exploitatiesubsidie | H53: =SUM(I53:X53) -> 0 | I53: =Dashboard!$K124 -> 0 | J53: 0 | K53: 0 | L53: 0 | M53: 0 | N53: 0 | O53: 0 | P53: 0 | Q53: 0 | R53: 0 | S53: 0 | T53: 0 | U53: 0 | V53: 0 | W53: 0 | X53: 0
B54: Investering na investering- en exploitatiesubsidie | H54: =SUM(I54:X54) -> -100000 | I54: =SUM(I52:I53) -> -100000 | J54: =SUM(J52:J53) -> 0 | K54: 0 | L54: 0 | M54: 0 | N54: 0 | O54: 0 | P54: 0 | Q54: 0 | R54: 0 | S54: 0 | T54: 0 | U54: 0 | V54: 0 | W54: 0 | X54: 0
B56: Kasstroomeffect MIA | H56: =SUM(I56:X56) -> 0 | I56: =-I52*Dashboard!$K113*VpB -> 0 | J56: =-J52*Dashboard!$K113*VpB -> 0 | K56: =-K52*Dashboard!$K113*VpB -> 0 | L56: =-L52*Dashboard!$K113*VpB -> 0 | M56: =-M52*Dashboard!$K113*VpB -> 0 | N56: =-N52*Dashboard!$K113*VpB -> 0 | O56: =-O52*Dashboard!$K113*VpB -> 0 | P56: =-P52*Dashboard!$K113*VpB -> 0 | Q56: =-Q52*Dashboard!$K113*VpB -> 0 | R56: =-R52*Dashboard!$K113*VpB -> 0 | S56: =-S52*Dashboard!$K113*VpB -> 0 | T56: =-T52*Dashboard!$K113*VpB -> 0 | U56: =-U52*Dashboard!$K113*VpB -> 0 | V56: =-V52*Dashboard!$K113*VpB -> 0 | W56: =-W52*Dashboard!$K113*VpB -> 0 | X56: =-X52*Dashboard!$K113*VpB -> 0
B57: Kasstroomeffect VAMIL | H57: =SUM(I57:X57) -> 0 | I57: =(I10-I9)*-$H52*VpB -> 0 | J57: 0 | K57: 0 | L57: 0 | M57: 0 | N57: 0 | O57: 0 | P57: 0 | Q57: 0 | R57: 0 | S57: 0 | T57: 0 | U57: 0 | V57: 0 | W57: 0 | X57: 0
B59: Netto investeringsgerelateerde kassstroom | H59: =SUM(I59:X59) -> -100000 | I59: =SUM(I54:I57) -> -100000 | J59: =SUM(J54:J57) -> 0 | K59: 0 | L59: 0 | M59: 0 | N59: 0 | O59: 0 | P59: 0 | Q59: 0 | R59: 0 | S59: 0 | T59: 0 | U59: 0 | V59: 0 | W59: 0 | X59: 0
B61: Opname zachte leningen | H61: =SUM(I61:X61) -> 0 | I61: =Dashboard!$K127*-I59 -> 0 | J61: =Dashboard!$K127*-J59 -> 0 | K61: =Dashboard!$K127*-K59 -> 0 | L61: =Dashboard!$K127*-L59 -> 0 | M61: =Dashboard!$K127*-M59 -> 0 | N61: =Dashboard!$K127*-N59 -> 0 | O61: =Dashboard!$K127*-O59 -> 0 | P61: =Dashboard!$K127*-P59 -> 0 | Q61: =Dashboard!$K127*-Q59 -> 0 | R61: =Dashboard!$K127*-R59 -> 0 | S61: =Dashboard!$K127*-S59 -> 0 | T61: =Dashboard!$K127*-T59 -> 0 | U61: =Dashboard!$K127*-U59 -> 0 | V61: =Dashboard!$K127*-V59 -> 0 | W61: =Dashboard!$K127*-W59 -> 0 | X61: =Dashboard!$K127*-X59 -> 0
B62: Opname reguliere leningen | H62: =SUM(I62:X62) -> 100000 | I62: =(1-Dashboard!$K127)*-I59 -> 100000 | J62: =(1-Dashboard!$K127)*-J59 -> 0 | K62: =(1-Dashboard!$K127)*-K59 -> 0 | L62: =(1-Dashboard!$K127)*-L59 -> 0 | M62: =(1-Dashboard!$K127)*-M59 -> 0 | N62: =(1-Dashboard!$K127)*-N59 -> 0 | O62: =(1-Dashboard!$K127)*-O59 -> 0 | P62: =(1-Dashboard!$K127)*-P59 -> 0 | Q62: =(1-Dashboard!$K127)*-Q59 -> 0 | R62: =(1-Dashboard!$K127)*-R59 -> 0 | S62: =(1-Dashboard!$K127)*-S59 -> 0 | T62: =(1-Dashboard!$K127)*-T59 -> 0 | U62: =(1-Dashboard!$K127)*-U59 -> 0 | V62: =(1-Dashboard!$K127)*-V59 -> 0 | W62: =(1-Dashboard!$K127)*-W59 -> 0 | X62: =(1-Dashboard!$K127)*-X59 -> 0
B63: Aflossing zachte leningen | H63: =SUM(I63:X63) -> 0 | I63: 0 | J63: =IFERROR(-I74/(Dashboard!$K91-I45)*J5-(I74+J61)*J6,0) -> 0 | K63: =IFERROR(-J74/(Dashboard!$K91-J45)*K5-(J74+K61)*K6,0) -> 0 | L63: =IFERROR(-K74/(Dashboard!$K91-K45)*L5-(K74+L61)*L6,0) -> 0 | M63: =IFERROR(-L74/(Dashboard!$K91-L45)*M5-(L74+M61)*M6,0) -> 0 | N63: =IFERROR(-M74/(Dashboard!$K91-M45)*N5-(M74+N61)*N6,0) -> 0 | O63: =IFERROR(-N74/(Dashboard!$K91-N45)*O5-(N74+O61)*O6,0) -> 0 | P63: =IFERROR(-O74/(Dashboard!$K91-O45)*P5-(O74+P61)*P6,0) -> 0 | Q63: =IFERROR(-P74/(Dashboard!$K91-P45)*Q5-(P74+Q61)*Q6,0) -> 0 | R63: =IFERROR(-Q74/(Dashboard!$K91-Q45)*R5-(Q74+R61)*R6,0) -> 0 | S63: =IFERROR(-R74/(Dashboard!$K91-R45)*S5-(R74+S61)*S6,0) -> 0 | T63: =IFERROR(-S74/(Dashboard!$K91-S45)*T5-(S74+T61)*T6,0) -> 0 | U63: =IFERROR(-T74/(Dashboard!$K91-T45)*U5-(T74+U61)*U6,0) -> 0 | V63: =IFERROR(-U74/(Dashboard!$K91-U45)*V5-(U74+V61)*V6,0) -> 0 | W63: =IFERROR(-V74/(Dashboard!$K91-V45)*W5-(V74+W61)*W6,0) -> 0 | X63: =IFERROR(-W74/(Dashboard!$K91-W45)*X5-(W74+X61)*X6,0) -> 0
B64: Aflossing reguliere leningen | H64: =SUM(I64:X64) -> -100000 | I64: 0 | J64: =IFERROR(-I75/SUM(J4:$X4)*J5-(I75+J62)*J6,0) -> -10000 | K64: =IFERROR(-J75/SUM(K4:$X4)*K5-(J75+K62)*K6,0) -> -10000 | L64: =IFERROR(-K75/SUM(L4:$X4)*L5-(K75+L62)*L6,0) -> -10000 | M64: =IFERROR(-L75/SUM(M4:$X4)*M5-(L75+M62)*M6,0) -> -10000 | N64: =IFERROR(-M75/SUM(N4:$X4)*N5-(M75+N62)*N6,0) -> -10000 | O64: =IFERROR(-N75/SUM(O4:$X4)*O5-(N75+O62)*O6,0) -> -10000 | P64: =IFERROR(-O75/SUM(P4:$X4)*P5-(O75+P62)*P6,0) -> -10000 | Q64: =IFERROR(-P75/SUM(Q4:$X4)*Q5-(P75+Q62)*Q6,0) -> -10000 | R64: =IFERROR(-Q75/SUM(R4:$X4)*R5-(Q75+R62)*R6,0) -> -10000 | S64: =IFERROR(-R75/SUM(S4:$X4)*S5-(R75+S62)*S6,0) -> -10000 | T64: =IFERROR(-S75/SUM(T4:$X4)*T5-(S75+T62)*T6,0) -> 0 | U64: =IFERROR(-T75/SUM(U4:$X4)*U5-(T75+U62)*U6,0) -> 0 | V64: =IFERROR(-U75/SUM(V4:$X4)*V5-(U75+V62)*V6,0) -> 0 | W64: =IFERROR(-V75/SUM(W4:$X4)*W5-(V75+W62)*W6,0) -> 0 | X64: =IFERROR(-W75/SUM(X4:$X4)*X5-(W75+X62)*X6,0) -> 0
B66: Financieringskasstroom | H66: =SUM(I66:X66) -> 0 | I66: =SUM(I61:I64) -> 100000 | J66: -10000 | K66: -10000 | L66: -10000 | M66: -10000 | N66: -10000 | O66: -10000 | P66: -10000 | Q66: -10000 | R66: -10000 | S66: -10000 | T66: 0 | U66: 0 | V66: 0 | W66: 0 | X66: 0
B68: Totaal Kritische Distributie Kasstroom | H68: =SUM(I68:X68) -> -633546.798 | I68: =I47+I59+I66 -> 0 | J68: -64463.05419 | K68: -64216.74877 | L68: -63970.44335 | M68: -63724.13793 | N68: -63477.83251 | O68: -63231.52709 | P68: -62985.22167 | Q68: -62738.91626 | R68: -62492.61084 | S68: -62246.30542 | T68: 0 | U68: 0 | V68: 0 | W68: 0 | X68: 0
B70: Balanspositie voertuig | E70: EUR | I70: =I32 -> 0 | J70: 1 | K70: 2 | L70: 3 | M70: 4 | N70: 5 | O70: 6 | P70: 7 | Q70: 8 | R70: 9 | S70: 10 | T70: 11 | U70: 12 | V70: 13 | W70: 14 | X70: 15
B72: Hoofdvoertuig (boekwaarde) | I72: =(H72-I54-I56-I42)*J4 -> 100000 | J72: 90000.8 | K72: 80001.6 | L72: 70002.4 | M72: 60003.2 | N72: 50004 | O72: 40004.8 | P72: 30005.6 | Q72: 20006.4 | R72: 10007.2 | S72: 0 | T72: 0 | U72: 0 | V72: 0 | W72: 0 | X72: 0
B74: Zachte leningen | I74: =H74+I61+I63 -> 0 | J74: 0 | K74: 0 | L74: 0 | M74: 0 | N74: 0 | O74: 0 | P74: 0 | Q74: 0 | R74: 0 | S74: 0 | T74: 0 | U74: 0 | V74: 0 | W74: 0 | X74: 0
B75: Reguliere leningen | I75: =H75+I62+I64 -> 100000 | J75: 90000 | K75: 80000 | L75: 70000 | M75: 60000 | N75: 50000 | O75: 40000 | P75: 30000 | Q75: 20000 | R75: 10000 | S75: 0 | T75: 0 | U75: 0 | V75: 0 | W75: 0 | X75: 0
B76: Totaal leningen | I76: =SUM(I74:I75) -> 100000 | J76: 90000 | K76: 80000 | L76: 70000 | M76: 60000 | N76: 50000 | O76: =SUM(O74:O75) -> 40000 | P76: 30000 | Q76: 20000 | R76: 10000 | S76: 0 | T76: 0 | U76: 0 | V76: 0 | W76: 0 | X76: 0
B78: Kasstroom maatregelen | E78: EUR | G78: Contant | H78: Totaal | I78: =I32 -> 0 | J78: 1 | K78: 2 | L78: 3 | M78: 4 | N78: 5 | O78: 6 | P78: 7 | Q78: 8 | R78: 9 | S78: 10 | T78: 11 | U78: 12 | V78: 13 | W78: 14 | X78: 15
B80: MIA | G80: =NPV(Discontovoet,J80:X80)+I80 -> 0 | H80: =SUM(I80:X80) -> 0 | I80: =I56 -> 0 | J80: 0 | K80: 0 | L80: 0 | M80: 0 | N80: 0 | O80: 0 | P80: 0 | Q80: 0 | R80: 0 | S80: 0 | T80: 0 | U80: 0 | V80: 0 | W80: 0 | X80: 0
B81: VAMIL | G81: =NPV(Discontovoet,J81:X81)+I81 -> 0 | H81: =SUM(I81:X81) -> 0 | I81: =I57 -> 0 | J81: 0 | K81: 0 | L81: 0 | M81: 0 | N81: 0 | O81: 0 | P81: 0 | Q81: 0 | R81: 0 | S81: 0 | T81: 0 | U81: 0 | V81: 0 | W81: 0 | X81: 0
B82: Kasstroom bestaande maatregelen | G82: =NPV(Discontovoet,J82:X82)+I82 -> 0 | H82: =SUM(I82:X82) -> 0 | I82: =SUM(I80:I81) -> 0 | J82: =SUM(J80:J81) -> 0 | K82: 0 | L82: 0 | M82: 0 | N82: 0 | O82: 0 | P82: 0 | Q82: 0 | R82: 0 | S82: 0 | T82: 0 | U82: 0 | V82: 0 | W82: 0 | X82: 0
B84: Subsidies | G84: =NPV(Discontovoet,J84:X84)+I84 -> 0 | H84: =SUM(I84:X84) -> 0 | I84: =I51+I53 -> 0 | J84: 0 | K84: 0 | L84: 0 | M84: 0 | N84: 0 | O84: 0 | P84: 0 | Q84: 0 | R84: 0 | S84: 0 | T84: 0 | U84: 0 | V84: 0 | W84: 0 | X84: 0
B85: Δ Voertuigbelastingen | G85: 0 | H85: 0 | I85: 0 | J85: =-Dashboard!$K120*J7 -> 0 | K85: =-Dashboard!$K120*K7 -> 0 | L85: =-Dashboard!$K120*L7 -> 0 | M85: =-Dashboard!$K120*M7 -> 0 | N85: =-Dashboard!$K120*N7 -> 0 | O85: =-Dashboard!$K120*O7 -> 0 | P85: =-Dashboard!$K120*P7 -> 0 | Q85: =-Dashboard!$K120*Q7 -> 0 | R85: =-Dashboard!$K120*R7 -> 0 | S85: =-Dashboard!$K120*S7 -> 0 | T85: =-Dashboard!$K120*T7 -> 0 | U85: =-Dashboard!$K120*U7 -> 0 | V85: =-Dashboard!$K120*V7 -> 0 | W85: =-Dashboard!$K120*W7 -> 0 | X85: =-Dashboard!$K120*X7 -> 0
B86: Δ Overige kosten | G86: 0 | H86: 0 | I86: 0 | J86: =-Dashboard!$K121*J7 -> 0 | K86: =-Dashboard!$K121*K7 -> 0 | L86: =-Dashboard!$K121*L7 -> 0 | M86: =-Dashboard!$K121*M7 -> 0 | N86: =-Dashboard!$K121*N7 -> 0 | O86: =-Dashboard!$K121*O7 -> 0 | P86: =-Dashboard!$K121*P7 -> 0 | Q86: =-Dashboard!$K121*Q7 -> 0 | R86: =-Dashboard!$K121*R7 -> 0 | S86: =-Dashboard!$K121*S7 -> 0 | T86: =-Dashboard!$K121*T7 -> 0 | U86: =-Dashboard!$K121*U7 -> 0 | V86: =-Dashboard!$K121*V7 -> 0 | W86: =-Dashboard!$K121*W7 -> 0 | X86: =-Dashboard!$K121*X7 -> 0
B87: Δ Kosten ontheffingen | G87: =NPV(Discontovoet,J87:X87)+I87 -> 0 | H87: 0 | I87: =-Dashboard!$K122*I7 -> 0 | J87: =-Dashboard!$K122*J7 -> 0 | K87: =-Dashboard!$K122*K7 -> 0 | L87: =-Dashboard!$K122*L7 -> 0 | M87: =-Dashboard!$K122*M7 -> 0 | N87: =-Dashboard!$K122*N7 -> 0 | O87: =-Dashboard!$K122*O7 -> 0 | P87: =-Dashboard!$K122*P7 -> 0 | Q87: =-Dashboard!$K122*Q7 -> 0 | R87: =-Dashboard!$K122*R7 -> 0 | S87: =-Dashboard!$K122*S7 -> 0 | T87: =-Dashboard!$K122*T7 -> 0 | U87: =-Dashboard!$K122*U7 -> 0 | V87: =-Dashboard!$K122*V7 -> 0 | W87: =-Dashboard!$K122*W7 -> 0 | X87: =-Dashboard!$K122*X7 -> 0
B88: Δ Brandstofprijs | G88: 0 | H88: 0 | I88: 0 | J88: =-Inzet_voertuig_Alt1*J7/100*Dashboard!$K93*Dashboard!$K123 -> 0 | K88: =-Inzet_voertuig_Alt1*K7/100*Dashboard!$K93*Dashboard!$K123 -> 0 | L88: =-Inzet_voertuig_Alt1*L7/100*Dashboard!$K93*Dashboard!$K123 -> 0 | M88: =-Inzet_voertuig_Alt1*M7/100*Dashboard!$K93*Dashboard!$K123 -> 0 | N88: =-Inzet_voertuig_Alt1*N7/100*Dashboard!$K93*Dashboard!$K123 -> 0 | O88: =-Inzet_voertuig_Alt1*O7/100*Dashboard!$K93*Dashboard!$K123 -> 0 | P88: =-Inzet_voertuig_Alt1*P7/100*Dashboard!$K93*Dashboard!$K123 -> 0 | Q88: =-Inzet_voertuig_Alt1*Q7/100*Dashboard!$K93*Dashboard!$K123 -> 0 | R88: =-Inzet_voertuig_Alt1*R7/100*Dashboard!$K93*Dashboard!$K123 -> 0 | S88: =-Inzet_voertuig_Alt1*S7/100*Dashboard!$K93*Dashboard!$K123 -> 0 | T88: =-Inzet_voertuig_Alt1*T7/100*Dashboard!$K93*Dashboard!$K123 -> 0 | U88: =-Inzet_voertuig_Alt1*U7/100*Dashboard!$K93*Dashboard!$K123 -> 0 | V88: =-Inzet_voertuig_Alt1*V7/100*Dashboard!$K93*Dashboard!$K123 -> 0 | W88: =-Inzet_voertuig_Alt1*W7/100*Dashboard!$K93*Dashboard!$K123 -> 0 | X88: =-Inzet_voertuig_Alt1*X7/100*Dashboard!$K93*Dashboard!$K123 -> 0
B89: Rentesubsidies | G89: 0 | H89: 0 | I89: 0 | J89: =I74*(Rente_reeel-zachte_rente_reeel1) -> 0 | K89: 0 | L89: 0 | M89: 0 | N89: 0 | O89: 0 | P89: 0 | Q89: 0 | R89: 0 | S89: 0 | T89: 0 | U89: 0 | V89: 0 | W89: 0 | X89: 0
B90: Kasstroom nieuwe maatregelen | G90: 0 | H90: =SUM(H84:H89) -> 0 | I90: 0 | J90: 0 | K90: 0 | L90: 0 | M90: 0 | N90: 0 | O90: 0 | P90: 0 | Q90: 0 | R90: 0 | S90: 0 | T90: 0 | U90: 0 | V90: 0 | W90: 0 | X90: =SUM(X85:X89) -> 0
B92: Totaal kasstroom maatregelen | G92: =NPV(Discontovoet,J92:X92)+I92 -> 0 | H92: =SUM(I92:X92) -> 0 | I92: =I82+I90 -> 0 | J92: 0 | K92: 0 | L92: 0 | M92: 0 | N92: 0 | O92: 0 | P92: 0 | Q92: 0 | R92: 0 | S92: 0 | T92: 0 | U92: 0 | V92: 0 | W92: 0 | X92: 0
B94: Emissies | G94: Contant | H94: Totaal | I94: =I32 -> 0 | J94: 1 | K94: 2 | L94: 3 | M94: 4 | N94: 5 | O94: 6 | P94: 7 | Q94: 8 | R94: 9 | S94: 10 | T94: 11 | U94: 12 | V94: 13 | W94: 14 | X94: 15
B96: Nominaal
B98: =Dashboard!U$63&" emissie CO2 ("&CO2_weight&"/jaar)" -> WtW emissie CO2 (ton/jaar) | J98: =IF(J94>Dashboard!$K91,I98*J7,(J21/100)*Dashboard!$K93*Dashboard!$K99)*CO2_factor -> 0 | K98: =IF(K94>Dashboard!$K91,J98*K7,(K21/100)*Dashboard!$K93*Dashboard!$K99)*CO2_factor -> 0 | L98: =IF(L94>Dashboard!$K91,K98*L7,(L21/100)*Dashboard!$K93*Dashboard!$K99)*CO2_factor -> 0 | M98: =IF(M94>Dashboard!$K91,L98*M7,(M21/100)*Dashboard!$K93*Dashboard!$K99)*CO2_factor -> 0 | N98: =IF(N94>Dashboard!$K91,M98*N7,(N21/100)*Dashboard!$K93*Dashboard!$K99)*CO2_factor -> 0 | O98: =IF(O94>Dashboard!$K91,N98*O7,(O21/100)*Dashboard!$K93*Dashboard!$K99)*CO2_factor -> 0 | P98: =IF(P94>Dashboard!$K91,O98*P7,(P21/100)*Dashboard!$K93*Dashboard!$K99)*CO2_factor -> 0 | Q98: =IF(Q94>Dashboard!$K91,P98*Q7,(Q21/100)*Dashboard!$K93*Dashboard!$K99)*CO2_factor -> 0 | R98: =IF(R94>Dashboard!$K91,Q98*R7,(R21/100)*Dashboard!$K93*Dashboard!$K99)*CO2_factor -> 0 | S98: =IF(S94>Dashboard!$K91,R98*S7,(S21/100)*Dashboard!$K93*Dashboard!$K99)*CO2_factor -> 0 | T98: =IF(T94>Dashboard!$K91,S98*T7,(T21/100)*Dashboard!$K93*Dashboard!$K99)*CO2_factor -> 0 | U98: =IF(U94>Dashboard!$K91,T98*U7,(U21/100)*Dashboard!$K93*Dashboard!$K99)*CO2_factor -> 0 | V98: =IF(V94>Dashboard!$K91,U98*V7,(V21/100)*Dashboard!$K93*Dashboard!$K99)*CO2_factor -> 0 | W98: =IF(W94>Dashboard!$K91,V98*W7,(W21/100)*Dashboard!$K93*Dashboard!$K99)*CO2_factor -> 0 | X98: =IF(X94>Dashboard!$K91,W98*X7,(X21/100)*Dashboard!$K93*Dashboard!$K99)*CO2_factor -> 0
B99: Kosten CO2 emissie (EUR/jaar) | J99: =J98*Kosten_CO2*CO2_factor_EUR -> 0 | K99: 0 | L99: 0 | M99: 0 | N99: 0 | O99: 0 | P99: 0 | Q99: 0 | R99: 0 | S99: 0 | T99: 0 | U99: 0 | V99: 0 | W99: 0 | X99: 0
B101: =Dashboard!U$64&" emissie NOx ("&NOx_weight&"/jaar)" -> TtW emissie NOx (kg/jaar) | J101: =IF(J94>Dashboard!$K91,I101*J7,(J21/100)*Dashboard!$K93*Dashboard!$K100)*NOx_factor -> 0 | K101: =IF(K94>Dashboard!$K91,J101*K7,(K21/100)*Dashboard!$K93*Dashboard!$K100)*NOx_factor -> 0 | L101: =IF(L94>Dashboard!$K91,K101*L7,(L21/100)*Dashboard!$K93*Dashboard!$K100)*NOx_factor -> 0 | M101: =IF(M94>Dashboard!$K91,L101*M7,(M21/100)*Dashboard!$K93*Dashboard!$K100)*NOx_factor -> 0 | N101: =IF(N94>Dashboard!$K91,M101*N7,(N21/100)*Dashboard!$K93*Dashboard!$K100)*NOx_factor -> 0 | O101: =IF(O94>Dashboard!$K91,N101*O7,(O21/100)*Dashboard!$K93*Dashboard!$K100)*NOx_factor -> 0 | P101: =IF(P94>Dashboard!$K91,O101*P7,(P21/100)*Dashboard!$K93*Dashboard!$K100)*NOx_factor -> 0 | Q101: =IF(Q94>Dashboard!$K91,P101*Q7,(Q21/100)*Dashboard!$K93*Dashboard!$K100)*NOx_factor -> 0 | R101: =IF(R94>Dashboard!$K91,Q101*R7,(R21/100)*Dashboard!$K93*Dashboard!$K100)*NOx_factor -> 0 | S101: =IF(S94>Dashboard!$K91,R101*S7,(S21/100)*Dashboard!$K93*Dashboard!$K100)*NOx_factor -> 0 | T101: =IF(T94>Dashboard!$K91,S101*T7,(T21/100)*Dashboard!$K93*Dashboard!$K100)*NOx_factor -> 0 | U101: =IF(U94>Dashboard!$K91,T101*U7,(U21/100)*Dashboard!$K93*Dashboard!$K100)*NOx_factor -> 0 | V101: =IF(V94>Dashboard!$K91,U101*V7,(V21/100)*Dashboard!$K93*Dashboard!$K100)*NOx_factor -> 0 | W101: =IF(W94>Dashboard!$K91,V101*W7,(W21/100)*Dashboard!$K93*Dashboard!$K100)*NOx_factor -> 0 | X101: =IF(X94>Dashboard!$K91,W101*X7,(X21/100)*Dashboard!$K93*Dashboard!$K100)*NOx_factor -> 0
B102: Kosten NOx emissie (EUR/jaar) | J102: =J101*Kosten_NOx*NOx_factor_EUR -> 0 | K102: 0 | L102: 0 | M102: 0 | N102: 0 | O102: 0 | P102: 0 | Q102: 0 | R102: 0 | S102: 0 | T102: 0 | U102: 0 | V102: 0 | W102: 0 | X102: 0
B104: =Dashboard!U$65&" emissie PM ("&PM_weight&"/jaar)" -> TtW emissie PM (dag/jaar) | J104: =IF(J94>Dashboard!$K91,I104*J7,(J21/100)*Dashboard!$K93*Dashboard!$K101)*PM_factor -> 156 | K104: =IF(K94>Dashboard!$K91,J104*K7,(K21/100)*Dashboard!$K93*Dashboard!$K101)*PM_factor -> 156 | L104: =IF(L94>Dashboard!$K91,K104*L7,(L21/100)*Dashboard!$K93*Dashboard!$K101)*PM_factor -> 156 | M104: =IF(M94>Dashboard!$K91,L104*M7,(M21/100)*Dashboard!$K93*Dashboard!$K101)*PM_factor -> 156 | N104: =IF(N94>Dashboard!$K91,M104*N7,(N21/100)*Dashboard!$K93*Dashboard!$K101)*PM_factor -> 156 | O104: =IF(O94>Dashboard!$K91,N104*O7,(O21/100)*Dashboard!$K93*Dashboard!$K101)*PM_factor -> 156 | P104: =IF(P94>Dashboard!$K91,O104*P7,(P21/100)*Dashboard!$K93*Dashboard!$K101)*PM_factor -> 156 | Q104: =IF(Q94>Dashboard!$K91,P104*Q7,(Q21/100)*Dashboard!$K93*Dashboard!$K101)*PM_factor -> 156 | R104: =IF(R94>Dashboard!$K91,Q104*R7,(R21/100)*Dashboard!$K93*Dashboard!$K101)*PM_factor -> 156 | S104: =IF(S94>Dashboard!$K91,R104*S7,(S21/100)*Dashboard!$K93*Dashboard!$K101)*PM_factor -> 156 | T104: =IF(T94>Dashboard!$K91,S104*T7,(T21/100)*Dashboard!$K93*Dashboard!$K101)*PM_factor -> 0 | U104: =IF(U94>Dashboard!$K91,T104*U7,(U21/100)*Dashboard!$K93*Dashboard!$K101)*PM_factor -> 0 | V104: =IF(V94>Dashboard!$K91,U104*V7,(V21/100)*Dashboard!$K93*Dashboard!$K101)*PM_factor -> 0 | W104: =IF(W94>Dashboard!$K91,V104*W7,(W21/100)*Dashboard!$K93*Dashboard!$K101)*PM_factor -> 0 | X104: =IF(X94>Dashboard!$K91,W104*X7,(X21/100)*Dashboard!$K93*Dashboard!$K101)*PM_factor -> 0
B105: Kosten PM emissie (EUR/jaar) | J105: =J104*Kosten_PM*PM_factor_EUR -> 912.6 | K105: 912.6 | L105: 912.6 | M105: 912.6 | N105: 912.6 | O105: 912.6 | P105: 912.6 | Q105: 912.6 | R105: 912.6 | S105: 912.6 | T105: 0 | U105: 0 | V105: 0 | W105: 0 | X105: 0
B107: ="emissie geluid (× 10^"&noise_weight&" dBh)" -> emissie geluid (× 10^4 dBh) | J107: =Referentie!J107 * 10^((Dashboard!$K$102-Dashboard!$I$102)/10) -> 1.64828892 | K107: =J107*K$7 -> 1.64828892 | L107: 1.64828892 | M107: 1.64828892 | N107: 1.64828892 | O107: 1.64828892 | P107: 1.64828892 | Q107: 1.64828892 | R107: 1.64828892 | S107: 1.64828892 | T107: 0 | U107: 0 | V107: 0 | W107: 0 | X107: 0
B108: Kosten emissie geluid (EUR/jaar) | J108: =Referentie!J108 * 10^((Dashboard!$K$102-Dashboard!$I$102)/10) * (J26/Referentie!J26) -> 136.3008146 | K108: 136.3008146 | L108: 136.3008146 | M108: 136.3008146 | N108: 136.3008146 | O108: 136.3008146 | P108: 136.3008146 | Q108: 136.3008146 | R108: 136.3008146 | S108: 136.3008146 | T108: 0 | U108: 0 | V108: 0 | W108: 0 | X108: 0
B110: ="Totale emissie ten opzichte van 1 referentievoertuig *)" -> Totale emissie ten opzichte van 1 referentievoertuig *)
B112: =Dashboard!U$63&" emissie CO2 ("&CO2_weight&"/jaar)" -> WtW emissie CO2 (ton/jaar) | J112: =J98/($J$21/Referentie!$J$21)-Referentie!J98 -> -16.15 | K112: =J112*K$7 -> -16.15 | L112: =K112*L$7 -> -16.15 | M112: -16.15 | N112: -16.15 | O112: -16.15 | P112: -16.15 | Q112: -16.15 | R112: -16.15 | S112: -16.15 | T112: 0 | U112: 0 | V112: 0 | W112: 0 | X112: 0
B113: Kosten CO2 emissie (EUR/jaar) | J113: =J99/($J$21/Referentie!$J$21)-Referentie!J99 -> -419.9 | K113: =J113*K$7 -> -419.9 | L113: -419.9 | M113: -419.9 | N113: -419.9 | O113: -419.9 | P113: -419.9 | Q113: -419.9 | R113: -419.9 | S113: -419.9 | T113: 0 | U113: 0 | V113: 0 | W113: 0 | X113: 0
B115: =Dashboard!U$64&" emissie NOx ("&NOx_weight&"/jaar)" -> TtW emissie NOx (kg/jaar) | J115: =J101/($J$21/Referentie!$J$21)-Referentie!J101 -> -10.305 | K115: =J115*K$7 -> -10.305 | L115: =K115*L$7 -> -10.305 | M115: -10.305 | N115: -10.305 | O115: -10.305 | P115: -10.305 | Q115: -10.305 | R115: -10.305 | S115: -10.305 | T115: 0 | U115: 0 | V115: 0 | W115: 0 | X115: 0
B116: Kosten NOx emissie (EUR/jaar) | J116: =J102/($J$21/Referentie!$J$21)-Referentie!J102 -> -113.355 | K116: =J116*K$7 -> -113.355 | L116: -113.355 | M116: -113.355 | N116: -113.355 | O116: -113.355 | P116: -113.355 | Q116: -113.355 | R116: -113.355 | S116: -113.355 | T116: 0 | U116: 0 | V116: 0 | W116: 0 | X116: 0
B118: =Dashboard!U$65&" emissie PM ("&PM_weight&"/jaar)" -> TtW emissie PM (dag/jaar) | J118: =J104/($J$21/Referentie!$J$21)-Referentie!J104 -> -22.5 | K118: =J118*K$7 -> -22.5 | L118: =K118*L$7 -> -22.5 | M118: -22.5 | N118: -22.5 | O118: -22.5 | P118: -22.5 | Q118: -22.5 | R118: -22.5 | S118: -22.5 | T118: 0 | U118: 0 | V118: 0 | W118: 0 | X118: 0
B119: Kosten PM emissie (EUR/jaar) | J119: =J105/($J$21/Referentie!$J$21)-Referentie!J105 -> -131.625 | K119: =J119*K$7 -> -131.625 | L119: -131.625 | M119: -131.625 | N119: -131.625 | O119: -131.625 | P119: -131.625 | Q119: -131.625 | R119: -131.625 | S119: -131.625 | T119: 0 | U119: 0 | V119: 0 | W119: 0 | X119: 0
B121: ="emissie geluid (× 10^"&noise_weight&" dBh)" -> emissie geluid (× 10^4 dBh) | J121: =J107/($J$21/Referentie!$J$21)-Referentie!J107 -> -8.75171108 | K121: =J121*K$7 -> -8.75171108 | L121: =K121*L$7 -> -8.75171108 | M121: -8.75171108 | N121: -8.75171108 | O121: -8.75171108 | P121: -8.75171108 | Q121: -8.75171108 | R121: -8.75171108 | S121: -8.75171108 | T121: 0 | U121: 0 | V121: 0 | W121: 0 | X121: 0
B122: Kosten emissie geluid (EUR/jaar) | J122: =J108/($J$21/Referentie!$J$21)-Referentie!J108 -> -723.6991854 | K122: =J122*K$7 -> -723.6991854 | L122: -723.6991854 | M122: -723.6991854 | N122: -723.6991854 | O122: -723.6991854 | P122: -723.6991854 | Q122: -723.6991854 | R122: -723.6991854 | S122: -723.6991854 | T122: 0 | U122: 0 | V122: 0 | W122: 0 | X122: 0
B124: =" *) het equivalent van 1 referentievoertuig is "&ROUND(1/I12,2)&" alternatief 1 voertuig(en)" -> *) het equivalent van 1 referentievoertuig is 1 alternatief 1 voertuig(en)
B126: Gemonetariseerd | G126: Contant | H126: Totaal
B128: Emissiewinst | G128: =NPV(Discontovoet,J128:X128)+I128 -> 11262.62105 | H128: =SUM(I128:X128) -> 13885.79185 | I128: 0 | J128: =-1*(J113+J116+J119+J122) -> 1388.579185 | K128: =-1*(K113+K116+K119+K122) -> 1388.579185 | L128: 1388.579185 | M128: 1388.579185 | N128: 1388.579185 | O128: 1388.579185 | P128: 1388.579185 | Q128: 1388.579185 | R128: 1388.579185 | S128: 1388.579185 | T128: 0 | U128: 0 | V128: 0 | W128: 0 | X128: 0
B129: Nieuwe maatregelen (excl. MIA/VAMIL) (-) | G129: =NPV(Discontovoet,J129:X129)+I129 -> 0 | H129: =SUM(I129:X129) -> 0 | I129: =-I90 -> 0 | J129: 0 | K129: 0 | L129: 0 | M129: 0 | N129: 0 | O129: 0 | P129: 0 | Q129: 0 | R129: 0 | S129: 0 | T129: 0 | U129: 0 | V129: 0 | W129: 0 | X129: 0
B130: Resultaat | D130: IRR: | E130: =IFERROR((1+IRR(I130:X130))*(1+Inflatie)-1,"n.v.t.") -> n.v.t. | G130: =NPV(Discontovoet,J130:X130)+I130 -> 11262.62105 | H130: =SUM(I130:X130) -> 13885.79185 | I130: =SUM(I128:I129) -> 0 | J130: =SUM(J128:J129) -> 1388.579185 | K130: 1388.579185 | L130: 1388.579185 | M130: 1388.579185 | N130: 1388.579185 | O130: 1388.579185 | P130: 1388.579185 | Q130: 1388.579185 | R130: 1388.579185 | S130: 1388.579185 | T130: 0 | U130: 0 | V130: 0 | W130: 0 | X130: 0
B132: Emissiewinst | G132: =NPV(Discontovoet,J132:X132)+I132 -> 11262.62105 | H132: =SUM(I132:X132) -> 13885.79185 | I132: 0 | J132: =J128 -> 1388.579185 | K132: =K128 -> 1388.579185 | L132: 1388.579185 | M132: 1388.579185 | N132: 1388.579185 | O132: 1388.579185 | P132: 1388.579185 | Q132: 1388.579185 | R132: 1388.579185 | S132: 1388.579185 | T132: 0 | U132: 0 | V132: 0 | W132: 0 | X132: 0
B133: Alle maatregelen (incl. MIA/VAMIL) (-) | G133: =NPV(Discontovoet,J133:X133)+I133 -> 0 | H133: =SUM(I133:X133) -> 0 | I133: =-I92 -> 0 | J133: 0 | K133: 0 | L133: 0 | M133: 0 | N133: 0 | O133: 0 | P133: 0 | Q133: 0 | R133: 0 | S133: 0 | T133: 0 | U133: 0 | V133: 0 | W133: 0 | X133: 0
B134: Resultaat | D134: IRR: | E134: =IFERROR((1+IRR(I134:X134))*(1+Inflatie)-1,"n.v.t.") -> n.v.t. | G134: =NPV(Discontovoet,J134:X134)+I134 -> 11262.62105 | H134: =SUM(I134:X134) -> 13885.79185 | I134: =SUM(I132:I133) -> 0 | J134: 1388.579185 | K134: 1388.579185 | L134: 1388.579185 | M134: 1388.579185 | N134: 1388.579185 | O134: 1388.579185 | P134: 1388.579185 | Q134: 1388.579185 | R134: 1388.579185 | S134: 1388.579185 | T134: 0 | U134: 0 | V134: 0 | W134: 0 | X134: 0

Sheet Alternatief 2
I2: =I19 -> 0 | J2: =J19 -> 1 | K2: 2 | L2: 3 | M2: 4 | N2: 5 | O2: 6 | P2: 7 | Q2: 8 | R2: 9 | S2: 10 | T2: 11 | U2: 12 | V2: 13 | W2: 14 | X2: 15
B4: Jaar meetellen regulier | H4: =SUM(I4:X4)-1 -> 10 | I4: 1 | J4: =IF(J2<=Dashboard!$M91,1,0) -> 1 | K4: =IF(K2<=Dashboard!$M91,1,0) -> 1 | L4: =IF(L2<=Dashboard!$M91,1,0) -> 1 | M4: =IF(M2<=Dashboard!$M91,1,0) -> 1 | N4: =IF(N2<=Dashboard!$M91,1,0) -> 1 | O4: =IF(O2<=Dashboard!$M91,1,0) -> 1 | P4: =IF(P2<=Dashboard!$M91,1,0) -> 1 | Q4: =IF(Q2<=Dashboard!$M91,1,0) -> 1 | R4: =IF(R2<=Dashboard!$M91,1,0) -> 1 | S4: =IF(S2<=Dashboard!$M91,1,0) -> 1 | T4: =IF(T2<=Dashboard!$M91,1,0) -> 0 | U4: =IF(U2<=Dashboard!$M91,1,0) -> 0 | V4: =IF(V2<=Dashboard!$M91,1,0) -> 0 | W4: =IF(W2<=Dashboard!$M91,1,0) -> 0 | X4: =IF(X2<=Dashboard!$M91,1,0) -> 0
B5: Jaar metellen financieringen | I5: =IF(I6=1,0,I4) -> 1 | J5: =IF(J6=1,0,J4) -> 1 | K5: 1 | L5: 1 | M5: 1 | N5: 1 | O5: 1 | P5: 1 | Q5: 1 | R5: 1 | S5: 0 | T5: 0 | U5: 0 | V5: 0 | W5: =IF(W6=1,0,W4) -> 0 | X5: =IF(X6=1,0,X4) -> 0
B6: Laatste jaar | I6: =IF(AND(I4=1,J4=0),1,0) -> 0 | J6: =IF(AND(J4=1,K4=0),1,0) -> 0 | K6: 0 | L6: 0 | M6: 0 | N6: 0 | O6: 0 | P6: 0 | Q6: 0 | R6: 0 | S6: 1 | T6: 0 | U6: 0 | V6: 0 | W6: =IF(AND(W4=1,X4=0),1,0) -> 0 | X6: =IF(AND(X4=1,Y4=0),1,0) -> 0
B7: Inzet voertuig | J7: =J4 -> 1 | K7: =K4 -> 1 | L7: 1 | M7: 1 | N7: 1 | O7: 1 | P7: 1 | Q7: 1 | R7: 1 | S7: 1 | T7: 0 | U7: 0 | V7: 0 | W7: 0 | X7: 0
B9: Bedrijfseconomische afschrijving | I9: 0 | J9: =IFERROR(1/Dashboard!$M91*J4,0) -> 0.1 | K9: =IFERROR(1/Dashboard!$M91*K4,0) -> 0.1 | L9: =IFERROR(1/Dashboard!$M91*L4,0) -> 0.1 | M9: =IFERROR(1/Dashboard!$M91*M4,0) -> 0.1 | N9: =IFERROR(1/Dashboard!$M91*N4,0) -> 0.1 | O9: =IFERROR(1/Dashboard!$M91*O4,0) -> 0.1 | P9: =IFERROR(1/Dashboard!$M91*P4,0) -> 0.1 | Q9: =IFERROR(1/Dashboard!$M91*Q4,0) -> 0.1 | R9: =IFERROR(1/Dashboard!$M91*R4,0) -> 0.1 | S9: =IFERROR(1/Dashboard!$M91*S4,0) -> 0.1 | T9: =IFERROR(1/Dashboard!$M91*T4,0) -> 0 | U9: =IFERROR(1/Dashboard!$M91*U4,0) -> 0 | V9: =IFERROR(1/Dashboard!$M91*V4,0) -> 0 | W9: =IFERROR(1/Dashboard!$M91*W4,0) -> 0 | X9: =IFERROR(1/Dashboard!$M91*X4,0) -> 0
B10: Fiscale afschrijving | I10: =MAX(Dashboard!M114,Referentie!I9) -> 0 | J10: =IFERROR((1-I10)/SUM(J4:W4)*J4,0) -> 0.1 | K10: =J10*K4 -> 0.1 | L10: 0.1 | M10: 0.1 | N10: 0.1 | O10: 0.1 | P10: 0.1 | Q10: 0.1 | R10: 0.1 | S10: 0.1 | T10: 0 | U10: 0 | V10: 0 | W10: 0 | X10: 0
B12: Aantal referentievoertuigen voor vergelijking | I12: =ROUND(J21/Referentie!J21,2) -> 1.2
J15: SPECIFICATIE ALTERNATIEF 2
B17: =IF(Alternatief2_Naam="","",Alternatief2_Naam) -> Elek1 | I17: =IF(Switch_Alt2=0,"Dit profiel is in het werkblad 'Dashboard' gedeactiveerd waardoor de foutencontrole is uitgeschakeld en dit overzicht mogelijk niet correct is",IF(SUM(Dashboard!S53:S62)>0,"Dit overzicht is mogelijk niet correct als gevolg van incomplete of foutieve invoer, check de foutmeldingen op werkblad 'Dashboard'","")) -> 
B19: Kerndata | H19: Totaal | I19: 0 | J19: 1 | K19: =J19+1 -> 2 | L19: 3 | M19: 4 | N19: 5 | O19: 6 | P19: 7 | Q19: 8 | R19: 9 | S19: 10 | T19: 11 | U19: 12 | V19: 13 | W19: 14 | X19: 15
B21: Aantal kilometers | H21: =SUM(I21:X21) -> 240000 | I21: 0 | J21: =Inzet_voertuig_Alt2*J4 -> 24000 | K21: 24000 | L21: 24000 | M21: 24000 | N21: 24000 | O21: 24000 | P21: 24000 | Q21: 24000 | R21: 24000 | S21: 24000 | T21: 0 | U21: 0 | V21: 0 | W21: 0 | X21: 0
B22: - waarvan binnen APV-tijden | H22: 0 | I22: =I21*Dashboard!$G76*(1-Dashboard!$M118) -> 0 | J22: =J21*Dashboard!$G76*(1-Dashboard!$M118) -> 0 | K22: =K21*Dashboard!$G76*(1-Dashboard!$M118) -> 0 | L22: =L21*Dashboard!$G76*(1-Dashboard!$M118) -> 0 | M22: =M21*Dashboard!$G76*(1-Dashboard!$M118) -> 0 | N22: =N21*Dashboard!$G76*(1-Dashboard!$M118) -> 0 | O22: =O21*Dashboard!$G76*(1-Dashboard!$M118) -> 0 | P22: =P21*Dashboard!$G76*(1-Dashboard!$M118) -> 0 | Q22: =Q21*Dashboard!$G76*(1-Dashboard!$M118) -> 0 | R22: =R21*Dashboard!$G76*(1-Dashboard!$M118) -> 0 | S22: =S21*Dashboard!$G76*(1-Dashboard!$M118) -> 0 | T22: =T21*Dashboard!$G76*(1-Dashboard!$M118) -> 0 | U22: =U21*Dashboard!$G76*(1-Dashboard!$M118) -> 0 | V22: =V21*Dashboard!$G76*(1-Dashboard!$M118) -> 0 | W22: =W21*Dashboard!$G76*(1-Dashboard!$M118) -> 0 | X22: =X21*Dashboard!$G76*(1-Dashboard!$M118) -> 0
B23: - waarvan buiten APV-tijden | H23: 240000 | I23: =I21*Dashboard!$G76*Dashboard!$M118 -> 0 | J23: =J21*Dashboard!$G76*Dashboard!$M118 -> 24000 | K23: =K21*Dashboard!$G76*Dashboard!$M118 -> 24000 | L23: =L21*Dashboard!$G76*Dashboard!$M118 -> 24000 | M23: =M21*Dashboard!$G76*Dashboard!$M118 -> 24000 | N23: =N21*Dashboard!$G76*Dashboard!$M118 -> 24000 | O23: =O21*Dashboard!$G76*Dashboard!$M118 -> 24000 | P23: =P21*Dashboard!$G76*Dashboard!$M118 -> 24000 | Q23: =Q21*Dashboard!$G76*Dashboard!$M118 -> 24000 | R23: =R21*Dashboard!$G76*Dashboard!$M118 -> 24000 | S23: =S21*Dashboard!$G76*Dashboard!$M118 -> 24000 | T23: =T21*Dashboard!$G76*Dashboard!$M118 -> 0 | U23: =U21*Dashboard!$G76*Dashboard!$M118 -> 0 | V23: =V21*Dashboard!$G76*Dashboard!$M118 -> 0 | W23: =W21*Dashboard!$G76*Dashboard!$M118 -> 0 | X23: =X21*Dashboard!$G76*Dashboard!$M118 -> 0
B24: - waarvan buiten APV-gebieden | H24: 0 | I24: =I21*(1-Dashboard!$G76) -> 0 | J24: =J21*(1-Dashboard!$G76) -> 0 | K24: =K21*(1-Dashboard!$G76) -> 0 | L24: =L21*(1-Dashboard!$G76) -> 0 | M24: =M21*(1-Dashboard!$G76) -> 0 | N24: =N21*(1-Dashboard!$G76) -> 0 | O24: =O21*(1-Dashboard!$G76) -> 0 | P24: =P21*(1-Dashboard!$G76) -> 0 | Q24: =Q21*(1-Dashboard!$G76) -> 0 | R24: =R21*(1-Dashboard!$G76) -> 0 | S24: =S21*(1-Dashboard!$G76) -> 0 | T24: =T21*(1-Dashboard!$G76) -> 0 | U24: =U21*(1-Dashboard!$G76) -> 0 | V24: =V21*(1-Dashboard!$G76) -> 0 | W24: =W21*(1-Dashboard!$G76) -> 0 | X24: =X21*(1-Dashboard!$G76) -> 0
B25: ="Brandstofverbruik ("&HLOOKUP(Alternatief2,Brandstofprofielen,4, FALSE)&")" -> Brandstofverbruik (kWh) | H25: 240000 | I25: 0 | J25: =J21/100*Dashboard!$M93 -> 24000 | K25: =K21/100*Dashboard!$M93 -> 24000 | L25: =L21/100*Dashboard!$M93 -> 24000 | M25: =M21/100*Dashboard!$M93 -> 24000 | N25: =N21/100*Dashboard!$M93 -> 24000 | O25: =O21/100*Dashboard!$M93 -> 24000 | P25: =P21/100*Dashboard!$M93 -> 24000 | Q25: =Q21/100*Dashboard!$M93 -> 24000 | R25: =R21/100*Dashboard!$M93 -> 24000 | S25: =S21/100*Dashboard!$M93 -> 24000 | T25: =T21/100*Dashboard!$M93 -> 0 | U25: =U21/100*Dashboard!$M93 -> 0 | V25: =V21/100*Dashboard!$M93 -> 0 | W25: =W21/100*Dashboard!$M93 -> 0 | X25: =X21/100*Dashboard!$M93 -> 0
B26: Aantal directe uren chauffeur | H26: 12000 | I26: 0 | J26: =J22/Snelheid_Venster+SUM(J23:J24)/Snelheid_Overig -> 1200 | K26: 1200 | L26: 1200 | M26: 1200 | N26: 1200 | O26: 1200 | P26: 1200 | Q26: 1200 | R26: 1200 | S26: 1200 | T26: 0 | U26: 0 | V26: 0 | W26: 0 | X26: 0
B27: Aantal indirecte uren chauffeur | H27: 8000 | I27: 0 | J27: =Indirecte_minuten/60*J21 -> 800 | K27: 800 | L27: 800 | M27: 800 | N27: 800 | O27: 800 | P27: 800 | Q27: 800 | R27: 800 | S27: 800 | T27: 0 | U27: 0 | V27: 0 | W27: 0 | X27: 0
B28: Aantal uren bijrijder(s) | H28: 0 | I28: 0 | J28: =(Bezetting-1)*SUM(J26:J27) -> 0 | K28: 0 | L28: 0 | M28: 0 | N28: 0 | O28: 0 | P28: 0 | Q28: 0 | R28: 0 | S28: 0 | T28: 0 | U28: 0 | V28: 0 | W28: 0 | X28: 0
B29: ="Brandstofprijs per "&Dashboard!I62&" (EUR)" -> Brandstofprijs per liter (EUR) | H29: =Brandstofprijs2+Dashboard!M123 -> 0.1
B30: Aantal uren per jaar | H30: =J26+J27 -> 2000
B32: Overzicht kosten | E32: EUR | G32: =IF(Per_uur=1,"Per uur","Per km") -> Per uur | H32: Totaal | I32: =I19 -> 0 | J32: 1 | K32: 2 | L32: 3 | M32: 4 | N32: 5 | O32: 6 | P32: 7 | Q32: 8 | R32: 9 | S32: 10 | T32: 11 | U32: 12 | V32: 13 | W32: 14 | X32: 15
B34: Brandstofkosten | G34: =H34/(Dashboard!M$91*Inzet_voertuig_Alt2*Per_km+Dashboard!M$91*Contractuele_uren_Alt2*Per_uur) -> 1.2 | H34: =SUM(I34:X34) -> 24000 | I34: 0 | J34: =J25*$H29 -> 2400 | K34: 2400 | L34: 2400 | M34: 2400 | N34: 2400 | O34: 2400 | P34: 2400 | Q34: 2400 | R34: 2400 | S34: 2400 | T34: 0 | U34: 0 | V34: 0 | W34: 0 | X34: 0
B35: Onderhoudskosten | G35: =H35/(Dashboard!M$91*Inzet_voertuig_Alt2*Per_km+Dashboard!M$91*Contractuele_uren_Alt2*Per_uur) -> 0 | H35: 0 | I35: 0 | J35: =Dashboard!$M94*J4 -> 0 | K35: =Dashboard!$M94*K4 -> 0 | L35: =Dashboard!$M94*L4 -> 0 | M35: =Dashboard!$M94*M4 -> 0 | N35: =Dashboard!$M94*N4 -> 0 | O35: =Dashboard!$M94*O4 -> 0 | P35: =Dashboard!$M94*P4 -> 0 | Q35: =Dashboard!$M94*Q4 -> 0 | R35: =Dashboard!$M94*R4 -> 0 | S35: =Dashboard!$M94*S4 -> 0 | T35: =Dashboard!$M94*T4 -> 0 | U35: =Dashboard!$M94*U4 -> 0 | V35: =Dashboard!$M94*V4 -> 0 | W35: =Dashboard!$M94*W4 -> 0 | X35: =Dashboard!$M94*X4 -> 0
B36: Verzekeringen | G36: =H36/(Dashboard!M$91*Inzet_voertuig_Alt2*Per_km+Dashboard!M$91*Contractuele_uren_Alt2*Per_uur) -> 0 | H36: 0 | I36: 0 | J36: =Dashboard!$M95*J4 -> 0 | K36: =Dashboard!$M95*K4 -> 0 | L36: =Dashboard!$M95*L4 -> 0 | M36: =Dashboard!$M95*M4 -> 0 | N36: =Dashboard!$M95*N4 -> 0 | O36: =Dashboard!$M95*O4 -> 0 | P36: =Dashboard!$M95*P4 -> 0 | Q36: =Dashboard!$M95*Q4 -> 0 | R36: =Dashboard!$M95*R4 -> 0 | S36: =Dashboard!$M95*S4 -> 0 | T36: =Dashboard!$M95*T4 -> 0 | U36: =Dashboard!$M95*U4 -> 0 | V36: =Dashboard!$M95*V4 -> 0 | W36: =Dashboard!$M95*W4 -> 0 | X36: =Dashboard!$M95*X4 -> 0
B37: Voertuigbelasting | G37: =H37/(Dashboard!M$91*Inzet_voertuig_Alt2*Per_km+Dashboard!M$91*Contractuele_uren_Alt2*Per_uur) -> 0 | H37: 0 | I37: 0 | J37: =(Dashboard!$M96+Dashboard!$M120)*J4 -> 0 | K37: =(Dashboard!$M96+Dashboard!$M120)*K4 -> 0 | L37: =(Dashboard!$M96+Dashboard!$M120)*L4 -> 0 | M37: =(Dashboard!$M96+Dashboard!$M120)*M4 -> 0 | N37: =(Dashboard!$M96+Dashboard!$M120)*N4 -> 0 | O37: =(Dashboard!$M96+Dashboard!$M120)*O4 -> 0 | P37: =(Dashboard!$M96+Dashboard!$M120)*P4 -> 0 | Q37: =(Dashboard!$M96+Dashboard!$M120)*Q4 -> 0 | R37: =(Dashboard!$M96+Dashboard!$M120)*R4 -> 0 | S37: =(Dashboard!$M96+Dashboard!$M120)*S4 -> 0 | T37: =(Dashboard!$M96+Dashboard!$M120)*T4 -> 0 | U37: =(Dashboard!$M96+Dashboard!$M120)*U4 -> 0 | V37: =(Dashboard!$M96+Dashboard!$M120)*V4 -> 0 | W37: =(Dashboard!$M96+Dashboard!$M120)*W4 -> 0 | X37: =(Dashboard!$M96+Dashboard!$M120)*X4 -> 0
B38: Overige kosten | G38: =H38/(Dashboard!M$91*Inzet_voertuig_Alt2*Per_km+Dashboard!M$91*Contractuele_uren_Alt2*Per_uur) -> 0 | H38: 0 | I38: 0 | J38: =(Dashboard!$M97+Dashboard!$M121)*J4 -> 0 | K38: =(Dashboard!$M97+Dashboard!$M121)*K4 -> 0 | L38: =(Dashboard!$M97+Dashboard!$M121)*L4 -> 0 | M38: =(Dashboard!$M97+Dashboard!$M121)*M4 -> 0 | N38: =(Dashboard!$M97+Dashboard!$M121)*N4 -> 0 | O38: =(Dashboard!$M97+Dashboard!$M121)*O4 -> 0 | P38: =(Dashboard!$M97+Dashboard!$M121)*P4 -> 0 | Q38: =(Dashboard!$M97+Dashboard!$M121)*Q4 -> 0 | R38: =(Dashboard!$M97+Dashboard!$M121)*R4 -> 0 | S38: =(Dashboard!$M97+Dashboard!$M121)*S4 -> 0 | T38: =(Dashboard!$M97+Dashboard!$M121)*T4 -> 0 | U38: =(Dashboard!$M97+Dashboard!$M121)*U4 -> 0 | V38: =(Dashboard!$M97+Dashboard!$M121)*V4 -> 0 | W38: =(Dashboard!$M97+Dashboard!$M121)*W4 -> 0 | X38: =(Dashboard!$M97+Dashboard!$M121)*X4 -> 0
B39: Kosten ontheffingen | G39: =H39/(Dashboard!M$91*Inzet_voertuig_Alt2*Per_km+Dashboard!M$91*Contractuele_uren_Alt2*Per_uur) -> 0 | H39: 0 | I39: 0 | J39: =(Dashboard!$M98+Dashboard!$M122)*J4 -> 0 | K39: =(Dashboard!$M98+Dashboard!$M122)*K4 -> 0 | L39: =(Dashboard!$M98+Dashboard!$M122)*L4 -> 0 | M39: =(Dashboard!$M98+Dashboard!$M122)*M4 -> 0 | N39: =(Dashboard!$M98+Dashboard!$M122)*N4 -> 0 | O39: =(Dashboard!$M98+Dashboard!$M122)*O4 -> 0 | P39: =(Dashboard!$M98+Dashboard!$M122)*P4 -> 0 | Q39: =(Dashboard!$M98+Dashboard!$M122)*Q4 -> 0 | R39: =(Dashboard!$M98+Dashboard!$M122)*R4 -> 0 | S39: =(Dashboard!$M98+Dashboard!$M122)*S4 -> 0 | T39: =(Dashboard!$M98+Dashboard!$M122)*T4 -> 0 | U39: =(Dashboard!$M98+Dashboard!$M122)*U4 -> 0 | V39: =(Dashboard!$M98+Dashboard!$M122)*V4 -> 0 | W39: =(Dashboard!$M98+Dashboard!$M122)*W4 -> 0 | X39: =(Dashboard!$M98+Dashboard!$M122)*X4 -> 0
B40: Personeelskosten | G40: =H40/(Dashboard!M$91*Inzet_voertuig_Alt2*Per_km+Dashboard!M$91*Contractuele_uren_Alt2*Per_uur) -> 25 | H40: 500000 | I40: 0 | J40: =SUM(J26:J28)*Uurtarief -> 50000 | K40: 50000 | L40: 50000 | M40: 50000 | N40: 50000 | O40: 50000 | P40: 50000 | Q40: 50000 | R40: 50000 | S40: 50000 | T40: 0 | U40: 0 | V40: 0 | W40: 0 | X40: 0
B41: Rente | G41: =H41/(Dashboard!M$91*Inzet_voertuig_Alt2*Per_km+Dashboard!M$91*Contractuele_uren_Alt2*Per_uur) -> 0.6773399015 | H41: 13546.79803 | I41: 0 | J41: =I75*Rente_reeel+I74*zachte_rente_reeel2 -> 2463.054187 | K41: 2216.748768 | L41: 1970.44335 | M41: 1724.137931 | N41: 1477.832512 | O41: 1231.527094 | P41: 985.2216749 | Q41: 738.9162562 | R41: 492.6108374 | S41: 246.3054187 | T41: 0 | U41: 0 | V41: 0 | W41: 0 | X41: 0
B42: Bedrijfseconomische afschrijving | G42: =H42/(Dashboard!M$91*Inzet_voertuig_Alt2*Per_km+Dashboard!M$91*Contractuele_uren_Alt2*Per_uur) -> 4.9996 | H42: 99992 | I42: 0 | J42: =IFERROR((-$H59-Dashboard!$M92)/Dashboard!$M91*J4,0) -> 9999.2 | K42: =IFERROR((-$H59-Dashboard!$M92)/Dashboard!$M91*K4,0) -> 9999.2 | L42: =IFERROR((-$H59-Dashboard!$M92)/Dashboard!$M91*L4,0) -> 9999.2 | M42: =IFERROR((-$H59-Dashboard!$M92)/Dashboard!$M91*M4,0) -> 9999.2 | N42: =IFERROR((-$H59-Dashboard!$M92)/Dashboard!$M91*N4,0) -> 9999.2 | O42: =IFERROR((-$H59-Dashboard!$M92)/Dashboard!$M91*O4,0) -> 9999.2 | P42: =IFERROR((-$H59-Dashboard!$M92)/Dashboard!$M91*P4,0) -> 9999.2 | Q42: =IFERROR((-$H59-Dashboard!$M92)/Dashboard!$M91*Q4,0) -> 9999.2 | R42: =IFERROR((-$H59-Dashboard!$M92)/Dashboard!$M91*R4,0) -> 9999.2 | S42: =IFERROR((-$H59-Dashboard!$M92)/Dashboard!$M91*S4,0) -> 9999.2 | T42: =IFERROR((-$H59-Dashboard!$M92)/Dashboard!$M91*T4,0) -> 0 | U42: =IFERROR((-$H59-Dashboard!$M92)/Dashboard!$M91*U4,0) -> 0 | V42: =IFERROR((-$H59-Dashboard!$M92)/Dashboard!$M91*V4,0) -> 0 | W42: =IFERROR((-$H59-Dashboard!$M92)/Dashboard!$M91*W4,0) -> 0 | X42: =IFERROR((-$H59-Dashboard!$M92)/Dashboard!$M91*X4,0) -> 0
B43: Totaal Kritische Distributie Kosten | G43: =SUM(G34:G42) -> 31.8769399 | H43: 637538.798 | I43: =SUM(I34:I42) -> 0 | J43: 64862.25419 | K43: 64615.94877 | L43: 64369.64335 | M43: 64123.33793 | N43: 63877.03251 | O43: 63630.72709 | P43: 63384.42167 | Q43: 63138.11626 | R43: 62891.81084 | S43: 62645.50542 | T43: 0 | U43: 0 | V43: 0 | W43: 0 | X43: 0
B45: Overzicht kasstromen | E45: EUR | H45: Totaal | I45: =I32 -> 0 | J45: 1 | K45: 2 | L45: 3 | M45: 4 | N45: 5 | O45: =O32 -> 6 | P45: 7 | Q45: 8 | R45: 9 | S45: 10 | T45: 11 | U45: 12 | V45: 13 | W45: 14 | X45: 15
B46: negatieve cijfers = cash out, positieve cijfers = cash in
B47: Operationele kasstroom | H47: =SUM(I47:X47) -> -537546.798 | I47: =-I43+I42 -> 0 | J47: -54863.05419 | K47: -54616.74877 | L47: -54370.44335 | M47: -54124.13793 | N47: -53877.83251 | O47: =-O43+O42 -> -53631.52709 | P47: -53385.22167 | Q47: -53138.91626 | R47: -52892.61084 | S47: -52646.30542 | T47: 0 | U47: 0 | V47: 0 | W47: 0 | X47: 0
B48: (totaal kritische distributiekosten excl. afschrijving)
B50: Investering in voertuig | H50: =SUM(I50:X50) -> -100000 | I50: =-Dashboard!$M$90 -> -100000 | J50: 0 | K50: 0 | L50: 0 | M50: 0 | N50: 0 | O50: 0 | P50: 0 | Q50: 0 | R50: 0 | S50: 0 | T50: 0 | U50: 0 | V50: 0 | W50: 0 | X50: 0
B51: Investeringssubsidie | H51: =SUM(I51:X51) -> 0 | I51: =-Dashboard!$M115*I50 -> 0 | J51: 0 | K51: 0 | L51: 0 | M51: 0 | N51: 0 | O51: 0 | P51: 0 | Q51: 0 | R51: 0 | S51: 0 | T51: 0 | U51: 0 | V51: 0 | W51: 0 | X51: 0
B52: Investering na investeringssubsidie | H52: =SUM(I52:X52) -> -100000 | I52: =SUM(I50:I51) -> -100000 | J52: =SUM(J50:J51) -> 0 | K52: 0 | L52: 0 | M52: 0 | N52: 0 | O52: 0 | P52: 0 | Q52: 0 | R52: 0 | S52: 0 | T52: 0 | U52: 0 | V52: 0 | W52: 0 | X52: 0
B53: Exploitatiesubsidie | H53: =SUM(I53:X53) -> 0 | I53: =Dashboard!$M124 -> 0 | J53: 0 | K53: 0 | L53: 0 | M53: 0 | N53: 0 | O53: 0 | P53: 0 | Q53: 0 | R53: 0 | S53: 0 | T53: 0 | U53: 0 | V53: 0 | W53: 0 | X53: 0
B54: Investering na investering- en exploitatiesubsidie | H54: =SUM(I54:X54) -> -100000 | I54: =SUM(I52:I53) -> -100000 | J54: =SUM(J52:J53) -> 0 | K54: 0 | L54: 0 | M54: 0 | N54: 0 | O54: 0 | P54: 0 | Q54: 0 | R54: 0 | S54: 0 | T54: 0 | U54: 0 | V54: 0 | W54: 0 | X54: 0
B56: Kasstroomeffect MIA | H56: =SUM(I56:X56) -> 0 | I56: =-I52*Dashboard!$M113*VpB -> 0 | J56: =-J52*Dashboard!$M113*VpB -> 0 | K56: =-K52*Dashboard!$M113*VpB -> 0 | L56: =-L52*Dashboard!$M113*VpB -> 0 | M56: =-M52*Dashboard!$M113*VpB -> 0 | N56: =-N52*Dashboard!$M113*VpB -> 0 | O56: =-O52*Dashboard!$M113*VpB -> 0 | P56: =-P52*Dashboard!$M113*VpB -> 0 | Q56: =-Q52*Dashboard!$M113*VpB -> 0 | R56: =-R52*Dashboard!$M113*VpB -> 0 | S56: =-S52*Dashboard!$M113*VpB -> 0 | T56: =-T52*Dashboard!$M113*VpB -> 0 | U56: =-U52*Dashboard!$M113*VpB -> 0 | V56: =-V52*Dashboard!$M113*VpB -> 0 | W56: =-W52*Dashboard!$M113*VpB -> 0 | X56: =-X52*Dashboard!$M113*VpB -> 0
B57: Kasstroomeffect VAMIL | H57: =SUM(I57:X57) -> 0 | I57: =(I10-I9)*-$H52*VpB -> 0 | J57: 0 | K57: 0 | L57: 0 | M57: 0 | N57: 0 | O57: 0 | P57: 0 | Q57: 0 | R57: 0 | S57: 0 | T57: 0 | U57: 0 | V57: 0 | W57: 0 | X57: 0
B59: Netto investeringsgerelateerde kassstroom | H59: =SUM(I59:X59) -> -100000 | I59: =SUM(I54:I57) -> -100000 | J59: =SUM(J54:J57) -> 0 | K59: 0 | L59: 0 | M59: 0 | N59: 0 | O59: 0 | P59: 0 | Q59: 0 | R59: 0 | S59: 0 | T59: 0 | U59: 0 | V59: 0 | W59: 0 | X59: 0
B61: Opname zachte leningen | H61: =SUM(I61:X61) -> 0 | I61: =Dashboard!$M127*-I59 -> 0 | J61: =Dashboard!$M127*-J59 -> 0 | K61: =Dashboard!$M127*-K59 -> 0 | L61: =Dashboard!$M127*-L59 -> 0 | M61: =Dashboard!$M127*-M59 -> 0 | N61: =Dashboard!$M127*-N59 -> 0 | O61: =Dashboard!$M127*-O59 -> 0 | P61: =Dashboard!$M127*-P59 -> 0 | Q61: =Dashboard!$M127*-Q59 -> 0 | R61: =Dashboard!$M127*-R59 -> 0 | S61: =Dashboard!$M127*-S59 -> 0 | T61: =Dashboard!$M127*-T59 -> 0 | U61: =Dashboard!$M127*-U59 -> 0 | V61: =Dashboard!$M127*-V59 -> 0 | W61: =Dashboard!$M127*-W59 -> 0 | X61: =Dashboard!$M127*-X59 -> 0
B62: Opname reguliere leningen | H62: =SUM(I62:X62) -> 100000 | I62: =(1-Dashboard!$M127)*-I59 -> 100000 | J62: =(1-Dashboard!$M127)*-J59 -> 0 | K62: =(1-Dashboard!$M127)*-K59 -> 0 | L62: =(1-Dashboard!$M127)*-L59 -> 0 | M62: =(1-Dashboard!$M127)*-M59 -> 0 | N62: =(1-Dashboard!$M127)*-N59 -> 0 | O62: =(1-Dashboard!$M127)*-O59 -> 0 | P62: =(1-Dashboard!$M127)*-P59 -> 0 | Q62: =(1-Dashboard!$M127)*-Q59 -> 0 | R62: =(1-Dashboard!$M127)*-R59 -> 0 | S62: =(1-Dashboard!$M127)*-S59 -> 0 | T62: =(1-Dashboard!$M127)*-T59 -> 0 | U62: =(1-Dashboard!$M127)*-U59 -> 0 | V62: =(1-Dashboard!$M127)*-V59 -> 0 | W62: =(1-Dashboard!$M127)*-W59 -> 0 | X62: =(1-Dashboard!$M127)*-X59 -> 0
B63: Aflossing zachte leningen | H63: =SUM(I63:X63) -> 0 | I63: 0 | J63: =IFERROR(-I74/(Dashboard!$M91-I45)*J5-(I74+J61)*J6,0) -> 0 | K63: =IFERROR(-J74/(Dashboard!$M91-J45)*K5-(J74+K61)*K6,0) -> 0 | L63: =IFERROR(-K74/(Dashboard!$M91-K45)*L5-(K74+L61)*L6,0) -> 0 | M63: =IFERROR(-L74/(Dashboard!$M91-L45)*M5-(L74+M61)*M6,0) -> 0 | N63: =IFERROR(-M74/(Dashboard!$M91-M45)*N5-(M74+N61)*N6,0) -> 0 | O63: =IFERROR(-N74/(Dashboard!$M91-N45)*O5-(N74+O61)*O6,0) -> 0 | P63: =IFERROR(-O74/(Dashboard!$M91-O45)*P5-(O74+P61)*P6,0) -> 0 | Q63: =IFERROR(-P74/(Dashboard!$M91-P45)*Q5-(P74+Q61)*Q6,0) -> 0 | R63: =IFERROR(-Q74/(Dashboard!$M91-Q45)*R5-(Q74+R61)*R6,0) -> 0 | S63: =IFERROR(-R74/(Dashboard!$M91-R45)*S5-(R74+S61)*S6,0) -> 0 | T63: =IFERROR(-S74/(Dashboard!$M91-S45)*T5-(S74+T61)*T6,0) -> 0 | U63: =IFERROR(-T74/(Dashboard!$M91-T45)*U5-(T74+U61)*U6,0) -> 0 | V63: =IFERROR(-U74/(Dashboard!$M91-U45)*V5-(U74+V61)*V6,0) -> 0 | W63: =IFERROR(-V74/(Dashboard!$M91-V45)*W5-(V74+W61)*W6,0) -> 0 | X63: =IFERROR(-W74/(Dashboard!$M91-W45)*X5-(W74+X61)*X6,0) -> 0
B64: Aflossing reguliere leningen | H64: =SUM(I64:X64) -> -100000 | I64: 0 | J64: =IFERROR(-I75/SUM(J4:$X4)*J5-(I75+J62)*J6,0) -> -10000 | K64: =IFERROR(-J75/SUM(K4:$X4)*K5-(J75+K62)*K6,0) -> -10000 | L64: =IFERROR(-K75/SUM(L4:$X4)*L5-(K75+L62)*L6,0) -> -10000 | M64: =IFERROR(-L75/SUM(M4:$X4)*M5-(L75+M62)*M6,0) -> -10000 | N64: =IFERROR(-M75/SUM(N4:$X4)*N5-(M75+N62)*N6,0) -> -10000 | O64: =IFERROR(-N75/SUM(O4:$X4)*O5-(N75+O62)*O6,0) -> -10000 | P64: =IFERROR(-O75/SUM(P4:$X4)*P5-(O75+P62)*P6,0) -> -10000 | Q64: =IFERROR(-P75/SUM(Q4:$X4)*Q5-(P75+Q62)*Q6,0) -> -10000 | R64: =IFERROR(-Q75/SUM(R4:$X4)*R5-(Q75+R62)*R6,0) -> -10000 | S64: =IFERROR(-R75/SUM(S4:$X4)*S5-(R75+S62)*S6,0) -> -10000 | T64: =IFERROR(-S75/SUM(T4:$X4)*T5-(S75+T62)*T6,0) -> 0 | U64: =IFERROR(-T75/SUM(U4:$X4)*U5-(T75+U62)*U6,0) -> 0 | V64: =IFERROR(-U75/SUM(V4:$X4)*V5-(U75+V62)*V6,0) -> 0 | W64: =IFERROR(-V75/SUM(W4:$X4)*W5-(V75+W62)*W6,0) -> 0 | X64: =IFERROR(-W75/SUM(X4:$X4)*X5-(W75+X62)*X6,0) -> 0
B66: Financieringskasstroom | H66: =SUM(I66:X66) -> 0 | I66: =SUM(I61:I64) -> 100000 | J66: -10000 | K66: -10000 | L66: -10000 | M66: -10000 | N66: -10000 | O66: -10000 | P66: -10000 | Q66: -10000 | R66: -10000 | S66: -10000 | T66: 0 | U66: 0 | V66: 0 | W66: 0 | X66: 0
B68: Totaal Kritische Distributie Kasstroom | H68: =SUM(I68:X68) -> -637546.798 | I68: =I47+I59+I66 -> 0 | J68: -64863.05419 | K68: -64616.74877 | L68: -64370.44335 | M68: -64124.13793 | N68: -63877.83251 | O68: -63631.52709 | P68: -63385.22167 | Q68: -63138.91626 | R68: -62892.61084 | S68: -62646.30542 | T68: 0 | U68: 0 | V68: 0 | W68: 0 | X68: 0
B70: Balanspositie voertuig | E70: EUR | I70: =I32 -> 0 | J70: 1 | K70: 2 | L70: 3 | M70: 4 | N70: 5 | O70: 6 | P70: 7 | Q70: 8 | R70: 9 | S70: 10 | T70: 11 | U70: 12 | V70: 13 | W70: 14 | X70: 15
B72: Hoofdvoertuig (boekwaarde) | I72: =(H72-I54-I56-I42)*J4 -> 100000 | J72: 90000.8 | K72: 80001.6 | L72: 70002.4 | M72: 60003.2 | N72: 50004 | O72: 40004.8 | P72: 30005.6 | Q72: 20006.4 | R72: 10007.2 | S72: 0 | T72: 0 | U72: 0 | V72: 0 | W72: 0 | X72: 0
B74: Zachte leningen | I74: =H74+I61+I63 -> 0 | J74: 0 | K74: 0 | L74: 0 | M74: 0 | N74: 0 | O74: 0 | P74: 0 | Q74: 0 | R74: 0 | S74: 0 | T74: 0 | U74: 0 | V74: 0 | W74: 0 | X74: 0
B75: Reguliere leningen | I75: =H75+I62+I64 -> 100000 | J75: 90000 | K75: 80000 | L75: 70000 | M75: 60000 | N75: 50000 | O75: 40000 | P75: 30000 | Q75: 20000 | R75: 10000 | S75: 0 | T75: 0 | U75: 0 | V75: 0 | W75: 0 | X75: 0
B76: Totaal leningen | I76: =SUM(I74:I75) -> 100000 | J76: 90000 | K76: 80000 | L76: 70000 | M76: 60000 | N76: 50000 | O76: =SUM(O74:O75) -> 40000 | P76: 30000 | Q76: 20000 | R76: 10000 | S76: 0 | T76: 0 | U76: 0 | V76: 0 | W76: 0 | X76: 0
B78: Kasstroom maatregelen | E78: EUR | G78: Contant | H78: Totaal | I78: =I32 -> 0 | J78: 1 | K78: 2 | L78: 3 | M78: 4 | N78: 5 | O78: 6 | P78: 7 | Q78: 8 | R78: 9 | S78: 10 | T78: 11 | U78: 12 | V78: 13 | W78: 14 | X78: 15
B80: MIA | G80: =NPV(Discontovoet,J80:X80)+I80 -> 0 | H80: =SUM(I80:X80) -> 0 | I80: =I56 -> 0 | J80: 0 | K80: 0 | L80: 0 | M80: 0 | N80: 0 | O80: 0 | P80: 0 | Q80: 0 | R80: 0 | S80: 0 | T80: 0 | U80: 0 | V80: 0 | W80: 0 | X80: 0
B81: VAMIL | G81: =NPV(Discontovoet,J81:X81)+I81 -> 0 | H81: =SUM(I81:X81) -> 0 | I81: =I57 -> 0 | J81: 0 | K81: 0 | L81: 0 | M81: 0 | N81: 0 | O81: 0 | P81: 0 | Q81: 0 | R81: 0 | S81: 0 | T81: 0 | U81: 0 | V81: 0 | W81: 0 | X81: 0
B82: Kasstroom bestaande maatregelen | G82: =NPV(Discontovoet,J82:X82)+I82 -> 0 | H82: =SUM(I82:X82) -> 0 | I82: =SUM(I80:I81) -> 0 | J82: =SUM(J80:J81) -> 0 | K82: 0 | L82: 0 | M82: 0 | N82: 0 | O82: 0 | P82: 0 | Q82: 0 | R82: 0 | S82: 0 | T82: 0 | U82: 0 | V82: 0 | W82: 0 | X82: 0
B84: Subsidies | G84: =NPV(Discontovoet,J84:X84)+I84 -> 0 | H84: =SUM(I84:X84) -> 0 | I84: =I51+I53 -> 0 | J84: 0 | K84: 0 | L84: 0 | M84: 0 | N84: 0 | O84: 0 | P84: 0 | Q84: 0 | R84: 0 | S84: 0 | T84: 0 | U84: 0 | V84: 0 | W84: 0 | X84: 0
B85: Δ Voertuigbelastingen | G85: 0 | H85: 0 | I85: 0 | J85: =-Dashboard!$M120*J7 -> 0 | K85: =-Dashboard!$M120*K7 -> 0 | L85: =-Dashboard!$M120*L7 -> 0 | M85: =-Dashboard!$M120*M7 -> 0 | N85: =-Dashboard!$M120*N7 -> 0 | O85: =-Dashboard!$M120*O7 -> 0 | P85: =-Dashboard!$M120*P7 -> 0 | Q85: =-Dashboard!$M120*Q7 -> 0 | R85: =-Dashboard!$M120*R7 -> 0 | S85: =-Dashboard!$M120*S7 -> 0 | T85: =-Dashboard!$M120*T7 -> 0 | U85: =-Dashboard!$M120*U7 -> 0 | V85: =-Dashboard!$M120*V7 -> 0 | W85: =-Dashboard!$M120*W7 -> 0 | X85: =-Dashboard!$M120*X7 -> 0
B86: Δ Overige kosten | G86: 0 | H86: 0 | I86: 0 | J86: =-Dashboard!$M121*J7 -> 0 | K86: =-Dashboard!$M121*K7 -> 0 | L86: =-Dashboard!$M121*L7 -> 0 | M86: =-Dashboard!$M121*M7 -> 0 | N86: =-Dashboard!$M121*N7 -> 0 | O86: =-Dashboard!$M121*O7 -> 0 | P86: =-Dashboard!$M121*P7 -> 0 | Q86: =-Dashboard!$M121*Q7 -> 0 | R86: =-Dashboard!$M121*R7 -> 0 | S86: =-Dashboard!$M121*S7 -> 0 | T86: =-Dashboard!$M121*T7 -> 0 | U86: =-Dashboard!$M121*U7 -> 0 | V86: =-Dashboard!$M121*V7 -> 0 | W86: =-Dashboard!$M121*W7 -> 0 | X86: =-Dashboard!$M121*X7 -> 0
B87: Δ Kosten ontheffingen | G87: =NPV(Discontovoet,J87:X87)+I87 -> 0 | H87: 0 | I87: =-Dashboard!$M122*I7 -> 0 | J87: =-Dashboard!$M122*J7 -> 0 | K87: =-Dashboard!$M122*K7 -> 0 | L87: =-Dashboard!$M122*L7 -> 0 | M87: =-Dashboard!$M122*M7 -> 0 | N87: =-Dashboard!$M122*N7 -> 0 | O87: =-Dashboard!$M122*O7 -> 0 | P87: =-Dashboard!$M122*P7 -> 0 | Q87: =-Dashboard!$M122*Q7 -> 0 | R87: =-Dashboard!$M122*R7 -> 0 | S87: =-Dashboard!$M122*S7 -> 0 | T87: =-Dashboard!$M122*T7 -> 0 | U87: =-Dashboard!$M122*U7 -> 0 | V87: =-Dashboard!$M122*V7 -> 0 | W87: =-Dashboard!$M122*W7 -> 0 | X87: =-Dashboard!$M122*X7 -> 0
B88: Δ Brandstofprijs | G88: 0 | H88: 0 | I88: 0 | J88: =-Inzet_voertuig_Alt2*J7/100*Dashboard!$M93*Dashboard!$M123 -> 0 | K88: =-Inzet_voertuig_Alt2*K7/100*Dashboard!$M93*Dashboard!$M123 -> 0 | L88: =-Inzet_voertuig_Alt2*L7/100*Dashboard!$M93*Dashboard!$M123 -> 0 | M88: =-Inzet_voertuig_Alt2*M7/100*Dashboard!$M93*Dashboard!$M123 -> 0 | N88: =-Inzet_voertuig_Alt2*N7/100*Dashboard!$M93*Dashboard!$M123 -> 0 | O88: =-Inzet_voertuig_Alt2*O7/100*Dashboard!$M93*Dashboard!$M123 -> 0 | P88: =-Inzet_voertuig_Alt2*P7/100*Dashboard!$M93*Dashboard!$M123 -> 0 | Q88: =-Inzet_voertuig_Alt2*Q7/100*Dashboard!$M93*Dashboard!$M123 -> 0 | R88: =-Inzet_voertuig_Alt2*R7/100*Dashboard!$M93*Dashboard!$M123 -> 0 | S88: =-Inzet_voertuig_Alt2*S7/100*Dashboard!$M93*Dashboard!$M123 -> 0 | T88: =-Inzet_voertuig_Alt2*T7/100*Dashboard!$M93*Dashboard!$M123 -> 0 | U88: =-Inzet_voertuig_Alt2*U7/100*Dashboard!$M93*Dashboard!$M123 -> 0 | V88: =-Inzet_voertuig_Alt2*V7/100*Dashboard!$M93*Dashboard!$M123 -> 0 | W88: =-Inzet_voertuig_Alt2*W7/100*Dashboard!$M93*Dashboard!$M123 -> 0 | X88: =-Inzet_voertuig_Alt2*X7/100*Dashboard!$M93*Dashboard!$M123 -> 0
B89: Rentesubsidies | G89: 0 | H89: 0 | I89: 0 | J89: =I74*(Rente_reeel-zachte_rente_reeel2) -> 0 | K89: 0 | L89: 0 | M89: 0 | N89: 0 | O89: 0 | P89: 0 | Q89: 0 | R89: 0 | S89: 0 | T89: 0 | U89: 0 | V89: 0 | W89: 0 | X89: 0
B90: Kasstroom nieuwe maatregelen | G90: 0 | H90: =SUM(H84:H89) -> 0 | I90: 0 | J90: 0 | K90: 0 | L90: 0 | M90: 0 | N90: 0 | O90: 0 | P90: 0 | Q90: 0 | R90: 0 | S90: 0 | T90: 0 | U90: 0 | V90: 0 | W90: 0 | X90: =SUM(X85:X89) -> 0
B92: Totaal kasstroom maatregelen | G92: =NPV(Discontovoet,J92:X92)+I92 -> 0 | H92: =SUM(I92:X92) -> 0 | I92: =I82+I90 -> 0 | J92: 0 | K92: 0 | L92: 0 | M92: 0 | N92: 0 | O92: 0 | P92: 0 | Q92: 0 | R92: 0 | S92: 0 | T92: 0 | U92: 0 | V92: 0 | W92: 0 | X92: 0
B94: Emissies | G94: Contant | H94: Totaal | I94: =I32 -> 0 | J94: 1 | K94: 2 | L94: 3 | M94: 4 | N94: 5 | O94: 6 | P94: 7 | Q94: 8 | R94: 9 | S94: 10 | T94: 11 | U94: 12 | V94: 13 | W94: 14 | X94: 15
B96: Nominaal
B98: =Dashboard!U$63&" emissie CO2 ("&CO2_weight&"/jaar)" -> WtW emissie CO2 (ton/jaar) | J98: =IF(J94>Dashboard!$M91,I98*J7,(J21/100)*Dashboard!$M93*Dashboard!$M99)*CO2_factor -> 0 | K98: =IF(K94>Dashboard!$M91,J98*K7,(K21/100)*Dashboard!$M93*Dashboard!$M99)*CO2_factor -> 0 | L98: =IF(L94>Dashboard!$M91,K98*L7,(L21/100)*Dashboard!$M93*Dashboard!$M99)*CO2_factor -> 0 | M98: =IF(M94>Dashboard!$M91,L98*M7,(M21/100)*Dashboard!$M93*Dashboard!$M99)*CO2_factor -> 0 | N98: =IF(N94>Dashboard!$M91,M98*N7,(N21/100)*Dashboard!$M93*Dashboard!$M99)*CO2_factor -> 0 | O98: =IF(O94>Dashboard!$M91,N98*O7,(O21/100)*Dashboard!$M93*Dashboard!$M99)*CO2_factor -> 0 | P98: =IF(P94>Dashboard!$M91,O98*P7,(P21/100)*Dashboard!$M93*Dashboard!$M99)*CO2_factor -> 0 | Q98: =IF(Q94>Dashboard!$M91,P98*Q7,(Q21/100)*Dashboard!$M93*Dashboard!$M99)*CO2_factor -> 0 | R98: =IF(R94>Dashboard!$M91,Q98*R7,(R21/100)*Dashboard!$M93*Dashboard!$M99)*CO2_factor -> 0 | S98: =IF(S94>Dashboard!$M91,R98*S7,(S21/100)*Dashboard!$M93*Dashboard!$M99)*CO2_factor -> 0 | T98: =IF(T94>Dashboard!$M91,S98*T7,(T21/100)*Dashboard!$M93*Dashboard!$M99)*CO2_factor -> 0 | U98: =IF(U94>Dashboard!$M91,T98*U7,(U21/100)*Dashboard!$M93*Dashboard!$M99)*CO2_factor -> 0 | V98: =IF(V94>Dashboard!$M91,U98*V7,(V21/100)*Dashboard!$M93*Dashboard!$M99)*CO2_factor -> 0 | W98: =IF(W94>Dashboard!$M91,V98*W7,(W21/100)*Dashboard!$M93*Dashboard!$M99)*CO2_factor -> 0 | X98: =IF(X94>Dashboard!$M91,W98*X7,(X21/100)*Dashboard!$M93*Dashboard!$M99)*CO2_factor -> 0
B99: Kosten CO2 emissie (EUR/jaar) | J99: =J98*Kosten_CO2*CO2_factor_EUR -> 0 | K99: 0 | L99: 0 | M99: 0 | N99: 0 | O99: 0 | P99: 0 | Q99: 0 | R99: 0 | S99: 0 | T99: 0 | U99: 0 | V99: 0 | W99: 0 | X99: 0
B101: =Dashboard!U$64&" emissie NOx ("&NOx_weight&"/jaar)" -> TtW emissie NOx (kg/jaar) | J101: =IF(J94>Dashboard!$M91,I101*J7,(J21/100)*Dashboard!$M93*Dashboard!$M100)*NOx_factor -> 0 | K101: =IF(K94>Dashboard!$M91,J101*K7,(K21/100)*Dashboard!$M93*Dashboard!$M100)*NOx_factor -> 0 | L101: =IF(L94>Dashboard!$M91,K101*L7,(L21/100)*Dashboard!$M93*Dashboard!$M100)*NOx_factor -> 0 | M101: =IF(M94>Dashboard!$M91,L101*M7,(M21/100)*Dashboard!$M93*Dashboard!$M100)*NOx_factor -> 0 | N101: =IF(N94>Dashboard!$M91,M101*N7,(N21/100)*Dashboard!$M93*Dashboard!$M100)*NOx_factor -> 0 | O101: =IF(O94>Dashboard!$M91,N101*O7,(O21/100)*Dashboard!$M93*Dashboard!$M100)*NOx_factor -> 0 | P101: =IF(P94>Dashboard!$M91,O101*P7,(P21/100)*Dashboard!$M93*Dashboard!$M100)*NOx_factor -> 0 | Q101: =IF(Q94>Dashboard!$M91,P101*Q7,(Q21/100)*Dashboard!$M93*Dashboard!$M100)*NOx_factor -> 0 | R101: =IF(R94>Dashboard!$M91,Q101*R7,(R21/100)*Dashboard!$M93*Dashboard!$M100)*NOx_factor -> 0 | S101: =IF(S94>Dashboard!$M91,R101*S7,(S21/100)*Dashboard!$M93*Dashboard!$M100)*NOx_factor -> 0 | T101: =IF(T94>Dashboard!$M91,S101*T7,(T21/100)*Dashboard!$M93*Dashboard!$M100)*NOx_factor -> 0 | U101: =IF(U94>Dashboard!$M91,T101*U7,(U21/100)*Dashboard!$M93*Dashboard!$M100)*NOx_factor -> 0 | V101: =IF(V94>Dashboard!$M91,U101*V7,(V21/100)*Dashboard!$M93*Dashboard!$M100)*NOx_factor -> 0 | W101: =IF(W94>Dashboard!$M91,V101*W7,(W21/100)*Dashboard!$M93*Dashboard!$M100)*NOx_factor -> 0 | X101: =IF(X94>Dashboard!$M91,W101*X7,(X21/100)*Dashboard!$M93*Dashboard!$M100)*NOx_factor -> 0
B102: Kosten NOx emissie (EUR/jaar) | J102: =J101*Kosten_NOx*NOx_factor_EUR -> 0 | K102: 0 | L102: 0 | M102: 0 | N102: 0 | O102: 0 | P102: 0 | Q102: 0 | R102: 0 | S102: 0 | T102: 0 | U102: 0 | V102: 0 | W102: 0 | X102: 0
B104: =Dashboard!U$65&" emissie PM ("&PM_weight&"/jaar)" -> TtW emissie PM (dag/jaar) | J104: =IF(J94>Dashboard!$M91,I104*J7,(J21/100)*Dashboard!$M93*Dashboard!$M101)*PM_factor -> 187.2 | K104: =IF(K94>Dashboard!$M91,J104*K7,(K21/100)*Dashboard!$M93*Dashboard!$M101)*PM_factor -> 187.2 | L104: =IF(L94>Dashboard!$M91,K104*L7,(L21/100)*Dashboard!$M93*Dashboard!$M101)*PM_factor -> 187.2 | M104: =IF(M94>Dashboard!$M91,L104*M7,(M21/100)*Dashboard!$M93*Dashboard!$M101)*PM_factor -> 187.2 | N104: =IF(N94>Dashboard!$M91,M104*N7,(N21/100)*Dashboard!$M93*Dashboard!$M101)*PM_factor -> 187.2 | O104: =IF(O94>Dashboard!$M91,N104*O7,(O21/100)*Dashboard!$M93*Dashboard!$M101)*PM_factor -> 187.2 | P104: =IF(P94>Dashboard!$M91,O104*P7,(P21/100)*Dashboard!$M93*Dashboard!$M101)*PM_factor -> 187.2 | Q104: =IF(Q94>Dashboard!$M91,P104*Q7,(Q21/100)*Dashboard!$M93*Dashboard!$M101)*PM_factor -> 187.2 | R104: =IF(R94>Dashboard!$M91,Q104*R7,(R21/100)*Dashboard!$M93*Dashboard!$M101)*PM_factor -> 187.2 | S104: =IF(S94>Dashboard!$M91,R104*S7,(S21/100)*Dashboard!$M93*Dashboard!$M101)*PM_factor -> 187.2 | T104: =IF(T94>Dashboard!$M91,S104*T7,(T21/100)*Dashboard!$M93*Dashboard!$M101)*PM_factor -> 0 | U104: =IF(U94>Dashboard!$M91,T104*U7,(U21/100)*Dashboard!$M93*Dashboard!$M101)*PM_factor -> 0 | V104: =IF(V94>Dashboard!$M91,U104*V7,(V21/100)*Dashboard!$M93*Dashboard!$M101)*PM_factor -> 0 | W104: =IF(W94>Dashboard!$M91,V104*W7,(W21/100)*Dashboard!$M93*Dashboard!$M101)*PM_factor -> 0 | X104: =IF(X94>Dashboard!$M91,W104*X7,(X21/100)*Dashboard!$M93*Dashboard!$M101)*PM_factor -> 0
B105: Kosten PM emissie (EUR/jaar) | J105: =J104*Kosten_PM*PM_factor_EUR -> 1095.12 | K105: 1095.12 | L105: 1095.12 | M105: 1095.12 | N105: 1095.12 | O105: 1095.12 | P105: 1095.12 | Q105: 1095.12 | R105: 1095.12 | S105: 1095.12 | T105: 0 | U105: 0 | V105: 0 | W105: 0 | X105: 0
B107: ="emissie geluid (× 10^"&noise_weight&" dBh)" -> emissie geluid (× 10^4 dBh) | J107: =Referentie!J107 * 10^((Dashboard!$M$102-Dashboard!$I$102)/10) * (J26/Referentie!J26) -> 1.483460028 | K107: =J107*K$7 -> 1.483460028 | L107: 1.483460028 | M107: 1.483460028 | N107: 1.483460028 | O107: 1.483460028 | P107: 1.483460028 | Q107: 1.483460028 | R107: 1.483460028 | S107: 1.483460028 | T107: 0 | U107: 0 | V107: 0 | W107: 0 | X107: 0
B108: Kosten emissie geluid (EUR/jaar) | J108: =Referentie!J108 * 10^((Dashboard!$M$102-Dashboard!$I$102)/10) * (J26/Referentie!J26) -> 122.6707331 | K108: =J108*K$7 -> 122.6707331 | L108: 122.6707331 | M108: 122.6707331 | N108: 122.6707331 | O108: 122.6707331 | P108: 122.6707331 | Q108: 122.6707331 | R108: 122.6707331 | S108: 122.6707331 | T108: 0 | U108: 0 | V108: 0 | W108: 0 | X108: 0
B110: ="Totale emissie ten opzichte van 1 referentievoertuig *)" -> Totale emissie ten opzichte van 1 referentievoertuig *)
B112: =Dashboard!U$63&" emissie CO2 ("&CO2_weight&"/jaar)" -> WtW emissie CO2 (ton/jaar) | J112: =J98/($J$21/Referentie!$J$21)-Referentie!J98 -> -16.15 | K112: =J112*K$7 -> -16.15 | L112: =K112*L$7 -> -16.15 | M112: -16.15 | N112: -16.15 | O112: -16.15 | P112: -16.15 | Q112: -16.15 | R112: -16.15 | S112: -16.15 | T112: 0 | U112: 0 | V112: 0 | W112: 0 | X112: 0
B113: Kosten CO2 emissie (EUR/jaar) | J113: =J99/($J$21/Referentie!$J$21)-Referentie!J99 -> -419.9 | K113: =J113*K$7 -> -419.9 | L113: -419.9 | M113: -419.9 | N113: -419.9 | O113: -419.9 | P113: -419.9 | Q113: -419.9 | R113: -419.9 | S113: -419.9 | T113: 0 | U113: 0 | V113: 0 | W113: 0 | X113: 0
B115: =Dashboard!U$64&" emissie NOx ("&NOx_weight&"/jaar)" -> TtW emissie NOx (kg/jaar) | J115: =J101/($J$21/Referentie!$J$21)-Referentie!J101 -> -10.305 | K115: =J115*K$7 -> -10.305 | L115: =K115*L$7 -> -10.305 | M115: -10.305 | N115: -10.305 | O115: -10.305 | P115: -10.305 | Q115: -10.305 | R115: -10.305 | S115: -10.305 | T115: 0 | U115: 0 | V115: 0 | W115: 0 | X115: 0
B116: Kosten NOx emissie (EUR/jaar) | J116: =J102/($J$21/Referentie!$J$21)-Referentie!J102 -> -113.355 | K116: =J116*K$7 -> -113.355 | L116: -113.355 | M116: -113.355 | N116: -113.355 | O116: -113.355 | P116: -113.355 | Q116: -113.355 | R116: -113.355 | S116: -113.355 | T116: 0 | U116: 0 | V116: 0 | W116: 0 | X116: 0
B118: =Dashboard!U$65&" emissie PM ("&PM_weight&"/jaar)" -> TtW emissie PM (dag/jaar) | J118: =J104/($J$21/Referentie!$J$21)-Referentie!J104 -> -22.5 | K118: =J118*K$7 -> -22.5 | L118: =K118*L$7 -> -22.5 | M118: -22.5 | N118: -22.5 | O118: -22.5 | P118: -22.5 | Q118: -22.5 | R118: -22.5 | S118: -22.5 | T118: 0 | U118: 0 | V118: 0 | W118: 0 | X118: 0
B119: Kosten PM emissie (EUR/jaar) | J119: =J105/($J$21/Referentie!$J$21)-Referentie!J105 -> -131.625 | K119: =J119*K$7 -> -131.625 | L119: -131.625 | M119: -131.625 | N119: -131.625 | O119: -131.625 | P119: -131.625 | Q119: -131.625 | R119: -131.625 | S119: -131.625 | T119: 0 | U119: 0 | V119: 0 | W119: 0 | X119: 0
B121: ="emissie geluid (× 10^"&noise_weight&" dBh)" -> emissie geluid (× 10^4 dBh) | J121: =J107/($J$21/Referentie!$J$21)-Referentie!J107 -> -9.16378331 | K121: =J121*K$7 -> -9.16378331 | L121: =K121*L$7 -> -9.16378331 | M121: -9.16378331 | N121: -9.16378331 | O121: -9.16378331 | P121: -9.16378331 | Q121: -9.16378331 | R121: -9.16378331 | S121: -9.16378331 | T121: 0 | U121: 0 | V121: 0 | W121: 0 | X121: 0
B122: Kosten emissie geluid (EUR/jaar) | J122: =J108/($J$21/Referentie!$J$21)-Referentie!J108 -> -757.7743891 | K122: =J122*K$7 -> -757.7743891 | L122: -757.7743891 | M122: -757.7743891 | N122: -757.7743891 | O122: -757.7743891 | P122: -757.7743891 | Q122: -757.7743891 | R122: -757.7743891 | S122: -757.7743891 | T122: 0 | U122: 0 | V122: 0 | W122: 0 | X122: 0
B124: =" *) het equivalent van 1 referentievoertuig is "&ROUND(1/I12,2)&" alternatief 2 voertuig(en)" -> *) het equivalent van 1 referentievoertuig is 0,83 alternatief 2 voertuig(en)
B126: Gemonetariseerd | G126: Contant | H126: Totaal
B128: Emissiewinst | G128: =NPV(Discontovoet,J128:X128)+I128 -> 11539.00148 | H128: =SUM(I128:X128) -> 14226.54389 | I128: 0 | J128: =-1*(J113+J116+J119+J122) -> 1422.654389 | K128: =-1*(K113+K116+K119+K122) -> 1422.654389 | L128: 1422.654389 | M128: 1422.654389 | N128: 1422.654389 | O128: 1422.654389 | P128: 1422.654389 | Q128: 1422.654389 | R128: 1422.654389 | S128: 1422.654389 | T128: 0 | U128: 0 | V128: 0 | W128: 0 | X128: 0
B129: Nieuwe maatregelen (excl. MIA/VAMIL) (-) | G129: =NPV(Discontovoet,J129:X129)+I129 -> 0 | H129: =SUM(I129:X129) -> 0 | I129: =-I90 -> 0 | J129: 0 | K129: 0 | L129: 0 | M129: 0 | N129: 0 | O129: 0 | P129: 0 | Q129: 0 | R129: 0 | S129: 0 | T129: 0 | U129: 0 | V129: 0 | W129: 0 | X129: 0
B130: Resultaat | D130: IRR: | E130: =IFERROR((1+IRR(I130:X130))*(1+Inflatie)-1,"n.v.t.") -> n.v.t. | G130: =NPV(Discontovoet,J130:X130)+I130 -> 11539.00148 | H130: =SUM(I130:X130) -> 14226.54389 | I130: =SUM(I128:I129) -> 0 | J130: =SUM(J128:J129) -> 1422.654389 | K130: 1422.654389 | L130: 1422.654389 | M130: 1422.654389 | N130: 1422.654389 | O130: 1422.654389 | P130: 1422.654389 | Q130: 1422.654389 | R130: 1422.654389 | S130: 1422.654389 | T130: 0 | U130: 0 | V130: 0 | W130: 0 | X130: 0
B132: Emissiewinst | G132: =NPV(Discontovoet,J132:X132)+I132 -> 11539.00148 | H132: =SUM(I132:X132) -> 14226.54389 | I132: 0 | J132: =J128 -> 1422.654389 | K132: =K128 -> 1422.654389 | L132: 1422.654389 | M132: 1422.654389 | N132: 1422.654389 | O132: 1422.654389 | P132: 1422.654389 | Q132: 1422.654389 | R132: 1422.654389 | S132: 1422.654389 | T132: 0 | U132: 0 | V132: 0 | W132: 0 | X132: 0
B133: Alle maatregelen (incl. MIA/VAMIL) (-) | G133: =NPV(Discontovoet,J133:X133)+I133 -> 0 | H133: =SUM(I133:X133) -> 0 | I133: =-I92 -> 0 | J133: 0 | K133: 0 | L133: 0 | M133: 0 | N133: 0 | O133: 0 | P133: 0 | Q133: 0 | R133: 0 | S133: 0 | T133: 0 | U133: 0 | V133: 0 | W133: 0 | X133: 0
B134: Resultaat | D134: IRR: | E134: =IFERROR((1+IRR(I134:X134))*(1+Inflatie)-1,"n.v.t.") -> n.v.t. | G134: =NPV(Discontovoet,J134:X134)+I134 -> 11539.00148 | H134: =SUM(I134:X134) -> 14226.54389 | I134: =SUM(I132:I133) -> 0 | J134: =SUM(J132:J133) -> 1422.654389 | K134: 1422.654389 | L134: 1422.654389 | M134: 1422.654389 | N134: 1422.654389 | O134: 1422.654389 | P134: 1422.654389 | Q134: 1422.654389 | R134: 1422.654389 | S134: 1422.654389 | T134: 0 | U134: 0 | V134: 0 | W134: 0 | X134: 0

Sheet Info en copyright
I1: LIBIT [fuel distribution focus]
H24: EIBIT [fuel consumption focus] is provided as a professional tool for the purpose of electric commercial vehicles business case analysis, for use by all parties directly or indirectely involved in electric vehicle decision-making, policy-making, developing, operating or funding. EIBIT [fuel consumption focus] is a calculation tool for which there is absolutely no guarantee or warranty of fitness for a particular purpose or any purpose expressed or implied. Any user of information contained herein assumes any and all responsibility and liability for use of the information including any misunderstanding, misuse or misapplication of the information or algorithms.
H25: Any use of EIBIT [fuel consumption focus] is 'as is' and should only follow the user’s independent confirmation that it produces valid results for the user before results are used for any purpose whatsoever.
H26: In no event shall Infram be liable for any incorrect or invalid results that are obtained by any use of EIBIT [fuel consumption focus] nor shall Infram be liable for any loss of data, or profits or special, incidental, indirect or consequential damages arising out of or in connection with the use or performance of EIBIT [fuel consumption focus].
H27: © Copyright. EIBIT [fuel consumption focus] remains the intellectual property of Infram B.V. and is protected by international copyright laws. Any publication or distribution of the EIBIT [fuel consumption focus] model and template outside the scope of the permitted use of EIBIT [fuel consumption focus] is expressly prohibited. Permitted use is limited to using EIBIT [fuel consumption focus] in an unamended form to perform LNG bunker station business case calculations. EIBIT [fuel consumption focus] worksheet protection can be disabled without a password with the single purpose of enabling EIBIT [fuel consumption focus] users to verify EIBIT [fuel consumption focus] formulas. Any amendments and/or distribution of the EIBIT [fuel consumption focus] model or template is expressly prohibited and represents an infringement of international copyright laws.
H32: EIBIT [fuel consumption focus] is provided as a professional tool for the purpose of electric commercial vehicles business case analysis, for use by all parties directly or indirectely involved in electric vehicle decision-making, policy-making, developing, operating or funding. EIBIT [fuel consumption focus] is a calculation tool for which there is absolutely no guarantee or warranty of fitness for a particular purpose or any purpose expressed or implied. Any user of information contained herein assumes any and all responsibility and liability for use of the information including any misunderstanding, misuse or misapplication of the information or algorithms.
H33: Any use of EIBIT [fuel consumption focus] is 'as is' and should only follow the user’s independent confirmation that it produces valid results for the user before results are used for any purpose whatsoever.
H34: In no event shall Infram be liable for any incorrect or invalid results that are obtained by any use of EIBIT [fuel consumption focus] nor shall Infram be liable for any loss of data, or profits or special, incidental, indirect or consequential damages arising out of or in connection with the use or performance of EIBIT [fuel consumption focus].
H35: © Copyright. EIBIT [fuel consumption focus] remains the intellectual property of Infram B.V. and is protected by international copyright laws. Any publication or distribution of the EIBIT [fuel consumption focus] model and template outside the scope of the permitted use of EIBIT [fuel consumption focus] is expressly prohibited. Permitted use is limited to using EIBIT [fuel consumption focus] in an unamended form to perform LNG bunker station business case calculations. EIBIT [fuel consumption focus] worksheet protection can be disabled without a password with the single purpose of enabling EIBIT [fuel consumption focus] users to verify EIBIT [fuel consumption focus] formulas. Any amendments and/or distribution of the EIBIT [fuel consumption focus] model or template is expressly prohibited and represents an infringement of international copyright laws.
